{"text_format":"3","workbook":"xlsx","n_sheets":2,"sheets":["Nodarbību plāns","Nodarbību saraksts"],"not_rendered":{"defined_names":17},"read":"whole","date_system":"1900"}

{"sheet":"Nodarbību plāns","index":0,"n_rows":56,"n_cols":9,"rows_kept":56,"merged":[[0,1,1,5],[0,8,1,8]]}
[null,"NODARBĪBU PLĀNS",{"$nulls":4},"PLĀNOTAIS SĀKUMS","LAIKA INTERVĀLS","Nodarbību saraksts"]
[{"$nulls":6},"08:00:00","15 MIN."]
[null,"LAIKS","SVĒTDIENA","PIRMDIENA","OTRDIENA","TREŠDIENA","CETURTDIENA","PIEKTDIENA","SESTDIENA"]
[null,{"$f":"PlānotaisSākums","v":"08:00:00"},{"$f":"IFERROR(INDEX(NodarbībuSaraksts[],MATCH(SUMPRODUCT((NodarbībuSaraksts[DIENA]=NodarbībuPlāns[[#Headers],[SVĒTDIENA]])*(ROUNDDOWN($B4,10)>=ROUNDDOWN(NodarbībuSaraksts[SĀKUMA LAIKS],10))*($B4<=NodarbībuSaraksts[BEIGU LAIKS]),NodarbībuSaraksts[UNIKĀLS]),NodarbībuSaraksts[UNIKĀLS],0),2),0)","v":0},{"$f":"IFERROR(INDEX(NodarbībuSaraksts[],MATCH(SUMPRODUCT((NodarbībuSaraksts[DIENA]=NodarbībuPlāns[[#Headers],[PIRMDIENA]])*(ROUNDDOWN($B4,10)>=ROUNDDOWN(NodarbībuSaraksts[SĀKUMA LAIKS],10))*($B4<=NodarbībuSaraksts[BEIGU LAIKS]),NodarbībuSaraksts[UNIKĀLS]),NodarbībuSaraksts[UNIKĀLS],0),2),0)","v":0},{"$f":"IFERROR(INDEX(NodarbībuSaraksts[],MATCH(SUMPRODUCT((NodarbībuSaraksts[DIENA]=NodarbībuPlāns[[#Headers],[OTRDIENA]])*(ROUNDDOWN($B4,10)>=ROUNDDOWN(NodarbībuSaraksts[SĀKUMA LAIKS],10))*($B4<=NodarbībuSaraksts[BEIGU LAIKS]),NodarbībuSaraksts[UNIKĀLS]),NodarbībuSaraksts[UNIKĀLS],0),2),0)","v":0},{"$f":"IFERROR(INDEX(NodarbībuSaraksts[],MATCH(SUMPRODUCT((NodarbībuSaraksts[DIENA]=NodarbībuPlāns[[#Headers],[TREŠDIENA]])*(ROUNDDOWN($B4,10)>=ROUNDDOWN(NodarbībuSaraksts[SĀKUMA LAIKS],10))*($B4<=NodarbībuSaraksts[BEIGU LAIKS]),NodarbībuSaraksts[UNIKĀLS]),NodarbībuSaraksts[UNIKĀLS],0),2),0)","v":0},{"$f":"IFERROR(INDEX(NodarbībuSaraksts[],MATCH(SUMPRODUCT((NodarbībuSaraksts[DIENA]=NodarbībuPlāns[[#Headers],[CETURTDIENA]])*(ROUNDDOWN($B4,10)>=ROUNDDOWN(NodarbībuSaraksts[SĀKUMA LAIKS],10))*($B4<=NodarbībuSaraksts[BEIGU LAIKS]),NodarbībuSaraksts[UNIKĀLS]),NodarbībuSaraksts[UNIKĀLS],0),2),0)","v":0},{"$f":"IFERROR(INDEX(NodarbībuSaraksts[],MATCH(SUMPRODUCT((NodarbībuSaraksts[DIENA]=NodarbībuPlāns[[#Headers],[PIEKTDIENA]])*(ROUNDDOWN($B4,10)>=ROUNDDOWN(NodarbībuSaraksts[SĀKUMA LAIKS],10))*($B4<=NodarbībuSaraksts[BEIGU LAIKS]),NodarbībuSaraksts[UNIKĀLS]),NodarbībuSaraksts[UNIKĀLS],0),2),0)","v":0},{"$f":"IFERROR(INDEX(NodarbībuSaraksts[],MATCH(SUMPRODUCT((NodarbībuSaraksts[DIENA]=NodarbībuPlāns[[#Headers],[SESTDIENA]])*(ROUNDDOWN($B4,10)>=ROUNDDOWN(NodarbībuSaraksts[SĀKUMA LAIKS],10))*($B4<=NodarbībuSaraksts[BEIGU LAIKS]),NodarbībuSaraksts[UNIKĀLS]),NodarbībuSaraksts[UNIKĀLS],0),2),0)","v":0}]
[null,{"$f":"B4+Pieaugums","v":"08:15:00"},{"$f":"IFERROR(INDEX(NodarbībuSaraksts[],MATCH(SUMPRODUCT((NodarbībuSaraksts[DIENA]=NodarbībuPlāns[[#Headers],[SVĒTDIENA]])*(ROUNDDOWN($B5,10)>=ROUNDDOWN(NodarbībuSaraksts[SĀKUMA LAIKS],10))*($B5<=NodarbībuSaraksts[BEIGU LAIKS]),NodarbībuSaraksts[UNIKĀLS]),NodarbībuSaraksts[UNIKĀLS],0),2),0)","v":0},{"$f":"IFERROR(INDEX(NodarbībuSaraksts[],MATCH(SUMPRODUCT((NodarbībuSaraksts[DIENA]=NodarbībuPlāns[[#Headers],[PIRMDIENA]])*(ROUNDDOWN($B5,10)>=ROUNDDOWN(NodarbībuSaraksts[SĀKUMA LAIKS],10))*($B5<=NodarbībuSaraksts[BEIGU LAIKS]),NodarbībuSaraksts[UNIKĀLS]),NodarbībuSaraksts[UNIKĀLS],0),2),0)","v":"MTH-113"},{"$f":"IFERROR(INDEX(NodarbībuSaraksts[],MATCH(SUMPRODUCT((NodarbībuSaraksts[DIENA]=NodarbībuPlāns[[#Headers],[OTRDIENA]])*(ROUNDDOWN($B5,10)>=ROUNDDOWN(NodarbībuSaraksts[SĀKUMA LAIKS],10))*($B5<=NodarbībuSaraksts[BEIGU LAIKS]),NodarbībuSaraksts[UNIKĀLS]),NodarbībuSaraksts[UNIKĀLS],0),2),0)","v":0},{"$f":"IFERROR(INDEX(NodarbībuSaraksts[],MATCH(SUMPRODUCT((NodarbībuSaraksts[DIENA]=NodarbībuPlāns[[#Headers],[TREŠDIENA]])*(ROUNDDOWN($B5,10)>=ROUNDDOWN(NodarbībuSaraksts[SĀKUMA LAIKS],10))*($B5<=NodarbībuSaraksts[BEIGU LAIKS]),NodarbībuSaraksts[UNIKĀLS]),NodarbībuSaraksts[UNIKĀLS],0),2),0)","v":"MTH-113"},{"$f":"IFERROR(INDEX(NodarbībuSaraksts[],MATCH(SUMPRODUCT((NodarbībuSaraksts[DIENA]=NodarbībuPlāns[[#Headers],[CETURTDIENA]])*(ROUNDDOWN($B5,10)>=ROUNDDOWN(NodarbībuSaraksts[SĀKUMA LAIKS],10))*($B5<=NodarbībuSaraksts[BEIGU LAIKS]),NodarbībuSaraksts[UNIKĀLS]),NodarbībuSaraksts[UNIKĀLS],0),2),0)","v":0},{"$f":"IFERROR(INDEX(NodarbībuSaraksts[],MATCH(SUMPRODUCT((NodarbībuSaraksts[DIENA]=NodarbībuPlāns[[#Headers],[PIEKTDIENA]])*(ROUNDDOWN($B5,10)>=ROUNDDOWN(NodarbībuSaraksts[SĀKUMA LAIKS],10))*($B5<=NodarbībuSaraksts[BEIGU LAIKS]),NodarbībuSaraksts[UNIKĀLS]),NodarbībuSaraksts[UNIKĀLS],0),2),0)","v":"MTH-113"},{"$f":"IFERROR(INDEX(NodarbībuSaraksts[],MATCH(SUMPRODUCT((NodarbībuSaraksts[DIENA]=NodarbībuPlāns[[#Headers],[SESTDIENA]])*(ROUNDDOWN($B5,10)>=ROUNDDOWN(NodarbībuSaraksts[SĀKUMA LAIKS],10))*($B5<=NodarbībuSaraksts[BEIGU LAIKS]),NodarbībuSaraksts[UNIKĀLS]),NodarbībuSaraksts[UNIKĀLS],0),2),0)","v":0}]
[null,"08:30:00",{"$f":"IFERROR(INDEX(NodarbībuSaraksts[],MATCH(SUMPRODUCT((NodarbībuSaraksts[DIENA]=NodarbībuPlāns[[#Headers],[SVĒTDIENA]])*(ROUNDDOWN($B6,10)>=ROUNDDOWN(NodarbībuSaraksts[SĀKUMA LAIKS],10))*($B6<=NodarbībuSaraksts[BEIGU LAIKS]),NodarbībuSaraksts[UNIKĀLS]),NodarbībuSaraksts[UNIKĀLS],0),2),0)","v":0},{"$f":"IFERROR(INDEX(NodarbībuSaraksts[],MATCH(SUMPRODUCT((NodarbībuSaraksts[DIENA]=NodarbībuPlāns[[#Headers],[PIRMDIENA]])*(ROUNDDOWN($B6,10)>=ROUNDDOWN(NodarbībuSaraksts[SĀKUMA LAIKS],10))*($B6<=NodarbībuSaraksts[BEIGU LAIKS]),NodarbībuSaraksts[UNIKĀLS]),NodarbībuSaraksts[UNIKĀLS],0),2),0)","v":"MTH-113"},{"$f":"IFERROR(INDEX(NodarbībuSaraksts[],MATCH(SUMPRODUCT((NodarbībuSaraksts[DIENA]=NodarbībuPlāns[[#Headers],[OTRDIENA]])*(ROUNDDOWN($B6,10)>=ROUNDDOWN(NodarbībuSaraksts[SĀKUMA LAIKS],10))*($B6<=NodarbībuSaraksts[BEIGU LAIKS]),NodarbībuSaraksts[UNIKĀLS]),NodarbībuSaraksts[UNIKĀLS],0),2),0)","v":0},{"$f":"IFERROR(INDEX(NodarbībuSaraksts[],MATCH(SUMPRODUCT((NodarbībuSaraksts[DIENA]=NodarbībuPlāns[[#Headers],[TREŠDIENA]])*(ROUNDDOWN($B6,10)>=ROUNDDOWN(NodarbībuSaraksts[SĀKUMA LAIKS],10))*($B6<=NodarbībuSaraksts[BEIGU LAIKS]),NodarbībuSaraksts[UNIKĀLS]),NodarbībuSaraksts[UNIKĀLS],0),2),0)","v":"MTH-113"},{"$f":"IFERROR(INDEX(NodarbībuSaraksts[],MATCH(SUMPRODUCT((NodarbībuSaraksts[DIENA]=NodarbībuPlāns[[#Headers],[CETURTDIENA]])*(ROUNDDOWN($B6,10)>=ROUNDDOWN(NodarbībuSaraksts[SĀKUMA LAIKS],10))*($B6<=NodarbībuSaraksts[BEIGU LAIKS]),NodarbībuSaraksts[UNIKĀLS]),NodarbībuSaraksts[UNIKĀLS],0),2),0)","v":0},{"$f":"IFERROR(INDEX(NodarbībuSaraksts[],MATCH(SUMPRODUCT((NodarbībuSaraksts[DIENA]=NodarbībuPlāns[[#Headers],[PIEKTDIENA]])*(ROUNDDOWN($B6,10)>=ROUNDDOWN(NodarbībuSaraksts[SĀKUMA LAIKS],10))*($B6<=NodarbībuSaraksts[BEIGU LAIKS]),NodarbībuSaraksts[UNIKĀLS]),NodarbībuSaraksts[UNIKĀLS],0),2),0)","v":"MTH-113"},{"$f":"IFERROR(INDEX(NodarbībuSaraksts[],MATCH(SUMPRODUCT((NodarbībuSaraksts[DIENA]=NodarbībuPlāns[[#Headers],[SESTDIENA]])*(ROUNDDOWN($B6,10)>=ROUNDDOWN(NodarbībuSaraksts[SĀKUMA LAIKS],10))*($B6<=NodarbībuSaraksts[BEIGU LAIKS]),NodarbībuSaraksts[UNIKĀLS]),NodarbībuSaraksts[UNIKĀLS],0),2),0)","v":0}]
[null,{"$f":"B6+Pieaugums","v":"08:45:00"},{"$f":"IFERROR(INDEX(NodarbībuSaraksts[],MATCH(SUMPRODUCT((NodarbībuSaraksts[DIENA]=NodarbībuPlāns[[#Headers],[SVĒTDIENA]])*(ROUNDDOWN($B7,10)>=ROUNDDOWN(NodarbībuSaraksts[SĀKUMA LAIKS],10))*($B7<=NodarbībuSaraksts[BEIGU LAIKS]),NodarbībuSaraksts[UNIKĀLS]),NodarbībuSaraksts[UNIKĀLS],0),2),0)","v":0},{"$f":"IFERROR(INDEX(NodarbībuSaraksts[],MATCH(SUMPRODUCT((NodarbībuSaraksts[DIENA]=NodarbībuPlāns[[#Headers],[PIRMDIENA]])*(ROUNDDOWN($B7,10)>=ROUNDDOWN(NodarbībuSaraksts[SĀKUMA LAIKS],10))*($B7<=NodarbībuSaraksts[BEIGU LAIKS]),NodarbībuSaraksts[UNIKĀLS]),NodarbībuSaraksts[UNIKĀLS],0),2),0)","v":"MTH-113"},{"$f":"IFERROR(INDEX(NodarbībuSaraksts[],MATCH(SUMPRODUCT((NodarbībuSaraksts[DIENA]=NodarbībuPlāns[[#Headers],[OTRDIENA]])*(ROUNDDOWN($B7,10)>=ROUNDDOWN(NodarbībuSaraksts[SĀKUMA LAIKS],10))*($B7<=NodarbībuSaraksts[BEIGU LAIKS]),NodarbībuSaraksts[UNIKĀLS]),NodarbībuSaraksts[UNIKĀLS],0),2),0)","v":0},{"$f":"IFERROR(INDEX(NodarbībuSaraksts[],MATCH(SUMPRODUCT((NodarbībuSaraksts[DIENA]=NodarbībuPlāns[[#Headers],[TREŠDIENA]])*(ROUNDDOWN($B7,10)>=ROUNDDOWN(NodarbībuSaraksts[SĀKUMA LAIKS],10))*($B7<=NodarbībuSaraksts[BEIGU LAIKS]),NodarbībuSaraksts[UNIKĀLS]),NodarbībuSaraksts[UNIKĀLS],0),2),0)","v":"MTH-113"},{"$f":"IFERROR(INDEX(NodarbībuSaraksts[],MATCH(SUMPRODUCT((NodarbībuSaraksts[DIENA]=NodarbībuPlāns[[#Headers],[CETURTDIENA]])*(ROUNDDOWN($B7,10)>=ROUNDDOWN(NodarbībuSaraksts[SĀKUMA LAIKS],10))*($B7<=NodarbībuSaraksts[BEIGU LAIKS]),NodarbībuSaraksts[UNIKĀLS]),NodarbībuSaraksts[UNIKĀLS],0),2),0)","v":0},{"$f":"IFERROR(INDEX(NodarbībuSaraksts[],MATCH(SUMPRODUCT((NodarbībuSaraksts[DIENA]=NodarbībuPlāns[[#Headers],[PIEKTDIENA]])*(ROUNDDOWN($B7,10)>=ROUNDDOWN(NodarbībuSaraksts[SĀKUMA LAIKS],10))*($B7<=NodarbībuSaraksts[BEIGU LAIKS]),NodarbībuSaraksts[UNIKĀLS]),NodarbībuSaraksts[UNIKĀLS],0),2),0)","v":"MTH-113"},{"$f":"IFERROR(INDEX(NodarbībuSaraksts[],MATCH(SUMPRODUCT((NodarbībuSaraksts[DIENA]=NodarbībuPlāns[[#Headers],[SESTDIENA]])*(ROUNDDOWN($B7,10)>=ROUNDDOWN(NodarbībuSaraksts[SĀKUMA LAIKS],10))*($B7<=NodarbībuSaraksts[BEIGU LAIKS]),NodarbībuSaraksts[UNIKĀLS]),NodarbībuSaraksts[UNIKĀLS],0),2),0)","v":0}]
[null,"09:00:00",{"$f":"IFERROR(INDEX(NodarbībuSaraksts[],MATCH(SUMPRODUCT((NodarbībuSaraksts[DIENA]=NodarbībuPlāns[[#Headers],[SVĒTDIENA]])*(ROUNDDOWN($B8,10)>=ROUNDDOWN(NodarbībuSaraksts[SĀKUMA LAIKS],10))*($B8<=NodarbībuSaraksts[BEIGU LAIKS]),NodarbībuSaraksts[UNIKĀLS]),NodarbībuSaraksts[UNIKĀLS],0),2),0)","v":0},{"$f":"IFERROR(INDEX(NodarbībuSaraksts[],MATCH(SUMPRODUCT((NodarbībuSaraksts[DIENA]=NodarbībuPlāns[[#Headers],[PIRMDIENA]])*(ROUNDDOWN($B8,10)>=ROUNDDOWN(NodarbībuSaraksts[SĀKUMA LAIKS],10))*($B8<=NodarbībuSaraksts[BEIGU LAIKS]),NodarbībuSaraksts[UNIKĀLS]),NodarbībuSaraksts[UNIKĀLS],0),2),0)","v":"MTH-113"},{"$f":"IFERROR(INDEX(NodarbībuSaraksts[],MATCH(SUMPRODUCT((NodarbībuSaraksts[DIENA]=NodarbībuPlāns[[#Headers],[OTRDIENA]])*(ROUNDDOWN($B8,10)>=ROUNDDOWN(NodarbībuSaraksts[SĀKUMA LAIKS],10))*($B8<=NodarbībuSaraksts[BEIGU LAIKS]),NodarbībuSaraksts[UNIKĀLS]),NodarbībuSaraksts[UNIKĀLS],0),2),0)","v":0},{"$f":"IFERROR(INDEX(NodarbībuSaraksts[],MATCH(SUMPRODUCT((NodarbībuSaraksts[DIENA]=NodarbībuPlāns[[#Headers],[TREŠDIENA]])*(ROUNDDOWN($B8,10)>=ROUNDDOWN(NodarbībuSaraksts[SĀKUMA LAIKS],10))*($B8<=NodarbībuSaraksts[BEIGU LAIKS]),NodarbībuSaraksts[UNIKĀLS]),NodarbībuSaraksts[UNIKĀLS],0),2),0)","v":"MTH-113"},{"$f":"IFERROR(INDEX(NodarbībuSaraksts[],MATCH(SUMPRODUCT((NodarbībuSaraksts[DIENA]=NodarbībuPlāns[[#Headers],[CETURTDIENA]])*(ROUNDDOWN($B8,10)>=ROUNDDOWN(NodarbībuSaraksts[SĀKUMA LAIKS],10))*($B8<=NodarbībuSaraksts[BEIGU LAIKS]),NodarbībuSaraksts[UNIKĀLS]),NodarbībuSaraksts[UNIKĀLS],0),2),0)","v":0},{"$f":"IFERROR(INDEX(NodarbībuSaraksts[],MATCH(SUMPRODUCT((NodarbībuSaraksts[DIENA]=NodarbībuPlāns[[#Headers],[PIEKTDIENA]])*(ROUNDDOWN($B8,10)>=ROUNDDOWN(NodarbībuSaraksts[SĀKUMA LAIKS],10))*($B8<=NodarbībuSaraksts[BEIGU LAIKS]),NodarbībuSaraksts[UNIKĀLS]),NodarbībuSaraksts[UNIKĀLS],0),2),0)","v":"MTH-113"},{"$f":"IFERROR(INDEX(NodarbībuSaraksts[],MATCH(SUMPRODUCT((NodarbībuSaraksts[DIENA]=NodarbībuPlāns[[#Headers],[SESTDIENA]])*(ROUNDDOWN($B8,10)>=ROUNDDOWN(NodarbībuSaraksts[SĀKUMA LAIKS],10))*($B8<=NodarbībuSaraksts[BEIGU LAIKS]),NodarbībuSaraksts[UNIKĀLS]),NodarbībuSaraksts[UNIKĀLS],0),2),0)","v":0}]
[null,"09:15:00",{"$f":"IFERROR(INDEX(NodarbībuSaraksts[],MATCH(SUMPRODUCT((NodarbībuSaraksts[DIENA]=NodarbībuPlāns[[#Headers],[SVĒTDIENA]])*(ROUNDDOWN($B9,10)>=ROUNDDOWN(NodarbībuSaraksts[SĀKUMA LAIKS],10))*($B9<=NodarbībuSaraksts[BEIGU LAIKS]),NodarbībuSaraksts[UNIKĀLS]),NodarbībuSaraksts[UNIKĀLS],0),2),0)","v":0},{"$f":"IFERROR(INDEX(NodarbībuSaraksts[],MATCH(SUMPRODUCT((NodarbībuSaraksts[DIENA]=NodarbībuPlāns[[#Headers],[PIRMDIENA]])*(ROUNDDOWN($B9,10)>=ROUNDDOWN(NodarbībuSaraksts[SĀKUMA LAIKS],10))*($B9<=NodarbībuSaraksts[BEIGU LAIKS]),NodarbībuSaraksts[UNIKĀLS]),NodarbībuSaraksts[UNIKĀLS],0),2),0)","v":"MTH-113"},{"$f":"IFERROR(INDEX(NodarbībuSaraksts[],MATCH(SUMPRODUCT((NodarbībuSaraksts[DIENA]=NodarbībuPlāns[[#Headers],[OTRDIENA]])*(ROUNDDOWN($B9,10)>=ROUNDDOWN(NodarbībuSaraksts[SĀKUMA LAIKS],10))*($B9<=NodarbībuSaraksts[BEIGU LAIKS]),NodarbībuSaraksts[UNIKĀLS]),NodarbībuSaraksts[UNIKĀLS],0),2),0)","v":0},{"$f":"IFERROR(INDEX(NodarbībuSaraksts[],MATCH(SUMPRODUCT((NodarbībuSaraksts[DIENA]=NodarbībuPlāns[[#Headers],[TREŠDIENA]])*(ROUNDDOWN($B9,10)>=ROUNDDOWN(NodarbībuSaraksts[SĀKUMA LAIKS],10))*($B9<=NodarbībuSaraksts[BEIGU LAIKS]),NodarbībuSaraksts[UNIKĀLS]),NodarbībuSaraksts[UNIKĀLS],0),2),0)","v":"MTH-113"},{"$f":"IFERROR(INDEX(NodarbībuSaraksts[],MATCH(SUMPRODUCT((NodarbībuSaraksts[DIENA]=NodarbībuPlāns[[#Headers],[CETURTDIENA]])*(ROUNDDOWN($B9,10)>=ROUNDDOWN(NodarbībuSaraksts[SĀKUMA LAIKS],10))*($B9<=NodarbībuSaraksts[BEIGU LAIKS]),NodarbībuSaraksts[UNIKĀLS]),NodarbībuSaraksts[UNIKĀLS],0),2),0)","v":0},{"$f":"IFERROR(INDEX(NodarbībuSaraksts[],MATCH(SUMPRODUCT((NodarbībuSaraksts[DIENA]=NodarbībuPlāns[[#Headers],[PIEKTDIENA]])*(ROUNDDOWN($B9,10)>=ROUNDDOWN(NodarbībuSaraksts[SĀKUMA LAIKS],10))*($B9<=NodarbībuSaraksts[BEIGU LAIKS]),NodarbībuSaraksts[UNIKĀLS]),NodarbībuSaraksts[UNIKĀLS],0),2),0)","v":"MTH-113"},{"$f":"IFERROR(INDEX(NodarbībuSaraksts[],MATCH(SUMPRODUCT((NodarbībuSaraksts[DIENA]=NodarbībuPlāns[[#Headers],[SESTDIENA]])*(ROUNDDOWN($B9,10)>=ROUNDDOWN(NodarbībuSaraksts[SĀKUMA LAIKS],10))*($B9<=NodarbībuSaraksts[BEIGU LAIKS]),NodarbībuSaraksts[UNIKĀLS]),NodarbībuSaraksts[UNIKĀLS],0),2),0)","v":0}]
[null,"09:30:00",{"$f":"IFERROR(INDEX(NodarbībuSaraksts[],MATCH(SUMPRODUCT((NodarbībuSaraksts[DIENA]=NodarbībuPlāns[[#Headers],[SVĒTDIENA]])*(ROUNDDOWN($B10,10)>=ROUNDDOWN(NodarbībuSaraksts[SĀKUMA LAIKS],10))*($B10<=NodarbībuSaraksts[BEIGU LAIKS]),NodarbībuSaraksts[UNIKĀLS]),NodarbībuSaraksts[UNIKĀLS],0),2),0)","v":0},{"$f":"IFERROR(INDEX(NodarbībuSaraksts[],MATCH(SUMPRODUCT((NodarbībuSaraksts[DIENA]=NodarbībuPlāns[[#Headers],[PIRMDIENA]])*(ROUNDDOWN($B10,10)>=ROUNDDOWN(NodarbībuSaraksts[SĀKUMA LAIKS],10))*($B10<=NodarbībuSaraksts[BEIGU LAIKS]),NodarbībuSaraksts[UNIKĀLS]),NodarbībuSaraksts[UNIKĀLS],0),2),0)","v":0},{"$f":"IFERROR(INDEX(NodarbībuSaraksts[],MATCH(SUMPRODUCT((NodarbībuSaraksts[DIENA]=NodarbībuPlāns[[#Headers],[OTRDIENA]])*(ROUNDDOWN($B10,10)>=ROUNDDOWN(NodarbībuSaraksts[SĀKUMA LAIKS],10))*($B10<=NodarbībuSaraksts[BEIGU LAIKS]),NodarbībuSaraksts[UNIKĀLS]),NodarbībuSaraksts[UNIKĀLS],0),2),0)","v":0},{"$f":"IFERROR(INDEX(NodarbībuSaraksts[],MATCH(SUMPRODUCT((NodarbībuSaraksts[DIENA]=NodarbībuPlāns[[#Headers],[TREŠDIENA]])*(ROUNDDOWN($B10,10)>=ROUNDDOWN(NodarbībuSaraksts[SĀKUMA LAIKS],10))*($B10<=NodarbībuSaraksts[BEIGU LAIKS]),NodarbībuSaraksts[UNIKĀLS]),NodarbībuSaraksts[UNIKĀLS],0),2),0)","v":0},{"$f":"IFERROR(INDEX(NodarbībuSaraksts[],MATCH(SUMPRODUCT((NodarbībuSaraksts[DIENA]=NodarbībuPlāns[[#Headers],[CETURTDIENA]])*(ROUNDDOWN($B10,10)>=ROUNDDOWN(NodarbībuSaraksts[SĀKUMA LAIKS],10))*($B10<=NodarbībuSaraksts[BEIGU LAIKS]),NodarbībuSaraksts[UNIKĀLS]),NodarbībuSaraksts[UNIKĀLS],0),2),0)","v":0},{"$f":"IFERROR(INDEX(NodarbībuSaraksts[],MATCH(SUMPRODUCT((NodarbībuSaraksts[DIENA]=NodarbībuPlāns[[#Headers],[PIEKTDIENA]])*(ROUNDDOWN($B10,10)>=ROUNDDOWN(NodarbībuSaraksts[SĀKUMA LAIKS],10))*($B10<=NodarbībuSaraksts[BEIGU LAIKS]),NodarbībuSaraksts[UNIKĀLS]),NodarbībuSaraksts[UNIKĀLS],0),2),0)","v":0},{"$f":"IFERROR(INDEX(NodarbībuSaraksts[],MATCH(SUMPRODUCT((NodarbībuSaraksts[DIENA]=NodarbībuPlāns[[#Headers],[SESTDIENA]])*(ROUNDDOWN($B10,10)>=ROUNDDOWN(NodarbībuSaraksts[SĀKUMA LAIKS],10))*($B10<=NodarbībuSaraksts[BEIGU LAIKS]),NodarbībuSaraksts[UNIKĀLS]),NodarbībuSaraksts[UNIKĀLS],0),2),0)","v":0}]
[null,"09:45:00",{"$f":"IFERROR(INDEX(NodarbībuSaraksts[],MATCH(SUMPRODUCT((NodarbībuSaraksts[DIENA]=NodarbībuPlāns[[#Headers],[SVĒTDIENA]])*(ROUNDDOWN($B11,10)>=ROUNDDOWN(NodarbībuSaraksts[SĀKUMA LAIKS],10))*($B11<=NodarbībuSaraksts[BEIGU LAIKS]),NodarbībuSaraksts[UNIKĀLS]),NodarbībuSaraksts[UNIKĀLS],0),2),0)","v":0},{"$f":"IFERROR(INDEX(NodarbībuSaraksts[],MATCH(SUMPRODUCT((NodarbībuSaraksts[DIENA]=NodarbībuPlāns[[#Headers],[PIRMDIENA]])*(ROUNDDOWN($B11,10)>=ROUNDDOWN(NodarbībuSaraksts[SĀKUMA LAIKS],10))*($B11<=NodarbībuSaraksts[BEIGU LAIKS]),NodarbībuSaraksts[UNIKĀLS]),NodarbībuSaraksts[UNIKĀLS],0),2),0)","v":0},{"$f":"IFERROR(INDEX(NodarbībuSaraksts[],MATCH(SUMPRODUCT((NodarbībuSaraksts[DIENA]=NodarbībuPlāns[[#Headers],[OTRDIENA]])*(ROUNDDOWN($B11,10)>=ROUNDDOWN(NodarbībuSaraksts[SĀKUMA LAIKS],10))*($B11<=NodarbībuSaraksts[BEIGU LAIKS]),NodarbībuSaraksts[UNIKĀLS]),NodarbībuSaraksts[UNIKĀLS],0),2),0)","v":0},{"$f":"IFERROR(INDEX(NodarbībuSaraksts[],MATCH(SUMPRODUCT((NodarbībuSaraksts[DIENA]=NodarbībuPlāns[[#Headers],[TREŠDIENA]])*(ROUNDDOWN($B11,10)>=ROUNDDOWN(NodarbībuSaraksts[SĀKUMA LAIKS],10))*($B11<=NodarbībuSaraksts[BEIGU LAIKS]),NodarbībuSaraksts[UNIKĀLS]),NodarbībuSaraksts[UNIKĀLS],0),2),0)","v":0},{"$f":"IFERROR(INDEX(NodarbībuSaraksts[],MATCH(SUMPRODUCT((NodarbībuSaraksts[DIENA]=NodarbībuPlāns[[#Headers],[CETURTDIENA]])*(ROUNDDOWN($B11,10)>=ROUNDDOWN(NodarbībuSaraksts[SĀKUMA LAIKS],10))*($B11<=NodarbībuSaraksts[BEIGU LAIKS]),NodarbībuSaraksts[UNIKĀLS]),NodarbībuSaraksts[UNIKĀLS],0),2),0)","v":0},{"$f":"IFERROR(INDEX(NodarbībuSaraksts[],MATCH(SUMPRODUCT((NodarbībuSaraksts[DIENA]=NodarbībuPlāns[[#Headers],[PIEKTDIENA]])*(ROUNDDOWN($B11,10)>=ROUNDDOWN(NodarbībuSaraksts[SĀKUMA LAIKS],10))*($B11<=NodarbībuSaraksts[BEIGU LAIKS]),NodarbībuSaraksts[UNIKĀLS]),NodarbībuSaraksts[UNIKĀLS],0),2),0)","v":0},{"$f":"IFERROR(INDEX(NodarbībuSaraksts[],MATCH(SUMPRODUCT((NodarbībuSaraksts[DIENA]=NodarbībuPlāns[[#Headers],[SESTDIENA]])*(ROUNDDOWN($B11,10)>=ROUNDDOWN(NodarbībuSaraksts[SĀKUMA LAIKS],10))*($B11<=NodarbībuSaraksts[BEIGU LAIKS]),NodarbībuSaraksts[UNIKĀLS]),NodarbībuSaraksts[UNIKĀLS],0),2),0)","v":0}]
[null,"10:00:00",{"$f":"IFERROR(INDEX(NodarbībuSaraksts[],MATCH(SUMPRODUCT((NodarbībuSaraksts[DIENA]=NodarbībuPlāns[[#Headers],[SVĒTDIENA]])*(ROUNDDOWN($B12,10)>=ROUNDDOWN(NodarbībuSaraksts[SĀKUMA LAIKS],10))*($B12<=NodarbībuSaraksts[BEIGU LAIKS]),NodarbībuSaraksts[UNIKĀLS]),NodarbībuSaraksts[UNIKĀLS],0),2),0)","v":0},{"$f":"IFERROR(INDEX(NodarbībuSaraksts[],MATCH(SUMPRODUCT((NodarbībuSaraksts[DIENA]=NodarbībuPlāns[[#Headers],[PIRMDIENA]])*(ROUNDDOWN($B12,10)>=ROUNDDOWN(NodarbībuSaraksts[SĀKUMA LAIKS],10))*($B12<=NodarbībuSaraksts[BEIGU LAIKS]),NodarbībuSaraksts[UNIKĀLS]),NodarbībuSaraksts[UNIKĀLS],0),2),0)","v":0},{"$f":"IFERROR(INDEX(NodarbībuSaraksts[],MATCH(SUMPRODUCT((NodarbībuSaraksts[DIENA]=NodarbībuPlāns[[#Headers],[OTRDIENA]])*(ROUNDDOWN($B12,10)>=ROUNDDOWN(NodarbībuSaraksts[SĀKUMA LAIKS],10))*($B12<=NodarbībuSaraksts[BEIGU LAIKS]),NodarbībuSaraksts[UNIKĀLS]),NodarbībuSaraksts[UNIKĀLS],0),2),0)","v":0},{"$f":"IFERROR(INDEX(NodarbībuSaraksts[],MATCH(SUMPRODUCT((NodarbībuSaraksts[DIENA]=NodarbībuPlāns[[#Headers],[TREŠDIENA]])*(ROUNDDOWN($B12,10)>=ROUNDDOWN(NodarbībuSaraksts[SĀKUMA LAIKS],10))*($B12<=NodarbībuSaraksts[BEIGU LAIKS]),NodarbībuSaraksts[UNIKĀLS]),NodarbībuSaraksts[UNIKĀLS],0),2),0)","v":0},{"$f":"IFERROR(INDEX(NodarbībuSaraksts[],MATCH(SUMPRODUCT((NodarbībuSaraksts[DIENA]=NodarbībuPlāns[[#Headers],[CETURTDIENA]])*(ROUNDDOWN($B12,10)>=ROUNDDOWN(NodarbībuSaraksts[SĀKUMA LAIKS],10))*($B12<=NodarbībuSaraksts[BEIGU LAIKS]),NodarbībuSaraksts[UNIKĀLS]),NodarbībuSaraksts[UNIKĀLS],0),2),0)","v":0},{"$f":"IFERROR(INDEX(NodarbībuSaraksts[],MATCH(SUMPRODUCT((NodarbībuSaraksts[DIENA]=NodarbībuPlāns[[#Headers],[PIEKTDIENA]])*(ROUNDDOWN($B12,10)>=ROUNDDOWN(NodarbībuSaraksts[SĀKUMA LAIKS],10))*($B12<=NodarbībuSaraksts[BEIGU LAIKS]),NodarbībuSaraksts[UNIKĀLS]),NodarbībuSaraksts[UNIKĀLS],0),2),0)","v":0},{"$f":"IFERROR(INDEX(NodarbībuSaraksts[],MATCH(SUMPRODUCT((NodarbībuSaraksts[DIENA]=NodarbībuPlāns[[#Headers],[SESTDIENA]])*(ROUNDDOWN($B12,10)>=ROUNDDOWN(NodarbībuSaraksts[SĀKUMA LAIKS],10))*($B12<=NodarbībuSaraksts[BEIGU LAIKS]),NodarbībuSaraksts[UNIKĀLS]),NodarbībuSaraksts[UNIKĀLS],0),2),0)","v":0}]
[null,"10:15:00",{"$f":"IFERROR(INDEX(NodarbībuSaraksts[],MATCH(SUMPRODUCT((NodarbībuSaraksts[DIENA]=NodarbībuPlāns[[#Headers],[SVĒTDIENA]])*(ROUNDDOWN($B13,10)>=ROUNDDOWN(NodarbībuSaraksts[SĀKUMA LAIKS],10))*($B13<=NodarbībuSaraksts[BEIGU LAIKS]),NodarbībuSaraksts[UNIKĀLS]),NodarbībuSaraksts[UNIKĀLS],0),2),0)","v":0},{"$f":"IFERROR(INDEX(NodarbībuSaraksts[],MATCH(SUMPRODUCT((NodarbībuSaraksts[DIENA]=NodarbībuPlāns[[#Headers],[PIRMDIENA]])*(ROUNDDOWN($B13,10)>=ROUNDDOWN(NodarbībuSaraksts[SĀKUMA LAIKS],10))*($B13<=NodarbībuSaraksts[BEIGU LAIKS]),NodarbībuSaraksts[UNIKĀLS]),NodarbībuSaraksts[UNIKĀLS],0),2),0)","v":0},{"$f":"IFERROR(INDEX(NodarbībuSaraksts[],MATCH(SUMPRODUCT((NodarbībuSaraksts[DIENA]=NodarbībuPlāns[[#Headers],[OTRDIENA]])*(ROUNDDOWN($B13,10)>=ROUNDDOWN(NodarbībuSaraksts[SĀKUMA LAIKS],10))*($B13<=NodarbībuSaraksts[BEIGU LAIKS]),NodarbībuSaraksts[UNIKĀLS]),NodarbībuSaraksts[UNIKĀLS],0),2),0)","v":0},{"$f":"IFERROR(INDEX(NodarbībuSaraksts[],MATCH(SUMPRODUCT((NodarbībuSaraksts[DIENA]=NodarbībuPlāns[[#Headers],[TREŠDIENA]])*(ROUNDDOWN($B13,10)>=ROUNDDOWN(NodarbībuSaraksts[SĀKUMA LAIKS],10))*($B13<=NodarbībuSaraksts[BEIGU LAIKS]),NodarbībuSaraksts[UNIKĀLS]),NodarbībuSaraksts[UNIKĀLS],0),2),0)","v":0},{"$f":"IFERROR(INDEX(NodarbībuSaraksts[],MATCH(SUMPRODUCT((NodarbībuSaraksts[DIENA]=NodarbībuPlāns[[#Headers],[CETURTDIENA]])*(ROUNDDOWN($B13,10)>=ROUNDDOWN(NodarbībuSaraksts[SĀKUMA LAIKS],10))*($B13<=NodarbībuSaraksts[BEIGU LAIKS]),NodarbībuSaraksts[UNIKĀLS]),NodarbībuSaraksts[UNIKĀLS],0),2),0)","v":0},{"$f":"IFERROR(INDEX(NodarbībuSaraksts[],MATCH(SUMPRODUCT((NodarbībuSaraksts[DIENA]=NodarbībuPlāns[[#Headers],[PIEKTDIENA]])*(ROUNDDOWN($B13,10)>=ROUNDDOWN(NodarbībuSaraksts[SĀKUMA LAIKS],10))*($B13<=NodarbībuSaraksts[BEIGU LAIKS]),NodarbībuSaraksts[UNIKĀLS]),NodarbībuSaraksts[UNIKĀLS],0),2),0)","v":0},{"$f":"IFERROR(INDEX(NodarbībuSaraksts[],MATCH(SUMPRODUCT((NodarbībuSaraksts[DIENA]=NodarbībuPlāns[[#Headers],[SESTDIENA]])*(ROUNDDOWN($B13,10)>=ROUNDDOWN(NodarbībuSaraksts[SĀKUMA LAIKS],10))*($B13<=NodarbībuSaraksts[BEIGU LAIKS]),NodarbībuSaraksts[UNIKĀLS]),NodarbībuSaraksts[UNIKĀLS],0),2),0)","v":0}]
[null,"10:30:00",{"$f":"IFERROR(INDEX(NodarbībuSaraksts[],MATCH(SUMPRODUCT((NodarbībuSaraksts[DIENA]=NodarbībuPlāns[[#Headers],[SVĒTDIENA]])*(ROUNDDOWN($B14,10)>=ROUNDDOWN(NodarbībuSaraksts[SĀKUMA LAIKS],10))*($B14<=NodarbībuSaraksts[BEIGU LAIKS]),NodarbībuSaraksts[UNIKĀLS]),NodarbībuSaraksts[UNIKĀLS],0),2),0)","v":0},{"$f":"IFERROR(INDEX(NodarbībuSaraksts[],MATCH(SUMPRODUCT((NodarbībuSaraksts[DIENA]=NodarbībuPlāns[[#Headers],[PIRMDIENA]])*(ROUNDDOWN($B14,10)>=ROUNDDOWN(NodarbībuSaraksts[SĀKUMA LAIKS],10))*($B14<=NodarbībuSaraksts[BEIGU LAIKS]),NodarbībuSaraksts[UNIKĀLS]),NodarbībuSaraksts[UNIKĀLS],0),2),0)","v":0},{"$f":"IFERROR(INDEX(NodarbībuSaraksts[],MATCH(SUMPRODUCT((NodarbībuSaraksts[DIENA]=NodarbībuPlāns[[#Headers],[OTRDIENA]])*(ROUNDDOWN($B14,10)>=ROUNDDOWN(NodarbībuSaraksts[SĀKUMA LAIKS],10))*($B14<=NodarbībuSaraksts[BEIGU LAIKS]),NodarbībuSaraksts[UNIKĀLS]),NodarbībuSaraksts[UNIKĀLS],0),2),0)","v":0},{"$f":"IFERROR(INDEX(NodarbībuSaraksts[],MATCH(SUMPRODUCT((NodarbībuSaraksts[DIENA]=NodarbībuPlāns[[#Headers],[TREŠDIENA]])*(ROUNDDOWN($B14,10)>=ROUNDDOWN(NodarbībuSaraksts[SĀKUMA LAIKS],10))*($B14<=NodarbībuSaraksts[BEIGU LAIKS]),NodarbībuSaraksts[UNIKĀLS]),NodarbībuSaraksts[UNIKĀLS],0),2),0)","v":0},{"$f":"IFERROR(INDEX(NodarbībuSaraksts[],MATCH(SUMPRODUCT((NodarbībuSaraksts[DIENA]=NodarbībuPlāns[[#Headers],[CETURTDIENA]])*(ROUNDDOWN($B14,10)>=ROUNDDOWN(NodarbībuSaraksts[SĀKUMA LAIKS],10))*($B14<=NodarbībuSaraksts[BEIGU LAIKS]),NodarbībuSaraksts[UNIKĀLS]),NodarbībuSaraksts[UNIKĀLS],0),2),0)","v":0},{"$f":"IFERROR(INDEX(NodarbībuSaraksts[],MATCH(SUMPRODUCT((NodarbībuSaraksts[DIENA]=NodarbībuPlāns[[#Headers],[PIEKTDIENA]])*(ROUNDDOWN($B14,10)>=ROUNDDOWN(NodarbībuSaraksts[SĀKUMA LAIKS],10))*($B14<=NodarbībuSaraksts[BEIGU LAIKS]),NodarbībuSaraksts[UNIKĀLS]),NodarbībuSaraksts[UNIKĀLS],0),2),0)","v":0},{"$f":"IFERROR(INDEX(NodarbībuSaraksts[],MATCH(SUMPRODUCT((NodarbībuSaraksts[DIENA]=NodarbībuPlāns[[#Headers],[SESTDIENA]])*(ROUNDDOWN($B14,10)>=ROUNDDOWN(NodarbībuSaraksts[SĀKUMA LAIKS],10))*($B14<=NodarbībuSaraksts[BEIGU LAIKS]),NodarbībuSaraksts[UNIKĀLS]),NodarbībuSaraksts[UNIKĀLS],0),2),0)","v":0}]
[null,"10:45:00",{"$f":"IFERROR(INDEX(NodarbībuSaraksts[],MATCH(SUMPRODUCT((NodarbībuSaraksts[DIENA]=NodarbībuPlāns[[#Headers],[SVĒTDIENA]])*(ROUNDDOWN($B15,10)>=ROUNDDOWN(NodarbībuSaraksts[SĀKUMA LAIKS],10))*($B15<=NodarbībuSaraksts[BEIGU LAIKS]),NodarbībuSaraksts[UNIKĀLS]),NodarbībuSaraksts[UNIKĀLS],0),2),0)","v":0},{"$f":"IFERROR(INDEX(NodarbībuSaraksts[],MATCH(SUMPRODUCT((NodarbībuSaraksts[DIENA]=NodarbībuPlāns[[#Headers],[PIRMDIENA]])*(ROUNDDOWN($B15,10)>=ROUNDDOWN(NodarbībuSaraksts[SĀKUMA LAIKS],10))*($B15<=NodarbībuSaraksts[BEIGU LAIKS]),NodarbībuSaraksts[UNIKĀLS]),NodarbībuSaraksts[UNIKĀLS],0),2),0)","v":0},{"$f":"IFERROR(INDEX(NodarbībuSaraksts[],MATCH(SUMPRODUCT((NodarbībuSaraksts[DIENA]=NodarbībuPlāns[[#Headers],[OTRDIENA]])*(ROUNDDOWN($B15,10)>=ROUNDDOWN(NodarbībuSaraksts[SĀKUMA LAIKS],10))*($B15<=NodarbībuSaraksts[BEIGU LAIKS]),NodarbībuSaraksts[UNIKĀLS]),NodarbībuSaraksts[UNIKĀLS],0),2),0)","v":0},{"$f":"IFERROR(INDEX(NodarbībuSaraksts[],MATCH(SUMPRODUCT((NodarbībuSaraksts[DIENA]=NodarbībuPlāns[[#Headers],[TREŠDIENA]])*(ROUNDDOWN($B15,10)>=ROUNDDOWN(NodarbībuSaraksts[SĀKUMA LAIKS],10))*($B15<=NodarbībuSaraksts[BEIGU LAIKS]),NodarbībuSaraksts[UNIKĀLS]),NodarbībuSaraksts[UNIKĀLS],0),2),0)","v":0},{"$f":"IFERROR(INDEX(NodarbībuSaraksts[],MATCH(SUMPRODUCT((NodarbībuSaraksts[DIENA]=NodarbībuPlāns[[#Headers],[CETURTDIENA]])*(ROUNDDOWN($B15,10)>=ROUNDDOWN(NodarbībuSaraksts[SĀKUMA LAIKS],10))*($B15<=NodarbībuSaraksts[BEIGU LAIKS]),NodarbībuSaraksts[UNIKĀLS]),NodarbībuSaraksts[UNIKĀLS],0),2),0)","v":0},{"$f":"IFERROR(INDEX(NodarbībuSaraksts[],MATCH(SUMPRODUCT((NodarbībuSaraksts[DIENA]=NodarbībuPlāns[[#Headers],[PIEKTDIENA]])*(ROUNDDOWN($B15,10)>=ROUNDDOWN(NodarbībuSaraksts[SĀKUMA LAIKS],10))*($B15<=NodarbībuSaraksts[BEIGU LAIKS]),NodarbībuSaraksts[UNIKĀLS]),NodarbībuSaraksts[UNIKĀLS],0),2),0)","v":0},{"$f":"IFERROR(INDEX(NodarbībuSaraksts[],MATCH(SUMPRODUCT((NodarbībuSaraksts[DIENA]=NodarbībuPlāns[[#Headers],[SESTDIENA]])*(ROUNDDOWN($B15,10)>=ROUNDDOWN(NodarbībuSaraksts[SĀKUMA LAIKS],10))*($B15<=NodarbībuSaraksts[BEIGU LAIKS]),NodarbībuSaraksts[UNIKĀLS]),NodarbībuSaraksts[UNIKĀLS],0),2),0)","v":0}]
[null,"11:00:00",{"$f":"IFERROR(INDEX(NodarbībuSaraksts[],MATCH(SUMPRODUCT((NodarbībuSaraksts[DIENA]=NodarbībuPlāns[[#Headers],[SVĒTDIENA]])*(ROUNDDOWN($B16,10)>=ROUNDDOWN(NodarbībuSaraksts[SĀKUMA LAIKS],10))*($B16<=NodarbībuSaraksts[BEIGU LAIKS]),NodarbībuSaraksts[UNIKĀLS]),NodarbībuSaraksts[UNIKĀLS],0),2),0)","v":0},{"$f":"IFERROR(INDEX(NodarbībuSaraksts[],MATCH(SUMPRODUCT((NodarbībuSaraksts[DIENA]=NodarbībuPlāns[[#Headers],[PIRMDIENA]])*(ROUNDDOWN($B16,10)>=ROUNDDOWN(NodarbībuSaraksts[SĀKUMA LAIKS],10))*($B16<=NodarbībuSaraksts[BEIGU LAIKS]),NodarbībuSaraksts[UNIKĀLS]),NodarbībuSaraksts[UNIKĀLS],0),2),0)","v":0},{"$f":"IFERROR(INDEX(NodarbībuSaraksts[],MATCH(SUMPRODUCT((NodarbībuSaraksts[DIENA]=NodarbībuPlāns[[#Headers],[OTRDIENA]])*(ROUNDDOWN($B16,10)>=ROUNDDOWN(NodarbībuSaraksts[SĀKUMA LAIKS],10))*($B16<=NodarbībuSaraksts[BEIGU LAIKS]),NodarbībuSaraksts[UNIKĀLS]),NodarbībuSaraksts[UNIKĀLS],0),2),0)","v":"HPE-295"},{"$f":"IFERROR(INDEX(NodarbībuSaraksts[],MATCH(SUMPRODUCT((NodarbībuSaraksts[DIENA]=NodarbībuPlāns[[#Headers],[TREŠDIENA]])*(ROUNDDOWN($B16,10)>=ROUNDDOWN(NodarbībuSaraksts[SĀKUMA LAIKS],10))*($B16<=NodarbībuSaraksts[BEIGU LAIKS]),NodarbībuSaraksts[UNIKĀLS]),NodarbībuSaraksts[UNIKĀLS],0),2),0)","v":0},{"$f":"IFERROR(INDEX(NodarbībuSaraksts[],MATCH(SUMPRODUCT((NodarbībuSaraksts[DIENA]=NodarbībuPlāns[[#Headers],[CETURTDIENA]])*(ROUNDDOWN($B16,10)>=ROUNDDOWN(NodarbībuSaraksts[SĀKUMA LAIKS],10))*($B16<=NodarbībuSaraksts[BEIGU LAIKS]),NodarbībuSaraksts[UNIKĀLS]),NodarbībuSaraksts[UNIKĀLS],0),2),0)","v":"HPE-295"},{"$f":"IFERROR(INDEX(NodarbībuSaraksts[],MATCH(SUMPRODUCT((NodarbībuSaraksts[DIENA]=NodarbībuPlāns[[#Headers],[PIEKTDIENA]])*(ROUNDDOWN($B16,10)>=ROUNDDOWN(NodarbībuSaraksts[SĀKUMA LAIKS],10))*($B16<=NodarbībuSaraksts[BEIGU LAIKS]),NodarbībuSaraksts[UNIKĀLS]),NodarbībuSaraksts[UNIKĀLS],0),2),0)","v":0},{"$f":"IFERROR(INDEX(NodarbībuSaraksts[],MATCH(SUMPRODUCT((NodarbībuSaraksts[DIENA]=NodarbībuPlāns[[#Headers],[SESTDIENA]])*(ROUNDDOWN($B16,10)>=ROUNDDOWN(NodarbībuSaraksts[SĀKUMA LAIKS],10))*($B16<=NodarbībuSaraksts[BEIGU LAIKS]),NodarbībuSaraksts[UNIKĀLS]),NodarbībuSaraksts[UNIKĀLS],0),2),0)","v":0}]
[null,"11:15:00",{"$f":"IFERROR(INDEX(NodarbībuSaraksts[],MATCH(SUMPRODUCT((NodarbībuSaraksts[DIENA]=NodarbībuPlāns[[#Headers],[SVĒTDIENA]])*(ROUNDDOWN($B17,10)>=ROUNDDOWN(NodarbībuSaraksts[SĀKUMA LAIKS],10))*($B17<=NodarbībuSaraksts[BEIGU LAIKS]),NodarbībuSaraksts[UNIKĀLS]),NodarbībuSaraksts[UNIKĀLS],0),2),0)","v":0},{"$f":"IFERROR(INDEX(NodarbībuSaraksts[],MATCH(SUMPRODUCT((NodarbībuSaraksts[DIENA]=NodarbībuPlāns[[#Headers],[PIRMDIENA]])*(ROUNDDOWN($B17,10)>=ROUNDDOWN(NodarbībuSaraksts[SĀKUMA LAIKS],10))*($B17<=NodarbībuSaraksts[BEIGU LAIKS]),NodarbībuSaraksts[UNIKĀLS]),NodarbībuSaraksts[UNIKĀLS],0),2),0)","v":0},{"$f":"IFERROR(INDEX(NodarbībuSaraksts[],MATCH(SUMPRODUCT((NodarbībuSaraksts[DIENA]=NodarbībuPlāns[[#Headers],[OTRDIENA]])*(ROUNDDOWN($B17,10)>=ROUNDDOWN(NodarbībuSaraksts[SĀKUMA LAIKS],10))*($B17<=NodarbībuSaraksts[BEIGU LAIKS]),NodarbībuSaraksts[UNIKĀLS]),NodarbībuSaraksts[UNIKĀLS],0),2),0)","v":"HPE-295"},{"$f":"IFERROR(INDEX(NodarbībuSaraksts[],MATCH(SUMPRODUCT((NodarbībuSaraksts[DIENA]=NodarbībuPlāns[[#Headers],[TREŠDIENA]])*(ROUNDDOWN($B17,10)>=ROUNDDOWN(NodarbībuSaraksts[SĀKUMA LAIKS],10))*($B17<=NodarbībuSaraksts[BEIGU LAIKS]),NodarbībuSaraksts[UNIKĀLS]),NodarbībuSaraksts[UNIKĀLS],0),2),0)","v":0},{"$f":"IFERROR(INDEX(NodarbībuSaraksts[],MATCH(SUMPRODUCT((NodarbībuSaraksts[DIENA]=NodarbībuPlāns[[#Headers],[CETURTDIENA]])*(ROUNDDOWN($B17,10)>=ROUNDDOWN(NodarbībuSaraksts[SĀKUMA LAIKS],10))*($B17<=NodarbībuSaraksts[BEIGU LAIKS]),NodarbībuSaraksts[UNIKĀLS]),NodarbībuSaraksts[UNIKĀLS],0),2),0)","v":"HPE-295"},{"$f":"IFERROR(INDEX(NodarbībuSaraksts[],MATCH(SUMPRODUCT((NodarbībuSaraksts[DIENA]=NodarbībuPlāns[[#Headers],[PIEKTDIENA]])*(ROUNDDOWN($B17,10)>=ROUNDDOWN(NodarbībuSaraksts[SĀKUMA LAIKS],10))*($B17<=NodarbībuSaraksts[BEIGU LAIKS]),NodarbībuSaraksts[UNIKĀLS]),NodarbībuSaraksts[UNIKĀLS],0),2),0)","v":0},{"$f":"IFERROR(INDEX(NodarbībuSaraksts[],MATCH(SUMPRODUCT((NodarbībuSaraksts[DIENA]=NodarbībuPlāns[[#Headers],[SESTDIENA]])*(ROUNDDOWN($B17,10)>=ROUNDDOWN(NodarbībuSaraksts[SĀKUMA LAIKS],10))*($B17<=NodarbībuSaraksts[BEIGU LAIKS]),NodarbībuSaraksts[UNIKĀLS]),NodarbībuSaraksts[UNIKĀLS],0),2),0)","v":0}]
[null,"11:30:00",{"$f":"IFERROR(INDEX(NodarbībuSaraksts[],MATCH(SUMPRODUCT((NodarbībuSaraksts[DIENA]=NodarbībuPlāns[[#Headers],[SVĒTDIENA]])*(ROUNDDOWN($B18,10)>=ROUNDDOWN(NodarbībuSaraksts[SĀKUMA LAIKS],10))*($B18<=NodarbībuSaraksts[BEIGU LAIKS]),NodarbībuSaraksts[UNIKĀLS]),NodarbībuSaraksts[UNIKĀLS],0),2),0)","v":0},{"$f":"IFERROR(INDEX(NodarbībuSaraksts[],MATCH(SUMPRODUCT((NodarbībuSaraksts[DIENA]=NodarbībuPlāns[[#Headers],[PIRMDIENA]])*(ROUNDDOWN($B18,10)>=ROUNDDOWN(NodarbībuSaraksts[SĀKUMA LAIKS],10))*($B18<=NodarbībuSaraksts[BEIGU LAIKS]),NodarbībuSaraksts[UNIKĀLS]),NodarbībuSaraksts[UNIKĀLS],0),2),0)","v":0},{"$f":"IFERROR(INDEX(NodarbībuSaraksts[],MATCH(SUMPRODUCT((NodarbībuSaraksts[DIENA]=NodarbībuPlāns[[#Headers],[OTRDIENA]])*(ROUNDDOWN($B18,10)>=ROUNDDOWN(NodarbībuSaraksts[SĀKUMA LAIKS],10))*($B18<=NodarbībuSaraksts[BEIGU LAIKS]),NodarbībuSaraksts[UNIKĀLS]),NodarbībuSaraksts[UNIKĀLS],0),2),0)","v":"HPE-295"},{"$f":"IFERROR(INDEX(NodarbībuSaraksts[],MATCH(SUMPRODUCT((NodarbībuSaraksts[DIENA]=NodarbībuPlāns[[#Headers],[TREŠDIENA]])*(ROUNDDOWN($B18,10)>=ROUNDDOWN(NodarbībuSaraksts[SĀKUMA LAIKS],10))*($B18<=NodarbībuSaraksts[BEIGU LAIKS]),NodarbībuSaraksts[UNIKĀLS]),NodarbībuSaraksts[UNIKĀLS],0),2),0)","v":0},{"$f":"IFERROR(INDEX(NodarbībuSaraksts[],MATCH(SUMPRODUCT((NodarbībuSaraksts[DIENA]=NodarbībuPlāns[[#Headers],[CETURTDIENA]])*(ROUNDDOWN($B18,10)>=ROUNDDOWN(NodarbībuSaraksts[SĀKUMA LAIKS],10))*($B18<=NodarbībuSaraksts[BEIGU LAIKS]),NodarbībuSaraksts[UNIKĀLS]),NodarbībuSaraksts[UNIKĀLS],0),2),0)","v":"HPE-295"},{"$f":"IFERROR(INDEX(NodarbībuSaraksts[],MATCH(SUMPRODUCT((NodarbībuSaraksts[DIENA]=NodarbībuPlāns[[#Headers],[PIEKTDIENA]])*(ROUNDDOWN($B18,10)>=ROUNDDOWN(NodarbībuSaraksts[SĀKUMA LAIKS],10))*($B18<=NodarbībuSaraksts[BEIGU LAIKS]),NodarbībuSaraksts[UNIKĀLS]),NodarbībuSaraksts[UNIKĀLS],0),2),0)","v":0},{"$f":"IFERROR(INDEX(NodarbībuSaraksts[],MATCH(SUMPRODUCT((NodarbībuSaraksts[DIENA]=NodarbībuPlāns[[#Headers],[SESTDIENA]])*(ROUNDDOWN($B18,10)>=ROUNDDOWN(NodarbībuSaraksts[SĀKUMA LAIKS],10))*($B18<=NodarbībuSaraksts[BEIGU LAIKS]),NodarbībuSaraksts[UNIKĀLS]),NodarbībuSaraksts[UNIKĀLS],0),2),0)","v":0}]
[null,"11:45:00",{"$f":"IFERROR(INDEX(NodarbībuSaraksts[],MATCH(SUMPRODUCT((NodarbībuSaraksts[DIENA]=NodarbībuPlāns[[#Headers],[SVĒTDIENA]])*(ROUNDDOWN($B19,10)>=ROUNDDOWN(NodarbībuSaraksts[SĀKUMA LAIKS],10))*($B19<=NodarbībuSaraksts[BEIGU LAIKS]),NodarbībuSaraksts[UNIKĀLS]),NodarbībuSaraksts[UNIKĀLS],0),2),0)","v":0},{"$f":"IFERROR(INDEX(NodarbībuSaraksts[],MATCH(SUMPRODUCT((NodarbībuSaraksts[DIENA]=NodarbībuPlāns[[#Headers],[PIRMDIENA]])*(ROUNDDOWN($B19,10)>=ROUNDDOWN(NodarbībuSaraksts[SĀKUMA LAIKS],10))*($B19<=NodarbībuSaraksts[BEIGU LAIKS]),NodarbībuSaraksts[UNIKĀLS]),NodarbībuSaraksts[UNIKĀLS],0),2),0)","v":0},{"$f":"IFERROR(INDEX(NodarbībuSaraksts[],MATCH(SUMPRODUCT((NodarbībuSaraksts[DIENA]=NodarbībuPlāns[[#Headers],[OTRDIENA]])*(ROUNDDOWN($B19,10)>=ROUNDDOWN(NodarbībuSaraksts[SĀKUMA LAIKS],10))*($B19<=NodarbībuSaraksts[BEIGU LAIKS]),NodarbībuSaraksts[UNIKĀLS]),NodarbībuSaraksts[UNIKĀLS],0),2),0)","v":"HPE-295"},{"$f":"IFERROR(INDEX(NodarbībuSaraksts[],MATCH(SUMPRODUCT((NodarbībuSaraksts[DIENA]=NodarbībuPlāns[[#Headers],[TREŠDIENA]])*(ROUNDDOWN($B19,10)>=ROUNDDOWN(NodarbībuSaraksts[SĀKUMA LAIKS],10))*($B19<=NodarbībuSaraksts[BEIGU LAIKS]),NodarbībuSaraksts[UNIKĀLS]),NodarbībuSaraksts[UNIKĀLS],0),2),0)","v":0},{"$f":"IFERROR(INDEX(NodarbībuSaraksts[],MATCH(SUMPRODUCT((NodarbībuSaraksts[DIENA]=NodarbībuPlāns[[#Headers],[CETURTDIENA]])*(ROUNDDOWN($B19,10)>=ROUNDDOWN(NodarbībuSaraksts[SĀKUMA LAIKS],10))*($B19<=NodarbībuSaraksts[BEIGU LAIKS]),NodarbībuSaraksts[UNIKĀLS]),NodarbībuSaraksts[UNIKĀLS],0),2),0)","v":"HPE-295"},{"$f":"IFERROR(INDEX(NodarbībuSaraksts[],MATCH(SUMPRODUCT((NodarbībuSaraksts[DIENA]=NodarbībuPlāns[[#Headers],[PIEKTDIENA]])*(ROUNDDOWN($B19,10)>=ROUNDDOWN(NodarbībuSaraksts[SĀKUMA LAIKS],10))*($B19<=NodarbībuSaraksts[BEIGU LAIKS]),NodarbībuSaraksts[UNIKĀLS]),NodarbībuSaraksts[UNIKĀLS],0),2),0)","v":0},{"$f":"IFERROR(INDEX(NodarbībuSaraksts[],MATCH(SUMPRODUCT((NodarbībuSaraksts[DIENA]=NodarbībuPlāns[[#Headers],[SESTDIENA]])*(ROUNDDOWN($B19,10)>=ROUNDDOWN(NodarbībuSaraksts[SĀKUMA LAIKS],10))*($B19<=NodarbībuSaraksts[BEIGU LAIKS]),NodarbībuSaraksts[UNIKĀLS]),NodarbībuSaraksts[UNIKĀLS],0),2),0)","v":0}]
[null,"12:00:00",{"$f":"IFERROR(INDEX(NodarbībuSaraksts[],MATCH(SUMPRODUCT((NodarbībuSaraksts[DIENA]=NodarbībuPlāns[[#Headers],[SVĒTDIENA]])*(ROUNDDOWN($B20,10)>=ROUNDDOWN(NodarbībuSaraksts[SĀKUMA LAIKS],10))*($B20<=NodarbībuSaraksts[BEIGU LAIKS]),NodarbībuSaraksts[UNIKĀLS]),NodarbībuSaraksts[UNIKĀLS],0),2),0)","v":0},{"$f":"IFERROR(INDEX(NodarbībuSaraksts[],MATCH(SUMPRODUCT((NodarbībuSaraksts[DIENA]=NodarbībuPlāns[[#Headers],[PIRMDIENA]])*(ROUNDDOWN($B20,10)>=ROUNDDOWN(NodarbībuSaraksts[SĀKUMA LAIKS],10))*($B20<=NodarbībuSaraksts[BEIGU LAIKS]),NodarbībuSaraksts[UNIKĀLS]),NodarbībuSaraksts[UNIKĀLS],0),2),0)","v":0},{"$f":"IFERROR(INDEX(NodarbībuSaraksts[],MATCH(SUMPRODUCT((NodarbībuSaraksts[DIENA]=NodarbībuPlāns[[#Headers],[OTRDIENA]])*(ROUNDDOWN($B20,10)>=ROUNDDOWN(NodarbībuSaraksts[SĀKUMA LAIKS],10))*($B20<=NodarbībuSaraksts[BEIGU LAIKS]),NodarbībuSaraksts[UNIKĀLS]),NodarbībuSaraksts[UNIKĀLS],0),2),0)","v":"HPE-295"},{"$f":"IFERROR(INDEX(NodarbībuSaraksts[],MATCH(SUMPRODUCT((NodarbībuSaraksts[DIENA]=NodarbībuPlāns[[#Headers],[TREŠDIENA]])*(ROUNDDOWN($B20,10)>=ROUNDDOWN(NodarbībuSaraksts[SĀKUMA LAIKS],10))*($B20<=NodarbībuSaraksts[BEIGU LAIKS]),NodarbībuSaraksts[UNIKĀLS]),NodarbībuSaraksts[UNIKĀLS],0),2),0)","v":0},{"$f":"IFERROR(INDEX(NodarbībuSaraksts[],MATCH(SUMPRODUCT((NodarbībuSaraksts[DIENA]=NodarbībuPlāns[[#Headers],[CETURTDIENA]])*(ROUNDDOWN($B20,10)>=ROUNDDOWN(NodarbībuSaraksts[SĀKUMA LAIKS],10))*($B20<=NodarbībuSaraksts[BEIGU LAIKS]),NodarbībuSaraksts[UNIKĀLS]),NodarbībuSaraksts[UNIKĀLS],0),2),0)","v":"HPE-295"},{"$f":"IFERROR(INDEX(NodarbībuSaraksts[],MATCH(SUMPRODUCT((NodarbībuSaraksts[DIENA]=NodarbībuPlāns[[#Headers],[PIEKTDIENA]])*(ROUNDDOWN($B20,10)>=ROUNDDOWN(NodarbībuSaraksts[SĀKUMA LAIKS],10))*($B20<=NodarbībuSaraksts[BEIGU LAIKS]),NodarbībuSaraksts[UNIKĀLS]),NodarbībuSaraksts[UNIKĀLS],0),2),0)","v":0},{"$f":"IFERROR(INDEX(NodarbībuSaraksts[],MATCH(SUMPRODUCT((NodarbībuSaraksts[DIENA]=NodarbībuPlāns[[#Headers],[SESTDIENA]])*(ROUNDDOWN($B20,10)>=ROUNDDOWN(NodarbībuSaraksts[SĀKUMA LAIKS],10))*($B20<=NodarbībuSaraksts[BEIGU LAIKS]),NodarbībuSaraksts[UNIKĀLS]),NodarbībuSaraksts[UNIKĀLS],0),2),0)","v":0}]
[null,"12:15:00",{"$f":"IFERROR(INDEX(NodarbībuSaraksts[],MATCH(SUMPRODUCT((NodarbībuSaraksts[DIENA]=NodarbībuPlāns[[#Headers],[SVĒTDIENA]])*(ROUNDDOWN($B21,10)>=ROUNDDOWN(NodarbībuSaraksts[SĀKUMA LAIKS],10))*($B21<=NodarbībuSaraksts[BEIGU LAIKS]),NodarbībuSaraksts[UNIKĀLS]),NodarbībuSaraksts[UNIKĀLS],0),2),0)","v":0},{"$f":"IFERROR(INDEX(NodarbībuSaraksts[],MATCH(SUMPRODUCT((NodarbībuSaraksts[DIENA]=NodarbībuPlāns[[#Headers],[PIRMDIENA]])*(ROUNDDOWN($B21,10)>=ROUNDDOWN(NodarbībuSaraksts[SĀKUMA LAIKS],10))*($B21<=NodarbībuSaraksts[BEIGU LAIKS]),NodarbībuSaraksts[UNIKĀLS]),NodarbībuSaraksts[UNIKĀLS],0),2),0)","v":0},{"$f":"IFERROR(INDEX(NodarbībuSaraksts[],MATCH(SUMPRODUCT((NodarbībuSaraksts[DIENA]=NodarbībuPlāns[[#Headers],[OTRDIENA]])*(ROUNDDOWN($B21,10)>=ROUNDDOWN(NodarbībuSaraksts[SĀKUMA LAIKS],10))*($B21<=NodarbībuSaraksts[BEIGU LAIKS]),NodarbībuSaraksts[UNIKĀLS]),NodarbībuSaraksts[UNIKĀLS],0),2),0)","v":0},{"$f":"IFERROR(INDEX(NodarbībuSaraksts[],MATCH(SUMPRODUCT((NodarbībuSaraksts[DIENA]=NodarbībuPlāns[[#Headers],[TREŠDIENA]])*(ROUNDDOWN($B21,10)>=ROUNDDOWN(NodarbībuSaraksts[SĀKUMA LAIKS],10))*($B21<=NodarbībuSaraksts[BEIGU LAIKS]),NodarbībuSaraksts[UNIKĀLS]),NodarbībuSaraksts[UNIKĀLS],0),2),0)","v":0},{"$f":"IFERROR(INDEX(NodarbībuSaraksts[],MATCH(SUMPRODUCT((NodarbībuSaraksts[DIENA]=NodarbībuPlāns[[#Headers],[CETURTDIENA]])*(ROUNDDOWN($B21,10)>=ROUNDDOWN(NodarbībuSaraksts[SĀKUMA LAIKS],10))*($B21<=NodarbībuSaraksts[BEIGU LAIKS]),NodarbībuSaraksts[UNIKĀLS]),NodarbībuSaraksts[UNIKĀLS],0),2),0)","v":0},{"$f":"IFERROR(INDEX(NodarbībuSaraksts[],MATCH(SUMPRODUCT((NodarbībuSaraksts[DIENA]=NodarbībuPlāns[[#Headers],[PIEKTDIENA]])*(ROUNDDOWN($B21,10)>=ROUNDDOWN(NodarbībuSaraksts[SĀKUMA LAIKS],10))*($B21<=NodarbībuSaraksts[BEIGU LAIKS]),NodarbībuSaraksts[UNIKĀLS]),NodarbībuSaraksts[UNIKĀLS],0),2),0)","v":0},{"$f":"IFERROR(INDEX(NodarbībuSaraksts[],MATCH(SUMPRODUCT((NodarbībuSaraksts[DIENA]=NodarbībuPlāns[[#Headers],[SESTDIENA]])*(ROUNDDOWN($B21,10)>=ROUNDDOWN(NodarbībuSaraksts[SĀKUMA LAIKS],10))*($B21<=NodarbībuSaraksts[BEIGU LAIKS]),NodarbībuSaraksts[UNIKĀLS]),NodarbībuSaraksts[UNIKĀLS],0),2),0)","v":0}]
[null,"12:30:00",{"$f":"IFERROR(INDEX(NodarbībuSaraksts[],MATCH(SUMPRODUCT((NodarbībuSaraksts[DIENA]=NodarbībuPlāns[[#Headers],[SVĒTDIENA]])*(ROUNDDOWN($B22,10)>=ROUNDDOWN(NodarbībuSaraksts[SĀKUMA LAIKS],10))*($B22<=NodarbībuSaraksts[BEIGU LAIKS]),NodarbībuSaraksts[UNIKĀLS]),NodarbībuSaraksts[UNIKĀLS],0),2),0)","v":0},{"$f":"IFERROR(INDEX(NodarbībuSaraksts[],MATCH(SUMPRODUCT((NodarbībuSaraksts[DIENA]=NodarbībuPlāns[[#Headers],[PIRMDIENA]])*(ROUNDDOWN($B22,10)>=ROUNDDOWN(NodarbībuSaraksts[SĀKUMA LAIKS],10))*($B22<=NodarbībuSaraksts[BEIGU LAIKS]),NodarbībuSaraksts[UNIKĀLS]),NodarbībuSaraksts[UNIKĀLS],0),2),0)","v":0},{"$f":"IFERROR(INDEX(NodarbībuSaraksts[],MATCH(SUMPRODUCT((NodarbībuSaraksts[DIENA]=NodarbībuPlāns[[#Headers],[OTRDIENA]])*(ROUNDDOWN($B22,10)>=ROUNDDOWN(NodarbībuSaraksts[SĀKUMA LAIKS],10))*($B22<=NodarbībuSaraksts[BEIGU LAIKS]),NodarbībuSaraksts[UNIKĀLS]),NodarbībuSaraksts[UNIKĀLS],0),2),0)","v":0},{"$f":"IFERROR(INDEX(NodarbībuSaraksts[],MATCH(SUMPRODUCT((NodarbībuSaraksts[DIENA]=NodarbībuPlāns[[#Headers],[TREŠDIENA]])*(ROUNDDOWN($B22,10)>=ROUNDDOWN(NodarbībuSaraksts[SĀKUMA LAIKS],10))*($B22<=NodarbībuSaraksts[BEIGU LAIKS]),NodarbībuSaraksts[UNIKĀLS]),NodarbībuSaraksts[UNIKĀLS],0),2),0)","v":0},{"$f":"IFERROR(INDEX(NodarbībuSaraksts[],MATCH(SUMPRODUCT((NodarbībuSaraksts[DIENA]=NodarbībuPlāns[[#Headers],[CETURTDIENA]])*(ROUNDDOWN($B22,10)>=ROUNDDOWN(NodarbībuSaraksts[SĀKUMA LAIKS],10))*($B22<=NodarbībuSaraksts[BEIGU LAIKS]),NodarbībuSaraksts[UNIKĀLS]),NodarbībuSaraksts[UNIKĀLS],0),2),0)","v":0},{"$f":"IFERROR(INDEX(NodarbībuSaraksts[],MATCH(SUMPRODUCT((NodarbībuSaraksts[DIENA]=NodarbībuPlāns[[#Headers],[PIEKTDIENA]])*(ROUNDDOWN($B22,10)>=ROUNDDOWN(NodarbībuSaraksts[SĀKUMA LAIKS],10))*($B22<=NodarbībuSaraksts[BEIGU LAIKS]),NodarbībuSaraksts[UNIKĀLS]),NodarbībuSaraksts[UNIKĀLS],0),2),0)","v":0},{"$f":"IFERROR(INDEX(NodarbībuSaraksts[],MATCH(SUMPRODUCT((NodarbībuSaraksts[DIENA]=NodarbībuPlāns[[#Headers],[SESTDIENA]])*(ROUNDDOWN($B22,10)>=ROUNDDOWN(NodarbībuSaraksts[SĀKUMA LAIKS],10))*($B22<=NodarbībuSaraksts[BEIGU LAIKS]),NodarbībuSaraksts[UNIKĀLS]),NodarbībuSaraksts[UNIKĀLS],0),2),0)","v":0}]
[null,"12:45:00",{"$f":"IFERROR(INDEX(NodarbībuSaraksts[],MATCH(SUMPRODUCT((NodarbībuSaraksts[DIENA]=NodarbībuPlāns[[#Headers],[SVĒTDIENA]])*(ROUNDDOWN($B23,10)>=ROUNDDOWN(NodarbībuSaraksts[SĀKUMA LAIKS],10))*($B23<=NodarbībuSaraksts[BEIGU LAIKS]),NodarbībuSaraksts[UNIKĀLS]),NodarbībuSaraksts[UNIKĀLS],0),2),0)","v":0},{"$f":"IFERROR(INDEX(NodarbībuSaraksts[],MATCH(SUMPRODUCT((NodarbībuSaraksts[DIENA]=NodarbībuPlāns[[#Headers],[PIRMDIENA]])*(ROUNDDOWN($B23,10)>=ROUNDDOWN(NodarbībuSaraksts[SĀKUMA LAIKS],10))*($B23<=NodarbībuSaraksts[BEIGU LAIKS]),NodarbībuSaraksts[UNIKĀLS]),NodarbībuSaraksts[UNIKĀLS],0),2),0)","v":0},{"$f":"IFERROR(INDEX(NodarbībuSaraksts[],MATCH(SUMPRODUCT((NodarbībuSaraksts[DIENA]=NodarbībuPlāns[[#Headers],[OTRDIENA]])*(ROUNDDOWN($B23,10)>=ROUNDDOWN(NodarbībuSaraksts[SĀKUMA LAIKS],10))*($B23<=NodarbībuSaraksts[BEIGU LAIKS]),NodarbībuSaraksts[UNIKĀLS]),NodarbībuSaraksts[UNIKĀLS],0),2),0)","v":0},{"$f":"IFERROR(INDEX(NodarbībuSaraksts[],MATCH(SUMPRODUCT((NodarbībuSaraksts[DIENA]=NodarbībuPlāns[[#Headers],[TREŠDIENA]])*(ROUNDDOWN($B23,10)>=ROUNDDOWN(NodarbībuSaraksts[SĀKUMA LAIKS],10))*($B23<=NodarbībuSaraksts[BEIGU LAIKS]),NodarbībuSaraksts[UNIKĀLS]),NodarbībuSaraksts[UNIKĀLS],0),2),0)","v":0},{"$f":"IFERROR(INDEX(NodarbībuSaraksts[],MATCH(SUMPRODUCT((NodarbībuSaraksts[DIENA]=NodarbībuPlāns[[#Headers],[CETURTDIENA]])*(ROUNDDOWN($B23,10)>=ROUNDDOWN(NodarbībuSaraksts[SĀKUMA LAIKS],10))*($B23<=NodarbībuSaraksts[BEIGU LAIKS]),NodarbībuSaraksts[UNIKĀLS]),NodarbībuSaraksts[UNIKĀLS],0),2),0)","v":0},{"$f":"IFERROR(INDEX(NodarbībuSaraksts[],MATCH(SUMPRODUCT((NodarbībuSaraksts[DIENA]=NodarbībuPlāns[[#Headers],[PIEKTDIENA]])*(ROUNDDOWN($B23,10)>=ROUNDDOWN(NodarbībuSaraksts[SĀKUMA LAIKS],10))*($B23<=NodarbībuSaraksts[BEIGU LAIKS]),NodarbībuSaraksts[UNIKĀLS]),NodarbībuSaraksts[UNIKĀLS],0),2),0)","v":0},{"$f":"IFERROR(INDEX(NodarbībuSaraksts[],MATCH(SUMPRODUCT((NodarbībuSaraksts[DIENA]=NodarbībuPlāns[[#Headers],[SESTDIENA]])*(ROUNDDOWN($B23,10)>=ROUNDDOWN(NodarbībuSaraksts[SĀKUMA LAIKS],10))*($B23<=NodarbībuSaraksts[BEIGU LAIKS]),NodarbībuSaraksts[UNIKĀLS]),NodarbībuSaraksts[UNIKĀLS],0),2),0)","v":0}]
[null,"13:00:00",{"$f":"IFERROR(INDEX(NodarbībuSaraksts[],MATCH(SUMPRODUCT((NodarbībuSaraksts[DIENA]=NodarbībuPlāns[[#Headers],[SVĒTDIENA]])*(ROUNDDOWN($B24,10)>=ROUNDDOWN(NodarbībuSaraksts[SĀKUMA LAIKS],10))*($B24<=NodarbībuSaraksts[BEIGU LAIKS]),NodarbībuSaraksts[UNIKĀLS]),NodarbībuSaraksts[UNIKĀLS],0),2),0)","v":0},{"$f":"IFERROR(INDEX(NodarbībuSaraksts[],MATCH(SUMPRODUCT((NodarbībuSaraksts[DIENA]=NodarbībuPlāns[[#Headers],[PIRMDIENA]])*(ROUNDDOWN($B24,10)>=ROUNDDOWN(NodarbībuSaraksts[SĀKUMA LAIKS],10))*($B24<=NodarbībuSaraksts[BEIGU LAIKS]),NodarbībuSaraksts[UNIKĀLS]),NodarbībuSaraksts[UNIKĀLS],0),2),0)","v":"WR-121"},{"$f":"IFERROR(INDEX(NodarbībuSaraksts[],MATCH(SUMPRODUCT((NodarbībuSaraksts[DIENA]=NodarbībuPlāns[[#Headers],[OTRDIENA]])*(ROUNDDOWN($B24,10)>=ROUNDDOWN(NodarbībuSaraksts[SĀKUMA LAIKS],10))*($B24<=NodarbībuSaraksts[BEIGU LAIKS]),NodarbībuSaraksts[UNIKĀLS]),NodarbībuSaraksts[UNIKĀLS],0),2),0)","v":0},{"$f":"IFERROR(INDEX(NodarbībuSaraksts[],MATCH(SUMPRODUCT((NodarbībuSaraksts[DIENA]=NodarbībuPlāns[[#Headers],[TREŠDIENA]])*(ROUNDDOWN($B24,10)>=ROUNDDOWN(NodarbībuSaraksts[SĀKUMA LAIKS],10))*($B24<=NodarbībuSaraksts[BEIGU LAIKS]),NodarbībuSaraksts[UNIKĀLS]),NodarbībuSaraksts[UNIKĀLS],0),2),0)","v":"WR-121"},{"$f":"IFERROR(INDEX(NodarbībuSaraksts[],MATCH(SUMPRODUCT((NodarbībuSaraksts[DIENA]=NodarbībuPlāns[[#Headers],[CETURTDIENA]])*(ROUNDDOWN($B24,10)>=ROUNDDOWN(NodarbībuSaraksts[SĀKUMA LAIKS],10))*($B24<=NodarbībuSaraksts[BEIGU LAIKS]),NodarbībuSaraksts[UNIKĀLS]),NodarbībuSaraksts[UNIKĀLS],0),2),0)","v":0},{"$f":"IFERROR(INDEX(NodarbībuSaraksts[],MATCH(SUMPRODUCT((NodarbībuSaraksts[DIENA]=NodarbībuPlāns[[#Headers],[PIEKTDIENA]])*(ROUNDDOWN($B24,10)>=ROUNDDOWN(NodarbībuSaraksts[SĀKUMA LAIKS],10))*($B24<=NodarbībuSaraksts[BEIGU LAIKS]),NodarbībuSaraksts[UNIKĀLS]),NodarbībuSaraksts[UNIKĀLS],0),2),0)","v":0},{"$f":"IFERROR(INDEX(NodarbībuSaraksts[],MATCH(SUMPRODUCT((NodarbībuSaraksts[DIENA]=NodarbībuPlāns[[#Headers],[SESTDIENA]])*(ROUNDDOWN($B24,10)>=ROUNDDOWN(NodarbībuSaraksts[SĀKUMA LAIKS],10))*($B24<=NodarbībuSaraksts[BEIGU LAIKS]),NodarbībuSaraksts[UNIKĀLS]),NodarbībuSaraksts[UNIKĀLS],0),2),0)","v":0}]
[null,"13:15:00",{"$f":"IFERROR(INDEX(NodarbībuSaraksts[],MATCH(SUMPRODUCT((NodarbībuSaraksts[DIENA]=NodarbībuPlāns[[#Headers],[SVĒTDIENA]])*(ROUNDDOWN($B25,10)>=ROUNDDOWN(NodarbībuSaraksts[SĀKUMA LAIKS],10))*($B25<=NodarbībuSaraksts[BEIGU LAIKS]),NodarbībuSaraksts[UNIKĀLS]),NodarbībuSaraksts[UNIKĀLS],0),2),0)","v":0},{"$f":"IFERROR(INDEX(NodarbībuSaraksts[],MATCH(SUMPRODUCT((NodarbībuSaraksts[DIENA]=NodarbībuPlāns[[#Headers],[PIRMDIENA]])*(ROUNDDOWN($B25,10)>=ROUNDDOWN(NodarbībuSaraksts[SĀKUMA LAIKS],10))*($B25<=NodarbībuSaraksts[BEIGU LAIKS]),NodarbībuSaraksts[UNIKĀLS]),NodarbībuSaraksts[UNIKĀLS],0),2),0)","v":"WR-121"},{"$f":"IFERROR(INDEX(NodarbībuSaraksts[],MATCH(SUMPRODUCT((NodarbībuSaraksts[DIENA]=NodarbībuPlāns[[#Headers],[OTRDIENA]])*(ROUNDDOWN($B25,10)>=ROUNDDOWN(NodarbībuSaraksts[SĀKUMA LAIKS],10))*($B25<=NodarbībuSaraksts[BEIGU LAIKS]),NodarbībuSaraksts[UNIKĀLS]),NodarbībuSaraksts[UNIKĀLS],0),2),0)","v":0},{"$f":"IFERROR(INDEX(NodarbībuSaraksts[],MATCH(SUMPRODUCT((NodarbībuSaraksts[DIENA]=NodarbībuPlāns[[#Headers],[TREŠDIENA]])*(ROUNDDOWN($B25,10)>=ROUNDDOWN(NodarbībuSaraksts[SĀKUMA LAIKS],10))*($B25<=NodarbībuSaraksts[BEIGU LAIKS]),NodarbībuSaraksts[UNIKĀLS]),NodarbībuSaraksts[UNIKĀLS],0),2),0)","v":"WR-121"},{"$f":"IFERROR(INDEX(NodarbībuSaraksts[],MATCH(SUMPRODUCT((NodarbībuSaraksts[DIENA]=NodarbībuPlāns[[#Headers],[CETURTDIENA]])*(ROUNDDOWN($B25,10)>=ROUNDDOWN(NodarbībuSaraksts[SĀKUMA LAIKS],10))*($B25<=NodarbībuSaraksts[BEIGU LAIKS]),NodarbībuSaraksts[UNIKĀLS]),NodarbībuSaraksts[UNIKĀLS],0),2),0)","v":0},{"$f":"IFERROR(INDEX(NodarbībuSaraksts[],MATCH(SUMPRODUCT((NodarbībuSaraksts[DIENA]=NodarbībuPlāns[[#Headers],[PIEKTDIENA]])*(ROUNDDOWN($B25,10)>=ROUNDDOWN(NodarbībuSaraksts[SĀKUMA LAIKS],10))*($B25<=NodarbībuSaraksts[BEIGU LAIKS]),NodarbībuSaraksts[UNIKĀLS]),NodarbībuSaraksts[UNIKĀLS],0),2),0)","v":0},{"$f":"IFERROR(INDEX(NodarbībuSaraksts[],MATCH(SUMPRODUCT((NodarbībuSaraksts[DIENA]=NodarbībuPlāns[[#Headers],[SESTDIENA]])*(ROUNDDOWN($B25,10)>=ROUNDDOWN(NodarbībuSaraksts[SĀKUMA LAIKS],10))*($B25<=NodarbībuSaraksts[BEIGU LAIKS]),NodarbībuSaraksts[UNIKĀLS]),NodarbībuSaraksts[UNIKĀLS],0),2),0)","v":0}]
[null,"13:30:00",{"$f":"IFERROR(INDEX(NodarbībuSaraksts[],MATCH(SUMPRODUCT((NodarbībuSaraksts[DIENA]=NodarbībuPlāns[[#Headers],[SVĒTDIENA]])*(ROUNDDOWN($B26,10)>=ROUNDDOWN(NodarbībuSaraksts[SĀKUMA LAIKS],10))*($B26<=NodarbībuSaraksts[BEIGU LAIKS]),NodarbībuSaraksts[UNIKĀLS]),NodarbībuSaraksts[UNIKĀLS],0),2),0)","v":0},{"$f":"IFERROR(INDEX(NodarbībuSaraksts[],MATCH(SUMPRODUCT((NodarbībuSaraksts[DIENA]=NodarbībuPlāns[[#Headers],[PIRMDIENA]])*(ROUNDDOWN($B26,10)>=ROUNDDOWN(NodarbībuSaraksts[SĀKUMA LAIKS],10))*($B26<=NodarbībuSaraksts[BEIGU LAIKS]),NodarbībuSaraksts[UNIKĀLS]),NodarbībuSaraksts[UNIKĀLS],0),2),0)","v":"WR-121"},{"$f":"IFERROR(INDEX(NodarbībuSaraksts[],MATCH(SUMPRODUCT((NodarbībuSaraksts[DIENA]=NodarbībuPlāns[[#Headers],[OTRDIENA]])*(ROUNDDOWN($B26,10)>=ROUNDDOWN(NodarbībuSaraksts[SĀKUMA LAIKS],10))*($B26<=NodarbībuSaraksts[BEIGU LAIKS]),NodarbībuSaraksts[UNIKĀLS]),NodarbībuSaraksts[UNIKĀLS],0),2),0)","v":0},{"$f":"IFERROR(INDEX(NodarbībuSaraksts[],MATCH(SUMPRODUCT((NodarbībuSaraksts[DIENA]=NodarbībuPlāns[[#Headers],[TREŠDIENA]])*(ROUNDDOWN($B26,10)>=ROUNDDOWN(NodarbībuSaraksts[SĀKUMA LAIKS],10))*($B26<=NodarbībuSaraksts[BEIGU LAIKS]),NodarbībuSaraksts[UNIKĀLS]),NodarbībuSaraksts[UNIKĀLS],0),2),0)","v":"WR-121"},{"$f":"IFERROR(INDEX(NodarbībuSaraksts[],MATCH(SUMPRODUCT((NodarbībuSaraksts[DIENA]=NodarbībuPlāns[[#Headers],[CETURTDIENA]])*(ROUNDDOWN($B26,10)>=ROUNDDOWN(NodarbībuSaraksts[SĀKUMA LAIKS],10))*($B26<=NodarbībuSaraksts[BEIGU LAIKS]),NodarbībuSaraksts[UNIKĀLS]),NodarbībuSaraksts[UNIKĀLS],0),2),0)","v":0},{"$f":"IFERROR(INDEX(NodarbībuSaraksts[],MATCH(SUMPRODUCT((NodarbībuSaraksts[DIENA]=NodarbībuPlāns[[#Headers],[PIEKTDIENA]])*(ROUNDDOWN($B26,10)>=ROUNDDOWN(NodarbībuSaraksts[SĀKUMA LAIKS],10))*($B26<=NodarbībuSaraksts[BEIGU LAIKS]),NodarbībuSaraksts[UNIKĀLS]),NodarbībuSaraksts[UNIKĀLS],0),2),0)","v":0},{"$f":"IFERROR(INDEX(NodarbībuSaraksts[],MATCH(SUMPRODUCT((NodarbībuSaraksts[DIENA]=NodarbībuPlāns[[#Headers],[SESTDIENA]])*(ROUNDDOWN($B26,10)>=ROUNDDOWN(NodarbībuSaraksts[SĀKUMA LAIKS],10))*($B26<=NodarbībuSaraksts[BEIGU LAIKS]),NodarbībuSaraksts[UNIKĀLS]),NodarbībuSaraksts[UNIKĀLS],0),2),0)","v":0}]
[null,"13:45:00",{"$f":"IFERROR(INDEX(NodarbībuSaraksts[],MATCH(SUMPRODUCT((NodarbībuSaraksts[DIENA]=NodarbībuPlāns[[#Headers],[SVĒTDIENA]])*(ROUNDDOWN($B27,10)>=ROUNDDOWN(NodarbībuSaraksts[SĀKUMA LAIKS],10))*($B27<=NodarbībuSaraksts[BEIGU LAIKS]),NodarbībuSaraksts[UNIKĀLS]),NodarbībuSaraksts[UNIKĀLS],0),2),0)","v":0},{"$f":"IFERROR(INDEX(NodarbībuSaraksts[],MATCH(SUMPRODUCT((NodarbībuSaraksts[DIENA]=NodarbībuPlāns[[#Headers],[PIRMDIENA]])*(ROUNDDOWN($B27,10)>=ROUNDDOWN(NodarbībuSaraksts[SĀKUMA LAIKS],10))*($B27<=NodarbībuSaraksts[BEIGU LAIKS]),NodarbībuSaraksts[UNIKĀLS]),NodarbībuSaraksts[UNIKĀLS],0),2),0)","v":"WR-121"},{"$f":"IFERROR(INDEX(NodarbībuSaraksts[],MATCH(SUMPRODUCT((NodarbībuSaraksts[DIENA]=NodarbībuPlāns[[#Headers],[OTRDIENA]])*(ROUNDDOWN($B27,10)>=ROUNDDOWN(NodarbībuSaraksts[SĀKUMA LAIKS],10))*($B27<=NodarbībuSaraksts[BEIGU LAIKS]),NodarbībuSaraksts[UNIKĀLS]),NodarbībuSaraksts[UNIKĀLS],0),2),0)","v":0},{"$f":"IFERROR(INDEX(NodarbībuSaraksts[],MATCH(SUMPRODUCT((NodarbībuSaraksts[DIENA]=NodarbībuPlāns[[#Headers],[TREŠDIENA]])*(ROUNDDOWN($B27,10)>=ROUNDDOWN(NodarbībuSaraksts[SĀKUMA LAIKS],10))*($B27<=NodarbībuSaraksts[BEIGU LAIKS]),NodarbībuSaraksts[UNIKĀLS]),NodarbībuSaraksts[UNIKĀLS],0),2),0)","v":"WR-121"},{"$f":"IFERROR(INDEX(NodarbībuSaraksts[],MATCH(SUMPRODUCT((NodarbībuSaraksts[DIENA]=NodarbībuPlāns[[#Headers],[CETURTDIENA]])*(ROUNDDOWN($B27,10)>=ROUNDDOWN(NodarbībuSaraksts[SĀKUMA LAIKS],10))*($B27<=NodarbībuSaraksts[BEIGU LAIKS]),NodarbībuSaraksts[UNIKĀLS]),NodarbībuSaraksts[UNIKĀLS],0),2),0)","v":0},{"$f":"IFERROR(INDEX(NodarbībuSaraksts[],MATCH(SUMPRODUCT((NodarbībuSaraksts[DIENA]=NodarbībuPlāns[[#Headers],[PIEKTDIENA]])*(ROUNDDOWN($B27,10)>=ROUNDDOWN(NodarbībuSaraksts[SĀKUMA LAIKS],10))*($B27<=NodarbībuSaraksts[BEIGU LAIKS]),NodarbībuSaraksts[UNIKĀLS]),NodarbībuSaraksts[UNIKĀLS],0),2),0)","v":0},{"$f":"IFERROR(INDEX(NodarbībuSaraksts[],MATCH(SUMPRODUCT((NodarbībuSaraksts[DIENA]=NodarbībuPlāns[[#Headers],[SESTDIENA]])*(ROUNDDOWN($B27,10)>=ROUNDDOWN(NodarbībuSaraksts[SĀKUMA LAIKS],10))*($B27<=NodarbībuSaraksts[BEIGU LAIKS]),NodarbībuSaraksts[UNIKĀLS]),NodarbībuSaraksts[UNIKĀLS],0),2),0)","v":0}]
[null,"14:00:00",{"$f":"IFERROR(INDEX(NodarbībuSaraksts[],MATCH(SUMPRODUCT((NodarbībuSaraksts[DIENA]=NodarbībuPlāns[[#Headers],[SVĒTDIENA]])*(ROUNDDOWN($B28,10)>=ROUNDDOWN(NodarbībuSaraksts[SĀKUMA LAIKS],10))*($B28<=NodarbībuSaraksts[BEIGU LAIKS]),NodarbībuSaraksts[UNIKĀLS]),NodarbībuSaraksts[UNIKĀLS],0),2),0)","v":0},{"$f":"IFERROR(INDEX(NodarbībuSaraksts[],MATCH(SUMPRODUCT((NodarbībuSaraksts[DIENA]=NodarbībuPlāns[[#Headers],[PIRMDIENA]])*(ROUNDDOWN($B28,10)>=ROUNDDOWN(NodarbībuSaraksts[SĀKUMA LAIKS],10))*($B28<=NodarbībuSaraksts[BEIGU LAIKS]),NodarbībuSaraksts[UNIKĀLS]),NodarbībuSaraksts[UNIKĀLS],0),2),0)","v":"WR-121"},{"$f":"IFERROR(INDEX(NodarbībuSaraksts[],MATCH(SUMPRODUCT((NodarbībuSaraksts[DIENA]=NodarbībuPlāns[[#Headers],[OTRDIENA]])*(ROUNDDOWN($B28,10)>=ROUNDDOWN(NodarbībuSaraksts[SĀKUMA LAIKS],10))*($B28<=NodarbībuSaraksts[BEIGU LAIKS]),NodarbībuSaraksts[UNIKĀLS]),NodarbībuSaraksts[UNIKĀLS],0),2),0)","v":0},{"$f":"IFERROR(INDEX(NodarbībuSaraksts[],MATCH(SUMPRODUCT((NodarbībuSaraksts[DIENA]=NodarbībuPlāns[[#Headers],[TREŠDIENA]])*(ROUNDDOWN($B28,10)>=ROUNDDOWN(NodarbībuSaraksts[SĀKUMA LAIKS],10))*($B28<=NodarbībuSaraksts[BEIGU LAIKS]),NodarbībuSaraksts[UNIKĀLS]),NodarbībuSaraksts[UNIKĀLS],0),2),0)","v":"WR-121"},{"$f":"IFERROR(INDEX(NodarbībuSaraksts[],MATCH(SUMPRODUCT((NodarbībuSaraksts[DIENA]=NodarbībuPlāns[[#Headers],[CETURTDIENA]])*(ROUNDDOWN($B28,10)>=ROUNDDOWN(NodarbībuSaraksts[SĀKUMA LAIKS],10))*($B28<=NodarbībuSaraksts[BEIGU LAIKS]),NodarbībuSaraksts[UNIKĀLS]),NodarbībuSaraksts[UNIKĀLS],0),2),0)","v":0},{"$f":"IFERROR(INDEX(NodarbībuSaraksts[],MATCH(SUMPRODUCT((NodarbībuSaraksts[DIENA]=NodarbībuPlāns[[#Headers],[PIEKTDIENA]])*(ROUNDDOWN($B28,10)>=ROUNDDOWN(NodarbībuSaraksts[SĀKUMA LAIKS],10))*($B28<=NodarbībuSaraksts[BEIGU LAIKS]),NodarbībuSaraksts[UNIKĀLS]),NodarbībuSaraksts[UNIKĀLS],0),2),0)","v":0},{"$f":"IFERROR(INDEX(NodarbībuSaraksts[],MATCH(SUMPRODUCT((NodarbībuSaraksts[DIENA]=NodarbībuPlāns[[#Headers],[SESTDIENA]])*(ROUNDDOWN($B28,10)>=ROUNDDOWN(NodarbībuSaraksts[SĀKUMA LAIKS],10))*($B28<=NodarbībuSaraksts[BEIGU LAIKS]),NodarbībuSaraksts[UNIKĀLS]),NodarbībuSaraksts[UNIKĀLS],0),2),0)","v":0}]
[null,"14:15:00",{"$f":"IFERROR(INDEX(NodarbībuSaraksts[],MATCH(SUMPRODUCT((NodarbībuSaraksts[DIENA]=NodarbībuPlāns[[#Headers],[SVĒTDIENA]])*(ROUNDDOWN($B29,10)>=ROUNDDOWN(NodarbībuSaraksts[SĀKUMA LAIKS],10))*($B29<=NodarbībuSaraksts[BEIGU LAIKS]),NodarbībuSaraksts[UNIKĀLS]),NodarbībuSaraksts[UNIKĀLS],0),2),0)","v":0},{"$f":"IFERROR(INDEX(NodarbībuSaraksts[],MATCH(SUMPRODUCT((NodarbībuSaraksts[DIENA]=NodarbībuPlāns[[#Headers],[PIRMDIENA]])*(ROUNDDOWN($B29,10)>=ROUNDDOWN(NodarbībuSaraksts[SĀKUMA LAIKS],10))*($B29<=NodarbībuSaraksts[BEIGU LAIKS]),NodarbībuSaraksts[UNIKĀLS]),NodarbībuSaraksts[UNIKĀLS],0),2),0)","v":0},{"$f":"IFERROR(INDEX(NodarbībuSaraksts[],MATCH(SUMPRODUCT((NodarbībuSaraksts[DIENA]=NodarbībuPlāns[[#Headers],[OTRDIENA]])*(ROUNDDOWN($B29,10)>=ROUNDDOWN(NodarbībuSaraksts[SĀKUMA LAIKS],10))*($B29<=NodarbībuSaraksts[BEIGU LAIKS]),NodarbībuSaraksts[UNIKĀLS]),NodarbībuSaraksts[UNIKĀLS],0),2),0)","v":0},{"$f":"IFERROR(INDEX(NodarbībuSaraksts[],MATCH(SUMPRODUCT((NodarbībuSaraksts[DIENA]=NodarbībuPlāns[[#Headers],[TREŠDIENA]])*(ROUNDDOWN($B29,10)>=ROUNDDOWN(NodarbībuSaraksts[SĀKUMA LAIKS],10))*($B29<=NodarbībuSaraksts[BEIGU LAIKS]),NodarbībuSaraksts[UNIKĀLS]),NodarbībuSaraksts[UNIKĀLS],0),2),0)","v":0},{"$f":"IFERROR(INDEX(NodarbībuSaraksts[],MATCH(SUMPRODUCT((NodarbībuSaraksts[DIENA]=NodarbībuPlāns[[#Headers],[CETURTDIENA]])*(ROUNDDOWN($B29,10)>=ROUNDDOWN(NodarbībuSaraksts[SĀKUMA LAIKS],10))*($B29<=NodarbībuSaraksts[BEIGU LAIKS]),NodarbībuSaraksts[UNIKĀLS]),NodarbībuSaraksts[UNIKĀLS],0),2),0)","v":0},{"$f":"IFERROR(INDEX(NodarbībuSaraksts[],MATCH(SUMPRODUCT((NodarbībuSaraksts[DIENA]=NodarbībuPlāns[[#Headers],[PIEKTDIENA]])*(ROUNDDOWN($B29,10)>=ROUNDDOWN(NodarbībuSaraksts[SĀKUMA LAIKS],10))*($B29<=NodarbībuSaraksts[BEIGU LAIKS]),NodarbībuSaraksts[UNIKĀLS]),NodarbībuSaraksts[UNIKĀLS],0),2),0)","v":0},{"$f":"IFERROR(INDEX(NodarbībuSaraksts[],MATCH(SUMPRODUCT((NodarbībuSaraksts[DIENA]=NodarbībuPlāns[[#Headers],[SESTDIENA]])*(ROUNDDOWN($B29,10)>=ROUNDDOWN(NodarbībuSaraksts[SĀKUMA LAIKS],10))*($B29<=NodarbībuSaraksts[BEIGU LAIKS]),NodarbībuSaraksts[UNIKĀLS]),NodarbībuSaraksts[UNIKĀLS],0),2),0)","v":0}]
[null,"14:30:00",{"$f":"IFERROR(INDEX(NodarbībuSaraksts[],MATCH(SUMPRODUCT((NodarbībuSaraksts[DIENA]=NodarbībuPlāns[[#Headers],[SVĒTDIENA]])*(ROUNDDOWN($B30,10)>=ROUNDDOWN(NodarbībuSaraksts[SĀKUMA LAIKS],10))*($B30<=NodarbībuSaraksts[BEIGU LAIKS]),NodarbībuSaraksts[UNIKĀLS]),NodarbībuSaraksts[UNIKĀLS],0),2),0)","v":0},{"$f":"IFERROR(INDEX(NodarbībuSaraksts[],MATCH(SUMPRODUCT((NodarbībuSaraksts[DIENA]=NodarbībuPlāns[[#Headers],[PIRMDIENA]])*(ROUNDDOWN($B30,10)>=ROUNDDOWN(NodarbībuSaraksts[SĀKUMA LAIKS],10))*($B30<=NodarbībuSaraksts[BEIGU LAIKS]),NodarbībuSaraksts[UNIKĀLS]),NodarbībuSaraksts[UNIKĀLS],0),2),0)","v":0},{"$f":"IFERROR(INDEX(NodarbībuSaraksts[],MATCH(SUMPRODUCT((NodarbībuSaraksts[DIENA]=NodarbībuPlāns[[#Headers],[OTRDIENA]])*(ROUNDDOWN($B30,10)>=ROUNDDOWN(NodarbībuSaraksts[SĀKUMA LAIKS],10))*($B30<=NodarbībuSaraksts[BEIGU LAIKS]),NodarbībuSaraksts[UNIKĀLS]),NodarbībuSaraksts[UNIKĀLS],0),2),0)","v":0},{"$f":"IFERROR(INDEX(NodarbībuSaraksts[],MATCH(SUMPRODUCT((NodarbībuSaraksts[DIENA]=NodarbībuPlāns[[#Headers],[TREŠDIENA]])*(ROUNDDOWN($B30,10)>=ROUNDDOWN(NodarbībuSaraksts[SĀKUMA LAIKS],10))*($B30<=NodarbībuSaraksts[BEIGU LAIKS]),NodarbībuSaraksts[UNIKĀLS]),NodarbībuSaraksts[UNIKĀLS],0),2),0)","v":0},{"$f":"IFERROR(INDEX(NodarbībuSaraksts[],MATCH(SUMPRODUCT((NodarbībuSaraksts[DIENA]=NodarbībuPlāns[[#Headers],[CETURTDIENA]])*(ROUNDDOWN($B30,10)>=ROUNDDOWN(NodarbībuSaraksts[SĀKUMA LAIKS],10))*($B30<=NodarbībuSaraksts[BEIGU LAIKS]),NodarbībuSaraksts[UNIKĀLS]),NodarbībuSaraksts[UNIKĀLS],0),2),0)","v":0},{"$f":"IFERROR(INDEX(NodarbībuSaraksts[],MATCH(SUMPRODUCT((NodarbībuSaraksts[DIENA]=NodarbībuPlāns[[#Headers],[PIEKTDIENA]])*(ROUNDDOWN($B30,10)>=ROUNDDOWN(NodarbībuSaraksts[SĀKUMA LAIKS],10))*($B30<=NodarbībuSaraksts[BEIGU LAIKS]),NodarbībuSaraksts[UNIKĀLS]),NodarbībuSaraksts[UNIKĀLS],0),2),0)","v":0},{"$f":"IFERROR(INDEX(NodarbībuSaraksts[],MATCH(SUMPRODUCT((NodarbībuSaraksts[DIENA]=NodarbībuPlāns[[#Headers],[SESTDIENA]])*(ROUNDDOWN($B30,10)>=ROUNDDOWN(NodarbībuSaraksts[SĀKUMA LAIKS],10))*($B30<=NodarbībuSaraksts[BEIGU LAIKS]),NodarbībuSaraksts[UNIKĀLS]),NodarbībuSaraksts[UNIKĀLS],0),2),0)","v":0}]
[null,"14:45:00",{"$f":"IFERROR(INDEX(NodarbībuSaraksts[],MATCH(SUMPRODUCT((NodarbībuSaraksts[DIENA]=NodarbībuPlāns[[#Headers],[SVĒTDIENA]])*(ROUNDDOWN($B31,10)>=ROUNDDOWN(NodarbībuSaraksts[SĀKUMA LAIKS],10))*($B31<=NodarbībuSaraksts[BEIGU LAIKS]),NodarbībuSaraksts[UNIKĀLS]),NodarbībuSaraksts[UNIKĀLS],0),2),0)","v":0},{"$f":"IFERROR(INDEX(NodarbībuSaraksts[],MATCH(SUMPRODUCT((NodarbībuSaraksts[DIENA]=NodarbībuPlāns[[#Headers],[PIRMDIENA]])*(ROUNDDOWN($B31,10)>=ROUNDDOWN(NodarbībuSaraksts[SĀKUMA LAIKS],10))*($B31<=NodarbībuSaraksts[BEIGU LAIKS]),NodarbībuSaraksts[UNIKĀLS]),NodarbībuSaraksts[UNIKĀLS],0),2),0)","v":0},{"$f":"IFERROR(INDEX(NodarbībuSaraksts[],MATCH(SUMPRODUCT((NodarbībuSaraksts[DIENA]=NodarbībuPlāns[[#Headers],[OTRDIENA]])*(ROUNDDOWN($B31,10)>=ROUNDDOWN(NodarbībuSaraksts[SĀKUMA LAIKS],10))*($B31<=NodarbībuSaraksts[BEIGU LAIKS]),NodarbībuSaraksts[UNIKĀLS]),NodarbībuSaraksts[UNIKĀLS],0),2),0)","v":0},{"$f":"IFERROR(INDEX(NodarbībuSaraksts[],MATCH(SUMPRODUCT((NodarbībuSaraksts[DIENA]=NodarbībuPlāns[[#Headers],[TREŠDIENA]])*(ROUNDDOWN($B31,10)>=ROUNDDOWN(NodarbībuSaraksts[SĀKUMA LAIKS],10))*($B31<=NodarbībuSaraksts[BEIGU LAIKS]),NodarbībuSaraksts[UNIKĀLS]),NodarbībuSaraksts[UNIKĀLS],0),2),0)","v":0},{"$f":"IFERROR(INDEX(NodarbībuSaraksts[],MATCH(SUMPRODUCT((NodarbībuSaraksts[DIENA]=NodarbībuPlāns[[#Headers],[CETURTDIENA]])*(ROUNDDOWN($B31,10)>=ROUNDDOWN(NodarbībuSaraksts[SĀKUMA LAIKS],10))*($B31<=NodarbībuSaraksts[BEIGU LAIKS]),NodarbībuSaraksts[UNIKĀLS]),NodarbībuSaraksts[UNIKĀLS],0),2),0)","v":0},{"$f":"IFERROR(INDEX(NodarbībuSaraksts[],MATCH(SUMPRODUCT((NodarbībuSaraksts[DIENA]=NodarbībuPlāns[[#Headers],[PIEKTDIENA]])*(ROUNDDOWN($B31,10)>=ROUNDDOWN(NodarbībuSaraksts[SĀKUMA LAIKS],10))*($B31<=NodarbībuSaraksts[BEIGU LAIKS]),NodarbībuSaraksts[UNIKĀLS]),NodarbībuSaraksts[UNIKĀLS],0),2),0)","v":0},{"$f":"IFERROR(INDEX(NodarbībuSaraksts[],MATCH(SUMPRODUCT((NodarbībuSaraksts[DIENA]=NodarbībuPlāns[[#Headers],[SESTDIENA]])*(ROUNDDOWN($B31,10)>=ROUNDDOWN(NodarbībuSaraksts[SĀKUMA LAIKS],10))*($B31<=NodarbībuSaraksts[BEIGU LAIKS]),NodarbībuSaraksts[UNIKĀLS]),NodarbībuSaraksts[UNIKĀLS],0),2),0)","v":0}]
[null,"15:00:00",{"$f":"IFERROR(INDEX(NodarbībuSaraksts[],MATCH(SUMPRODUCT((NodarbībuSaraksts[DIENA]=NodarbībuPlāns[[#Headers],[SVĒTDIENA]])*(ROUNDDOWN($B32,10)>=ROUNDDOWN(NodarbībuSaraksts[SĀKUMA LAIKS],10))*($B32<=NodarbībuSaraksts[BEIGU LAIKS]),NodarbībuSaraksts[UNIKĀLS]),NodarbībuSaraksts[UNIKĀLS],0),2),0)","v":0},{"$f":"IFERROR(INDEX(NodarbībuSaraksts[],MATCH(SUMPRODUCT((NodarbībuSaraksts[DIENA]=NodarbībuPlāns[[#Headers],[PIRMDIENA]])*(ROUNDDOWN($B32,10)>=ROUNDDOWN(NodarbībuSaraksts[SĀKUMA LAIKS],10))*($B32<=NodarbībuSaraksts[BEIGU LAIKS]),NodarbībuSaraksts[UNIKĀLS]),NodarbībuSaraksts[UNIKĀLS],0),2),0)","v":0},{"$f":"IFERROR(INDEX(NodarbībuSaraksts[],MATCH(SUMPRODUCT((NodarbībuSaraksts[DIENA]=NodarbībuPlāns[[#Headers],[OTRDIENA]])*(ROUNDDOWN($B32,10)>=ROUNDDOWN(NodarbībuSaraksts[SĀKUMA LAIKS],10))*($B32<=NodarbībuSaraksts[BEIGU LAIKS]),NodarbībuSaraksts[UNIKĀLS]),NodarbībuSaraksts[UNIKĀLS],0),2),0)","v":0},{"$f":"IFERROR(INDEX(NodarbībuSaraksts[],MATCH(SUMPRODUCT((NodarbībuSaraksts[DIENA]=NodarbībuPlāns[[#Headers],[TREŠDIENA]])*(ROUNDDOWN($B32,10)>=ROUNDDOWN(NodarbībuSaraksts[SĀKUMA LAIKS],10))*($B32<=NodarbībuSaraksts[BEIGU LAIKS]),NodarbībuSaraksts[UNIKĀLS]),NodarbībuSaraksts[UNIKĀLS],0),2),0)","v":0},{"$f":"IFERROR(INDEX(NodarbībuSaraksts[],MATCH(SUMPRODUCT((NodarbībuSaraksts[DIENA]=NodarbībuPlāns[[#Headers],[CETURTDIENA]])*(ROUNDDOWN($B32,10)>=ROUNDDOWN(NodarbībuSaraksts[SĀKUMA LAIKS],10))*($B32<=NodarbībuSaraksts[BEIGU LAIKS]),NodarbībuSaraksts[UNIKĀLS]),NodarbībuSaraksts[UNIKĀLS],0),2),0)","v":0},{"$f":"IFERROR(INDEX(NodarbībuSaraksts[],MATCH(SUMPRODUCT((NodarbībuSaraksts[DIENA]=NodarbībuPlāns[[#Headers],[PIEKTDIENA]])*(ROUNDDOWN($B32,10)>=ROUNDDOWN(NodarbībuSaraksts[SĀKUMA LAIKS],10))*($B32<=NodarbībuSaraksts[BEIGU LAIKS]),NodarbībuSaraksts[UNIKĀLS]),NodarbībuSaraksts[UNIKĀLS],0),2),0)","v":0},{"$f":"IFERROR(INDEX(NodarbībuSaraksts[],MATCH(SUMPRODUCT((NodarbībuSaraksts[DIENA]=NodarbībuPlāns[[#Headers],[SESTDIENA]])*(ROUNDDOWN($B32,10)>=ROUNDDOWN(NodarbībuSaraksts[SĀKUMA LAIKS],10))*($B32<=NodarbībuSaraksts[BEIGU LAIKS]),NodarbībuSaraksts[UNIKĀLS]),NodarbībuSaraksts[UNIKĀLS],0),2),0)","v":0}]
[null,"15:15:00",{"$f":"IFERROR(INDEX(NodarbībuSaraksts[],MATCH(SUMPRODUCT((NodarbībuSaraksts[DIENA]=NodarbībuPlāns[[#Headers],[SVĒTDIENA]])*(ROUNDDOWN($B33,10)>=ROUNDDOWN(NodarbībuSaraksts[SĀKUMA LAIKS],10))*($B33<=NodarbībuSaraksts[BEIGU LAIKS]),NodarbībuSaraksts[UNIKĀLS]),NodarbībuSaraksts[UNIKĀLS],0),2),0)","v":0},{"$f":"IFERROR(INDEX(NodarbībuSaraksts[],MATCH(SUMPRODUCT((NodarbībuSaraksts[DIENA]=NodarbībuPlāns[[#Headers],[PIRMDIENA]])*(ROUNDDOWN($B33,10)>=ROUNDDOWN(NodarbībuSaraksts[SĀKUMA LAIKS],10))*($B33<=NodarbībuSaraksts[BEIGU LAIKS]),NodarbībuSaraksts[UNIKĀLS]),NodarbībuSaraksts[UNIKĀLS],0),2),0)","v":0},{"$f":"IFERROR(INDEX(NodarbībuSaraksts[],MATCH(SUMPRODUCT((NodarbībuSaraksts[DIENA]=NodarbībuPlāns[[#Headers],[OTRDIENA]])*(ROUNDDOWN($B33,10)>=ROUNDDOWN(NodarbībuSaraksts[SĀKUMA LAIKS],10))*($B33<=NodarbībuSaraksts[BEIGU LAIKS]),NodarbībuSaraksts[UNIKĀLS]),NodarbībuSaraksts[UNIKĀLS],0),2),0)","v":0},{"$f":"IFERROR(INDEX(NodarbībuSaraksts[],MATCH(SUMPRODUCT((NodarbībuSaraksts[DIENA]=NodarbībuPlāns[[#Headers],[TREŠDIENA]])*(ROUNDDOWN($B33,10)>=ROUNDDOWN(NodarbībuSaraksts[SĀKUMA LAIKS],10))*($B33<=NodarbībuSaraksts[BEIGU LAIKS]),NodarbībuSaraksts[UNIKĀLS]),NodarbībuSaraksts[UNIKĀLS],0),2),0)","v":0},{"$f":"IFERROR(INDEX(NodarbībuSaraksts[],MATCH(SUMPRODUCT((NodarbībuSaraksts[DIENA]=NodarbībuPlāns[[#Headers],[CETURTDIENA]])*(ROUNDDOWN($B33,10)>=ROUNDDOWN(NodarbībuSaraksts[SĀKUMA LAIKS],10))*($B33<=NodarbībuSaraksts[BEIGU LAIKS]),NodarbībuSaraksts[UNIKĀLS]),NodarbībuSaraksts[UNIKĀLS],0),2),0)","v":0},{"$f":"IFERROR(INDEX(NodarbībuSaraksts[],MATCH(SUMPRODUCT((NodarbībuSaraksts[DIENA]=NodarbībuPlāns[[#Headers],[PIEKTDIENA]])*(ROUNDDOWN($B33,10)>=ROUNDDOWN(NodarbībuSaraksts[SĀKUMA LAIKS],10))*($B33<=NodarbībuSaraksts[BEIGU LAIKS]),NodarbībuSaraksts[UNIKĀLS]),NodarbībuSaraksts[UNIKĀLS],0),2),0)","v":0},{"$f":"IFERROR(INDEX(NodarbībuSaraksts[],MATCH(SUMPRODUCT((NodarbībuSaraksts[DIENA]=NodarbībuPlāns[[#Headers],[SESTDIENA]])*(ROUNDDOWN($B33,10)>=ROUNDDOWN(NodarbībuSaraksts[SĀKUMA LAIKS],10))*($B33<=NodarbībuSaraksts[BEIGU LAIKS]),NodarbībuSaraksts[UNIKĀLS]),NodarbībuSaraksts[UNIKĀLS],0),2),0)","v":0}]
[null,"15:30:00",{"$f":"IFERROR(INDEX(NodarbībuSaraksts[],MATCH(SUMPRODUCT((NodarbībuSaraksts[DIENA]=NodarbībuPlāns[[#Headers],[SVĒTDIENA]])*(ROUNDDOWN($B34,10)>=ROUNDDOWN(NodarbībuSaraksts[SĀKUMA LAIKS],10))*($B34<=NodarbībuSaraksts[BEIGU LAIKS]),NodarbībuSaraksts[UNIKĀLS]),NodarbībuSaraksts[UNIKĀLS],0),2),0)","v":0},{"$f":"IFERROR(INDEX(NodarbībuSaraksts[],MATCH(SUMPRODUCT((NodarbībuSaraksts[DIENA]=NodarbībuPlāns[[#Headers],[PIRMDIENA]])*(ROUNDDOWN($B34,10)>=ROUNDDOWN(NodarbībuSaraksts[SĀKUMA LAIKS],10))*($B34<=NodarbībuSaraksts[BEIGU LAIKS]),NodarbībuSaraksts[UNIKĀLS]),NodarbībuSaraksts[UNIKĀLS],0),2),0)","v":0},{"$f":"IFERROR(INDEX(NodarbībuSaraksts[],MATCH(SUMPRODUCT((NodarbībuSaraksts[DIENA]=NodarbībuPlāns[[#Headers],[OTRDIENA]])*(ROUNDDOWN($B34,10)>=ROUNDDOWN(NodarbībuSaraksts[SĀKUMA LAIKS],10))*($B34<=NodarbībuSaraksts[BEIGU LAIKS]),NodarbībuSaraksts[UNIKĀLS]),NodarbībuSaraksts[UNIKĀLS],0),2),0)","v":0},{"$f":"IFERROR(INDEX(NodarbībuSaraksts[],MATCH(SUMPRODUCT((NodarbībuSaraksts[DIENA]=NodarbībuPlāns[[#Headers],[TREŠDIENA]])*(ROUNDDOWN($B34,10)>=ROUNDDOWN(NodarbībuSaraksts[SĀKUMA LAIKS],10))*($B34<=NodarbībuSaraksts[BEIGU LAIKS]),NodarbībuSaraksts[UNIKĀLS]),NodarbībuSaraksts[UNIKĀLS],0),2),0)","v":0},{"$f":"IFERROR(INDEX(NodarbībuSaraksts[],MATCH(SUMPRODUCT((NodarbībuSaraksts[DIENA]=NodarbībuPlāns[[#Headers],[CETURTDIENA]])*(ROUNDDOWN($B34,10)>=ROUNDDOWN(NodarbībuSaraksts[SĀKUMA LAIKS],10))*($B34<=NodarbībuSaraksts[BEIGU LAIKS]),NodarbībuSaraksts[UNIKĀLS]),NodarbībuSaraksts[UNIKĀLS],0),2),0)","v":0},{"$f":"IFERROR(INDEX(NodarbībuSaraksts[],MATCH(SUMPRODUCT((NodarbībuSaraksts[DIENA]=NodarbībuPlāns[[#Headers],[PIEKTDIENA]])*(ROUNDDOWN($B34,10)>=ROUNDDOWN(NodarbībuSaraksts[SĀKUMA LAIKS],10))*($B34<=NodarbībuSaraksts[BEIGU LAIKS]),NodarbībuSaraksts[UNIKĀLS]),NodarbībuSaraksts[UNIKĀLS],0),2),0)","v":0},{"$f":"IFERROR(INDEX(NodarbībuSaraksts[],MATCH(SUMPRODUCT((NodarbībuSaraksts[DIENA]=NodarbībuPlāns[[#Headers],[SESTDIENA]])*(ROUNDDOWN($B34,10)>=ROUNDDOWN(NodarbībuSaraksts[SĀKUMA LAIKS],10))*($B34<=NodarbībuSaraksts[BEIGU LAIKS]),NodarbībuSaraksts[UNIKĀLS]),NodarbībuSaraksts[UNIKĀLS],0),2),0)","v":0}]
[null,"15:45:00",{"$f":"IFERROR(INDEX(NodarbībuSaraksts[],MATCH(SUMPRODUCT((NodarbībuSaraksts[DIENA]=NodarbībuPlāns[[#Headers],[SVĒTDIENA]])*(ROUNDDOWN($B35,10)>=ROUNDDOWN(NodarbībuSaraksts[SĀKUMA LAIKS],10))*($B35<=NodarbībuSaraksts[BEIGU LAIKS]),NodarbībuSaraksts[UNIKĀLS]),NodarbībuSaraksts[UNIKĀLS],0),2),0)","v":0},{"$f":"IFERROR(INDEX(NodarbībuSaraksts[],MATCH(SUMPRODUCT((NodarbībuSaraksts[DIENA]=NodarbībuPlāns[[#Headers],[PIRMDIENA]])*(ROUNDDOWN($B35,10)>=ROUNDDOWN(NodarbībuSaraksts[SĀKUMA LAIKS],10))*($B35<=NodarbībuSaraksts[BEIGU LAIKS]),NodarbībuSaraksts[UNIKĀLS]),NodarbībuSaraksts[UNIKĀLS],0),2),0)","v":0},{"$f":"IFERROR(INDEX(NodarbībuSaraksts[],MATCH(SUMPRODUCT((NodarbībuSaraksts[DIENA]=NodarbībuPlāns[[#Headers],[OTRDIENA]])*(ROUNDDOWN($B35,10)>=ROUNDDOWN(NodarbībuSaraksts[SĀKUMA LAIKS],10))*($B35<=NodarbībuSaraksts[BEIGU LAIKS]),NodarbībuSaraksts[UNIKĀLS]),NodarbībuSaraksts[UNIKĀLS],0),2),0)","v":0},{"$f":"IFERROR(INDEX(NodarbībuSaraksts[],MATCH(SUMPRODUCT((NodarbībuSaraksts[DIENA]=NodarbībuPlāns[[#Headers],[TREŠDIENA]])*(ROUNDDOWN($B35,10)>=ROUNDDOWN(NodarbībuSaraksts[SĀKUMA LAIKS],10))*($B35<=NodarbībuSaraksts[BEIGU LAIKS]),NodarbībuSaraksts[UNIKĀLS]),NodarbībuSaraksts[UNIKĀLS],0),2),0)","v":0},{"$f":"IFERROR(INDEX(NodarbībuSaraksts[],MATCH(SUMPRODUCT((NodarbībuSaraksts[DIENA]=NodarbībuPlāns[[#Headers],[CETURTDIENA]])*(ROUNDDOWN($B35,10)>=ROUNDDOWN(NodarbībuSaraksts[SĀKUMA LAIKS],10))*($B35<=NodarbībuSaraksts[BEIGU LAIKS]),NodarbībuSaraksts[UNIKĀLS]),NodarbībuSaraksts[UNIKĀLS],0),2),0)","v":0},{"$f":"IFERROR(INDEX(NodarbībuSaraksts[],MATCH(SUMPRODUCT((NodarbībuSaraksts[DIENA]=NodarbībuPlāns[[#Headers],[PIEKTDIENA]])*(ROUNDDOWN($B35,10)>=ROUNDDOWN(NodarbībuSaraksts[SĀKUMA LAIKS],10))*($B35<=NodarbībuSaraksts[BEIGU LAIKS]),NodarbībuSaraksts[UNIKĀLS]),NodarbībuSaraksts[UNIKĀLS],0),2),0)","v":0},{"$f":"IFERROR(INDEX(NodarbībuSaraksts[],MATCH(SUMPRODUCT((NodarbībuSaraksts[DIENA]=NodarbībuPlāns[[#Headers],[SESTDIENA]])*(ROUNDDOWN($B35,10)>=ROUNDDOWN(NodarbībuSaraksts[SĀKUMA LAIKS],10))*($B35<=NodarbībuSaraksts[BEIGU LAIKS]),NodarbībuSaraksts[UNIKĀLS]),NodarbībuSaraksts[UNIKĀLS],0),2),0)","v":0}]
[null,"16:00:00",{"$f":"IFERROR(INDEX(NodarbībuSaraksts[],MATCH(SUMPRODUCT((NodarbībuSaraksts[DIENA]=NodarbībuPlāns[[#Headers],[SVĒTDIENA]])*(ROUNDDOWN($B36,10)>=ROUNDDOWN(NodarbībuSaraksts[SĀKUMA LAIKS],10))*($B36<=NodarbībuSaraksts[BEIGU LAIKS]),NodarbībuSaraksts[UNIKĀLS]),NodarbībuSaraksts[UNIKĀLS],0),2),0)","v":0},{"$f":"IFERROR(INDEX(NodarbībuSaraksts[],MATCH(SUMPRODUCT((NodarbībuSaraksts[DIENA]=NodarbībuPlāns[[#Headers],[PIRMDIENA]])*(ROUNDDOWN($B36,10)>=ROUNDDOWN(NodarbībuSaraksts[SĀKUMA LAIKS],10))*($B36<=NodarbībuSaraksts[BEIGU LAIKS]),NodarbībuSaraksts[UNIKĀLS]),NodarbībuSaraksts[UNIKĀLS],0),2),0)","v":"SP-111"},{"$f":"IFERROR(INDEX(NodarbībuSaraksts[],MATCH(SUMPRODUCT((NodarbībuSaraksts[DIENA]=NodarbībuPlāns[[#Headers],[OTRDIENA]])*(ROUNDDOWN($B36,10)>=ROUNDDOWN(NodarbībuSaraksts[SĀKUMA LAIKS],10))*($B36<=NodarbībuSaraksts[BEIGU LAIKS]),NodarbībuSaraksts[UNIKĀLS]),NodarbībuSaraksts[UNIKĀLS],0),2),0)","v":0},{"$f":"IFERROR(INDEX(NodarbībuSaraksts[],MATCH(SUMPRODUCT((NodarbībuSaraksts[DIENA]=NodarbībuPlāns[[#Headers],[TREŠDIENA]])*(ROUNDDOWN($B36,10)>=ROUNDDOWN(NodarbībuSaraksts[SĀKUMA LAIKS],10))*($B36<=NodarbībuSaraksts[BEIGU LAIKS]),NodarbībuSaraksts[UNIKĀLS]),NodarbībuSaraksts[UNIKĀLS],0),2),0)","v":0},{"$f":"IFERROR(INDEX(NodarbībuSaraksts[],MATCH(SUMPRODUCT((NodarbībuSaraksts[DIENA]=NodarbībuPlāns[[#Headers],[CETURTDIENA]])*(ROUNDDOWN($B36,10)>=ROUNDDOWN(NodarbībuSaraksts[SĀKUMA LAIKS],10))*($B36<=NodarbībuSaraksts[BEIGU LAIKS]),NodarbībuSaraksts[UNIKĀLS]),NodarbībuSaraksts[UNIKĀLS],0),2),0)","v":0},{"$f":"IFERROR(INDEX(NodarbībuSaraksts[],MATCH(SUMPRODUCT((NodarbībuSaraksts[DIENA]=NodarbībuPlāns[[#Headers],[PIEKTDIENA]])*(ROUNDDOWN($B36,10)>=ROUNDDOWN(NodarbībuSaraksts[SĀKUMA LAIKS],10))*($B36<=NodarbībuSaraksts[BEIGU LAIKS]),NodarbībuSaraksts[UNIKĀLS]),NodarbībuSaraksts[UNIKĀLS],0),2),0)","v":0},{"$f":"IFERROR(INDEX(NodarbībuSaraksts[],MATCH(SUMPRODUCT((NodarbībuSaraksts[DIENA]=NodarbībuPlāns[[#Headers],[SESTDIENA]])*(ROUNDDOWN($B36,10)>=ROUNDDOWN(NodarbībuSaraksts[SĀKUMA LAIKS],10))*($B36<=NodarbībuSaraksts[BEIGU LAIKS]),NodarbībuSaraksts[UNIKĀLS]),NodarbībuSaraksts[UNIKĀLS],0),2),0)","v":0}]
[null,{"$f":"B36+Pieaugums","v":"16:15:00"},{"$f":"IFERROR(INDEX(NodarbībuSaraksts[],MATCH(SUMPRODUCT((NodarbībuSaraksts[DIENA]=NodarbībuPlāns[[#Headers],[SVĒTDIENA]])*(ROUNDDOWN($B37,10)>=ROUNDDOWN(NodarbībuSaraksts[SĀKUMA LAIKS],10))*($B37<=NodarbībuSaraksts[BEIGU LAIKS]),NodarbībuSaraksts[UNIKĀLS]),NodarbībuSaraksts[UNIKĀLS],0),2),0)","v":0},{"$f":"IFERROR(INDEX(NodarbībuSaraksts[],MATCH(SUMPRODUCT((NodarbībuSaraksts[DIENA]=NodarbībuPlāns[[#Headers],[PIRMDIENA]])*(ROUNDDOWN($B37,10)>=ROUNDDOWN(NodarbībuSaraksts[SĀKUMA LAIKS],10))*($B37<=NodarbībuSaraksts[BEIGU LAIKS]),NodarbībuSaraksts[UNIKĀLS]),NodarbībuSaraksts[UNIKĀLS],0),2),0)","v":"SP-111"},{"$f":"IFERROR(INDEX(NodarbībuSaraksts[],MATCH(SUMPRODUCT((NodarbībuSaraksts[DIENA]=NodarbībuPlāns[[#Headers],[OTRDIENA]])*(ROUNDDOWN($B37,10)>=ROUNDDOWN(NodarbībuSaraksts[SĀKUMA LAIKS],10))*($B37<=NodarbībuSaraksts[BEIGU LAIKS]),NodarbībuSaraksts[UNIKĀLS]),NodarbībuSaraksts[UNIKĀLS],0),2),0)","v":0},{"$f":"IFERROR(INDEX(NodarbībuSaraksts[],MATCH(SUMPRODUCT((NodarbībuSaraksts[DIENA]=NodarbībuPlāns[[#Headers],[TREŠDIENA]])*(ROUNDDOWN($B37,10)>=ROUNDDOWN(NodarbībuSaraksts[SĀKUMA LAIKS],10))*($B37<=NodarbībuSaraksts[BEIGU LAIKS]),NodarbībuSaraksts[UNIKĀLS]),NodarbībuSaraksts[UNIKĀLS],0),2),0)","v":0},{"$f":"IFERROR(INDEX(NodarbībuSaraksts[],MATCH(SUMPRODUCT((NodarbībuSaraksts[DIENA]=NodarbībuPlāns[[#Headers],[CETURTDIENA]])*(ROUNDDOWN($B37,10)>=ROUNDDOWN(NodarbībuSaraksts[SĀKUMA LAIKS],10))*($B37<=NodarbībuSaraksts[BEIGU LAIKS]),NodarbībuSaraksts[UNIKĀLS]),NodarbībuSaraksts[UNIKĀLS],0),2),0)","v":0},{"$f":"IFERROR(INDEX(NodarbībuSaraksts[],MATCH(SUMPRODUCT((NodarbībuSaraksts[DIENA]=NodarbībuPlāns[[#Headers],[PIEKTDIENA]])*(ROUNDDOWN($B37,10)>=ROUNDDOWN(NodarbībuSaraksts[SĀKUMA LAIKS],10))*($B37<=NodarbībuSaraksts[BEIGU LAIKS]),NodarbībuSaraksts[UNIKĀLS]),NodarbībuSaraksts[UNIKĀLS],0),2),0)","v":0},{"$f":"IFERROR(INDEX(NodarbībuSaraksts[],MATCH(SUMPRODUCT((NodarbībuSaraksts[DIENA]=NodarbībuPlāns[[#Headers],[SESTDIENA]])*(ROUNDDOWN($B37,10)>=ROUNDDOWN(NodarbībuSaraksts[SĀKUMA LAIKS],10))*($B37<=NodarbībuSaraksts[BEIGU LAIKS]),NodarbībuSaraksts[UNIKĀLS]),NodarbībuSaraksts[UNIKĀLS],0),2),0)","v":0}]
[null,"16:30:00",{"$f":"IFERROR(INDEX(NodarbībuSaraksts[],MATCH(SUMPRODUCT((NodarbībuSaraksts[DIENA]=NodarbībuPlāns[[#Headers],[SVĒTDIENA]])*(ROUNDDOWN($B38,10)>=ROUNDDOWN(NodarbībuSaraksts[SĀKUMA LAIKS],10))*($B38<=NodarbībuSaraksts[BEIGU LAIKS]),NodarbībuSaraksts[UNIKĀLS]),NodarbībuSaraksts[UNIKĀLS],0),2),0)","v":0},{"$f":"IFERROR(INDEX(NodarbībuSaraksts[],MATCH(SUMPRODUCT((NodarbībuSaraksts[DIENA]=NodarbībuPlāns[[#Headers],[PIRMDIENA]])*(ROUNDDOWN($B38,10)>=ROUNDDOWN(NodarbībuSaraksts[SĀKUMA LAIKS],10))*($B38<=NodarbībuSaraksts[BEIGU LAIKS]),NodarbībuSaraksts[UNIKĀLS]),NodarbībuSaraksts[UNIKĀLS],0),2),0)","v":"SP-111"},{"$f":"IFERROR(INDEX(NodarbībuSaraksts[],MATCH(SUMPRODUCT((NodarbībuSaraksts[DIENA]=NodarbībuPlāns[[#Headers],[OTRDIENA]])*(ROUNDDOWN($B38,10)>=ROUNDDOWN(NodarbībuSaraksts[SĀKUMA LAIKS],10))*($B38<=NodarbībuSaraksts[BEIGU LAIKS]),NodarbībuSaraksts[UNIKĀLS]),NodarbībuSaraksts[UNIKĀLS],0),2),0)","v":0},{"$f":"IFERROR(INDEX(NodarbībuSaraksts[],MATCH(SUMPRODUCT((NodarbībuSaraksts[DIENA]=NodarbībuPlāns[[#Headers],[TREŠDIENA]])*(ROUNDDOWN($B38,10)>=ROUNDDOWN(NodarbībuSaraksts[SĀKUMA LAIKS],10))*($B38<=NodarbībuSaraksts[BEIGU LAIKS]),NodarbībuSaraksts[UNIKĀLS]),NodarbībuSaraksts[UNIKĀLS],0),2),0)","v":0},{"$f":"IFERROR(INDEX(NodarbībuSaraksts[],MATCH(SUMPRODUCT((NodarbībuSaraksts[DIENA]=NodarbībuPlāns[[#Headers],[CETURTDIENA]])*(ROUNDDOWN($B38,10)>=ROUNDDOWN(NodarbībuSaraksts[SĀKUMA LAIKS],10))*($B38<=NodarbībuSaraksts[BEIGU LAIKS]),NodarbībuSaraksts[UNIKĀLS]),NodarbībuSaraksts[UNIKĀLS],0),2),0)","v":0},{"$f":"IFERROR(INDEX(NodarbībuSaraksts[],MATCH(SUMPRODUCT((NodarbībuSaraksts[DIENA]=NodarbībuPlāns[[#Headers],[PIEKTDIENA]])*(ROUNDDOWN($B38,10)>=ROUNDDOWN(NodarbībuSaraksts[SĀKUMA LAIKS],10))*($B38<=NodarbībuSaraksts[BEIGU LAIKS]),NodarbībuSaraksts[UNIKĀLS]),NodarbībuSaraksts[UNIKĀLS],0),2),0)","v":0},{"$f":"IFERROR(INDEX(NodarbībuSaraksts[],MATCH(SUMPRODUCT((NodarbībuSaraksts[DIENA]=NodarbībuPlāns[[#Headers],[SESTDIENA]])*(ROUNDDOWN($B38,10)>=ROUNDDOWN(NodarbībuSaraksts[SĀKUMA LAIKS],10))*($B38<=NodarbībuSaraksts[BEIGU LAIKS]),NodarbībuSaraksts[UNIKĀLS]),NodarbībuSaraksts[UNIKĀLS],0),2),0)","v":0}]
[null,"16:45:00",{"$f":"IFERROR(INDEX(NodarbībuSaraksts[],MATCH(SUMPRODUCT((NodarbībuSaraksts[DIENA]=NodarbībuPlāns[[#Headers],[SVĒTDIENA]])*(ROUNDDOWN($B39,10)>=ROUNDDOWN(NodarbībuSaraksts[SĀKUMA LAIKS],10))*($B39<=NodarbībuSaraksts[BEIGU LAIKS]),NodarbībuSaraksts[UNIKĀLS]),NodarbībuSaraksts[UNIKĀLS],0),2),0)","v":0},{"$f":"IFERROR(INDEX(NodarbībuSaraksts[],MATCH(SUMPRODUCT((NodarbībuSaraksts[DIENA]=NodarbībuPlāns[[#Headers],[PIRMDIENA]])*(ROUNDDOWN($B39,10)>=ROUNDDOWN(NodarbībuSaraksts[SĀKUMA LAIKS],10))*($B39<=NodarbībuSaraksts[BEIGU LAIKS]),NodarbībuSaraksts[UNIKĀLS]),NodarbībuSaraksts[UNIKĀLS],0),2),0)","v":"SP-111"},{"$f":"IFERROR(INDEX(NodarbībuSaraksts[],MATCH(SUMPRODUCT((NodarbībuSaraksts[DIENA]=NodarbībuPlāns[[#Headers],[OTRDIENA]])*(ROUNDDOWN($B39,10)>=ROUNDDOWN(NodarbībuSaraksts[SĀKUMA LAIKS],10))*($B39<=NodarbībuSaraksts[BEIGU LAIKS]),NodarbībuSaraksts[UNIKĀLS]),NodarbībuSaraksts[UNIKĀLS],0),2),0)","v":0},{"$f":"IFERROR(INDEX(NodarbībuSaraksts[],MATCH(SUMPRODUCT((NodarbībuSaraksts[DIENA]=NodarbībuPlāns[[#Headers],[TREŠDIENA]])*(ROUNDDOWN($B39,10)>=ROUNDDOWN(NodarbībuSaraksts[SĀKUMA LAIKS],10))*($B39<=NodarbībuSaraksts[BEIGU LAIKS]),NodarbībuSaraksts[UNIKĀLS]),NodarbībuSaraksts[UNIKĀLS],0),2),0)","v":0},{"$f":"IFERROR(INDEX(NodarbībuSaraksts[],MATCH(SUMPRODUCT((NodarbībuSaraksts[DIENA]=NodarbībuPlāns[[#Headers],[CETURTDIENA]])*(ROUNDDOWN($B39,10)>=ROUNDDOWN(NodarbībuSaraksts[SĀKUMA LAIKS],10))*($B39<=NodarbībuSaraksts[BEIGU LAIKS]),NodarbībuSaraksts[UNIKĀLS]),NodarbībuSaraksts[UNIKĀLS],0),2),0)","v":0},{"$f":"IFERROR(INDEX(NodarbībuSaraksts[],MATCH(SUMPRODUCT((NodarbībuSaraksts[DIENA]=NodarbībuPlāns[[#Headers],[PIEKTDIENA]])*(ROUNDDOWN($B39,10)>=ROUNDDOWN(NodarbībuSaraksts[SĀKUMA LAIKS],10))*($B39<=NodarbībuSaraksts[BEIGU LAIKS]),NodarbībuSaraksts[UNIKĀLS]),NodarbībuSaraksts[UNIKĀLS],0),2),0)","v":0},{"$f":"IFERROR(INDEX(NodarbībuSaraksts[],MATCH(SUMPRODUCT((NodarbībuSaraksts[DIENA]=NodarbībuPlāns[[#Headers],[SESTDIENA]])*(ROUNDDOWN($B39,10)>=ROUNDDOWN(NodarbībuSaraksts[SĀKUMA LAIKS],10))*($B39<=NodarbībuSaraksts[BEIGU LAIKS]),NodarbībuSaraksts[UNIKĀLS]),NodarbībuSaraksts[UNIKĀLS],0),2),0)","v":0}]
[null,"17:00:00",{"$f":"IFERROR(INDEX(NodarbībuSaraksts[],MATCH(SUMPRODUCT((NodarbībuSaraksts[DIENA]=NodarbībuPlāns[[#Headers],[SVĒTDIENA]])*(ROUNDDOWN($B40,10)>=ROUNDDOWN(NodarbībuSaraksts[SĀKUMA LAIKS],10))*($B40<=NodarbībuSaraksts[BEIGU LAIKS]),NodarbībuSaraksts[UNIKĀLS]),NodarbībuSaraksts[UNIKĀLS],0),2),0)","v":0},{"$f":"IFERROR(INDEX(NodarbībuSaraksts[],MATCH(SUMPRODUCT((NodarbībuSaraksts[DIENA]=NodarbībuPlāns[[#Headers],[PIRMDIENA]])*(ROUNDDOWN($B40,10)>=ROUNDDOWN(NodarbībuSaraksts[SĀKUMA LAIKS],10))*($B40<=NodarbībuSaraksts[BEIGU LAIKS]),NodarbībuSaraksts[UNIKĀLS]),NodarbībuSaraksts[UNIKĀLS],0),2),0)","v":"SP-111"},{"$f":"IFERROR(INDEX(NodarbībuSaraksts[],MATCH(SUMPRODUCT((NodarbībuSaraksts[DIENA]=NodarbībuPlāns[[#Headers],[OTRDIENA]])*(ROUNDDOWN($B40,10)>=ROUNDDOWN(NodarbībuSaraksts[SĀKUMA LAIKS],10))*($B40<=NodarbībuSaraksts[BEIGU LAIKS]),NodarbībuSaraksts[UNIKĀLS]),NodarbībuSaraksts[UNIKĀLS],0),2),0)","v":0},{"$f":"IFERROR(INDEX(NodarbībuSaraksts[],MATCH(SUMPRODUCT((NodarbībuSaraksts[DIENA]=NodarbībuPlāns[[#Headers],[TREŠDIENA]])*(ROUNDDOWN($B40,10)>=ROUNDDOWN(NodarbībuSaraksts[SĀKUMA LAIKS],10))*($B40<=NodarbībuSaraksts[BEIGU LAIKS]),NodarbībuSaraksts[UNIKĀLS]),NodarbībuSaraksts[UNIKĀLS],0),2),0)","v":0},{"$f":"IFERROR(INDEX(NodarbībuSaraksts[],MATCH(SUMPRODUCT((NodarbībuSaraksts[DIENA]=NodarbībuPlāns[[#Headers],[CETURTDIENA]])*(ROUNDDOWN($B40,10)>=ROUNDDOWN(NodarbībuSaraksts[SĀKUMA LAIKS],10))*($B40<=NodarbībuSaraksts[BEIGU LAIKS]),NodarbībuSaraksts[UNIKĀLS]),NodarbībuSaraksts[UNIKĀLS],0),2),0)","v":0},{"$f":"IFERROR(INDEX(NodarbībuSaraksts[],MATCH(SUMPRODUCT((NodarbībuSaraksts[DIENA]=NodarbībuPlāns[[#Headers],[PIEKTDIENA]])*(ROUNDDOWN($B40,10)>=ROUNDDOWN(NodarbībuSaraksts[SĀKUMA LAIKS],10))*($B40<=NodarbībuSaraksts[BEIGU LAIKS]),NodarbībuSaraksts[UNIKĀLS]),NodarbībuSaraksts[UNIKĀLS],0),2),0)","v":0},{"$f":"IFERROR(INDEX(NodarbībuSaraksts[],MATCH(SUMPRODUCT((NodarbībuSaraksts[DIENA]=NodarbībuPlāns[[#Headers],[SESTDIENA]])*(ROUNDDOWN($B40,10)>=ROUNDDOWN(NodarbībuSaraksts[SĀKUMA LAIKS],10))*($B40<=NodarbībuSaraksts[BEIGU LAIKS]),NodarbībuSaraksts[UNIKĀLS]),NodarbībuSaraksts[UNIKĀLS],0),2),0)","v":0}]
[null,"17:15:00",{"$f":"IFERROR(INDEX(NodarbībuSaraksts[],MATCH(SUMPRODUCT((NodarbībuSaraksts[DIENA]=NodarbībuPlāns[[#Headers],[SVĒTDIENA]])*(ROUNDDOWN($B41,10)>=ROUNDDOWN(NodarbībuSaraksts[SĀKUMA LAIKS],10))*($B41<=NodarbībuSaraksts[BEIGU LAIKS]),NodarbībuSaraksts[UNIKĀLS]),NodarbībuSaraksts[UNIKĀLS],0),2),0)","v":0},{"$f":"IFERROR(INDEX(NodarbībuSaraksts[],MATCH(SUMPRODUCT((NodarbībuSaraksts[DIENA]=NodarbībuPlāns[[#Headers],[PIRMDIENA]])*(ROUNDDOWN($B41,10)>=ROUNDDOWN(NodarbībuSaraksts[SĀKUMA LAIKS],10))*($B41<=NodarbībuSaraksts[BEIGU LAIKS]),NodarbībuSaraksts[UNIKĀLS]),NodarbībuSaraksts[UNIKĀLS],0),2),0)","v":0},{"$f":"IFERROR(INDEX(NodarbībuSaraksts[],MATCH(SUMPRODUCT((NodarbībuSaraksts[DIENA]=NodarbībuPlāns[[#Headers],[OTRDIENA]])*(ROUNDDOWN($B41,10)>=ROUNDDOWN(NodarbībuSaraksts[SĀKUMA LAIKS],10))*($B41<=NodarbībuSaraksts[BEIGU LAIKS]),NodarbībuSaraksts[UNIKĀLS]),NodarbībuSaraksts[UNIKĀLS],0),2),0)","v":0},{"$f":"IFERROR(INDEX(NodarbībuSaraksts[],MATCH(SUMPRODUCT((NodarbībuSaraksts[DIENA]=NodarbībuPlāns[[#Headers],[TREŠDIENA]])*(ROUNDDOWN($B41,10)>=ROUNDDOWN(NodarbībuSaraksts[SĀKUMA LAIKS],10))*($B41<=NodarbībuSaraksts[BEIGU LAIKS]),NodarbībuSaraksts[UNIKĀLS]),NodarbībuSaraksts[UNIKĀLS],0),2),0)","v":0},{"$f":"IFERROR(INDEX(NodarbībuSaraksts[],MATCH(SUMPRODUCT((NodarbībuSaraksts[DIENA]=NodarbībuPlāns[[#Headers],[CETURTDIENA]])*(ROUNDDOWN($B41,10)>=ROUNDDOWN(NodarbībuSaraksts[SĀKUMA LAIKS],10))*($B41<=NodarbībuSaraksts[BEIGU LAIKS]),NodarbībuSaraksts[UNIKĀLS]),NodarbībuSaraksts[UNIKĀLS],0),2),0)","v":0},{"$f":"IFERROR(INDEX(NodarbībuSaraksts[],MATCH(SUMPRODUCT((NodarbībuSaraksts[DIENA]=NodarbībuPlāns[[#Headers],[PIEKTDIENA]])*(ROUNDDOWN($B41,10)>=ROUNDDOWN(NodarbībuSaraksts[SĀKUMA LAIKS],10))*($B41<=NodarbībuSaraksts[BEIGU LAIKS]),NodarbībuSaraksts[UNIKĀLS]),NodarbībuSaraksts[UNIKĀLS],0),2),0)","v":0},{"$f":"IFERROR(INDEX(NodarbībuSaraksts[],MATCH(SUMPRODUCT((NodarbībuSaraksts[DIENA]=NodarbībuPlāns[[#Headers],[SESTDIENA]])*(ROUNDDOWN($B41,10)>=ROUNDDOWN(NodarbībuSaraksts[SĀKUMA LAIKS],10))*($B41<=NodarbībuSaraksts[BEIGU LAIKS]),NodarbībuSaraksts[UNIKĀLS]),NodarbībuSaraksts[UNIKĀLS],0),2),0)","v":0}]
[null,"17:30:00",{"$f":"IFERROR(INDEX(NodarbībuSaraksts[],MATCH(SUMPRODUCT((NodarbībuSaraksts[DIENA]=NodarbībuPlāns[[#Headers],[SVĒTDIENA]])*(ROUNDDOWN($B42,10)>=ROUNDDOWN(NodarbībuSaraksts[SĀKUMA LAIKS],10))*($B42<=NodarbībuSaraksts[BEIGU LAIKS]),NodarbībuSaraksts[UNIKĀLS]),NodarbībuSaraksts[UNIKĀLS],0),2),0)","v":0},{"$f":"IFERROR(INDEX(NodarbībuSaraksts[],MATCH(SUMPRODUCT((NodarbībuSaraksts[DIENA]=NodarbībuPlāns[[#Headers],[PIRMDIENA]])*(ROUNDDOWN($B42,10)>=ROUNDDOWN(NodarbībuSaraksts[SĀKUMA LAIKS],10))*($B42<=NodarbībuSaraksts[BEIGU LAIKS]),NodarbībuSaraksts[UNIKĀLS]),NodarbībuSaraksts[UNIKĀLS],0),2),0)","v":0},{"$f":"IFERROR(INDEX(NodarbībuSaraksts[],MATCH(SUMPRODUCT((NodarbībuSaraksts[DIENA]=NodarbībuPlāns[[#Headers],[OTRDIENA]])*(ROUNDDOWN($B42,10)>=ROUNDDOWN(NodarbībuSaraksts[SĀKUMA LAIKS],10))*($B42<=NodarbībuSaraksts[BEIGU LAIKS]),NodarbībuSaraksts[UNIKĀLS]),NodarbībuSaraksts[UNIKĀLS],0),2),0)","v":0},{"$f":"IFERROR(INDEX(NodarbībuSaraksts[],MATCH(SUMPRODUCT((NodarbībuSaraksts[DIENA]=NodarbībuPlāns[[#Headers],[TREŠDIENA]])*(ROUNDDOWN($B42,10)>=ROUNDDOWN(NodarbībuSaraksts[SĀKUMA LAIKS],10))*($B42<=NodarbībuSaraksts[BEIGU LAIKS]),NodarbībuSaraksts[UNIKĀLS]),NodarbībuSaraksts[UNIKĀLS],0),2),0)","v":0},{"$f":"IFERROR(INDEX(NodarbībuSaraksts[],MATCH(SUMPRODUCT((NodarbībuSaraksts[DIENA]=NodarbībuPlāns[[#Headers],[CETURTDIENA]])*(ROUNDDOWN($B42,10)>=ROUNDDOWN(NodarbībuSaraksts[SĀKUMA LAIKS],10))*($B42<=NodarbībuSaraksts[BEIGU LAIKS]),NodarbībuSaraksts[UNIKĀLS]),NodarbībuSaraksts[UNIKĀLS],0),2),0)","v":0},{"$f":"IFERROR(INDEX(NodarbībuSaraksts[],MATCH(SUMPRODUCT((NodarbībuSaraksts[DIENA]=NodarbībuPlāns[[#Headers],[PIEKTDIENA]])*(ROUNDDOWN($B42,10)>=ROUNDDOWN(NodarbībuSaraksts[SĀKUMA LAIKS],10))*($B42<=NodarbībuSaraksts[BEIGU LAIKS]),NodarbībuSaraksts[UNIKĀLS]),NodarbībuSaraksts[UNIKĀLS],0),2),0)","v":0},{"$f":"IFERROR(INDEX(NodarbībuSaraksts[],MATCH(SUMPRODUCT((NodarbībuSaraksts[DIENA]=NodarbībuPlāns[[#Headers],[SESTDIENA]])*(ROUNDDOWN($B42,10)>=ROUNDDOWN(NodarbībuSaraksts[SĀKUMA LAIKS],10))*($B42<=NodarbībuSaraksts[BEIGU LAIKS]),NodarbībuSaraksts[UNIKĀLS]),NodarbībuSaraksts[UNIKĀLS],0),2),0)","v":0}]
[null,"17:45:00",{"$f":"IFERROR(INDEX(NodarbībuSaraksts[],MATCH(SUMPRODUCT((NodarbībuSaraksts[DIENA]=NodarbībuPlāns[[#Headers],[SVĒTDIENA]])*(ROUNDDOWN($B43,10)>=ROUNDDOWN(NodarbībuSaraksts[SĀKUMA LAIKS],10))*($B43<=NodarbībuSaraksts[BEIGU LAIKS]),NodarbībuSaraksts[UNIKĀLS]),NodarbībuSaraksts[UNIKĀLS],0),2),0)","v":0},{"$f":"IFERROR(INDEX(NodarbībuSaraksts[],MATCH(SUMPRODUCT((NodarbībuSaraksts[DIENA]=NodarbībuPlāns[[#Headers],[PIRMDIENA]])*(ROUNDDOWN($B43,10)>=ROUNDDOWN(NodarbībuSaraksts[SĀKUMA LAIKS],10))*($B43<=NodarbībuSaraksts[BEIGU LAIKS]),NodarbībuSaraksts[UNIKĀLS]),NodarbībuSaraksts[UNIKĀLS],0),2),0)","v":0},{"$f":"IFERROR(INDEX(NodarbībuSaraksts[],MATCH(SUMPRODUCT((NodarbībuSaraksts[DIENA]=NodarbībuPlāns[[#Headers],[OTRDIENA]])*(ROUNDDOWN($B43,10)>=ROUNDDOWN(NodarbībuSaraksts[SĀKUMA LAIKS],10))*($B43<=NodarbībuSaraksts[BEIGU LAIKS]),NodarbībuSaraksts[UNIKĀLS]),NodarbībuSaraksts[UNIKĀLS],0),2),0)","v":0},{"$f":"IFERROR(INDEX(NodarbībuSaraksts[],MATCH(SUMPRODUCT((NodarbībuSaraksts[DIENA]=NodarbībuPlāns[[#Headers],[TREŠDIENA]])*(ROUNDDOWN($B43,10)>=ROUNDDOWN(NodarbībuSaraksts[SĀKUMA LAIKS],10))*($B43<=NodarbībuSaraksts[BEIGU LAIKS]),NodarbībuSaraksts[UNIKĀLS]),NodarbībuSaraksts[UNIKĀLS],0),2),0)","v":0},{"$f":"IFERROR(INDEX(NodarbībuSaraksts[],MATCH(SUMPRODUCT((NodarbībuSaraksts[DIENA]=NodarbībuPlāns[[#Headers],[CETURTDIENA]])*(ROUNDDOWN($B43,10)>=ROUNDDOWN(NodarbībuSaraksts[SĀKUMA LAIKS],10))*($B43<=NodarbībuSaraksts[BEIGU LAIKS]),NodarbībuSaraksts[UNIKĀLS]),NodarbībuSaraksts[UNIKĀLS],0),2),0)","v":0},{"$f":"IFERROR(INDEX(NodarbībuSaraksts[],MATCH(SUMPRODUCT((NodarbībuSaraksts[DIENA]=NodarbībuPlāns[[#Headers],[PIEKTDIENA]])*(ROUNDDOWN($B43,10)>=ROUNDDOWN(NodarbībuSaraksts[SĀKUMA LAIKS],10))*($B43<=NodarbībuSaraksts[BEIGU LAIKS]),NodarbībuSaraksts[UNIKĀLS]),NodarbībuSaraksts[UNIKĀLS],0),2),0)","v":0},{"$f":"IFERROR(INDEX(NodarbībuSaraksts[],MATCH(SUMPRODUCT((NodarbībuSaraksts[DIENA]=NodarbībuPlāns[[#Headers],[SESTDIENA]])*(ROUNDDOWN($B43,10)>=ROUNDDOWN(NodarbībuSaraksts[SĀKUMA LAIKS],10))*($B43<=NodarbībuSaraksts[BEIGU LAIKS]),NodarbībuSaraksts[UNIKĀLS]),NodarbībuSaraksts[UNIKĀLS],0),2),0)","v":0}]
[null,"18:00:00",{"$f":"IFERROR(INDEX(NodarbībuSaraksts[],MATCH(SUMPRODUCT((NodarbībuSaraksts[DIENA]=NodarbībuPlāns[[#Headers],[SVĒTDIENA]])*(ROUNDDOWN($B44,10)>=ROUNDDOWN(NodarbībuSaraksts[SĀKUMA LAIKS],10))*($B44<=NodarbībuSaraksts[BEIGU LAIKS]),NodarbībuSaraksts[UNIKĀLS]),NodarbībuSaraksts[UNIKĀLS],0),2),0)","v":0},{"$f":"IFERROR(INDEX(NodarbībuSaraksts[],MATCH(SUMPRODUCT((NodarbībuSaraksts[DIENA]=NodarbībuPlāns[[#Headers],[PIRMDIENA]])*(ROUNDDOWN($B44,10)>=ROUNDDOWN(NodarbībuSaraksts[SĀKUMA LAIKS],10))*($B44<=NodarbībuSaraksts[BEIGU LAIKS]),NodarbībuSaraksts[UNIKĀLS]),NodarbībuSaraksts[UNIKĀLS],0),2),0)","v":0},{"$f":"IFERROR(INDEX(NodarbībuSaraksts[],MATCH(SUMPRODUCT((NodarbībuSaraksts[DIENA]=NodarbībuPlāns[[#Headers],[OTRDIENA]])*(ROUNDDOWN($B44,10)>=ROUNDDOWN(NodarbībuSaraksts[SĀKUMA LAIKS],10))*($B44<=NodarbībuSaraksts[BEIGU LAIKS]),NodarbībuSaraksts[UNIKĀLS]),NodarbībuSaraksts[UNIKĀLS],0),2),0)","v":0},{"$f":"IFERROR(INDEX(NodarbībuSaraksts[],MATCH(SUMPRODUCT((NodarbībuSaraksts[DIENA]=NodarbībuPlāns[[#Headers],[TREŠDIENA]])*(ROUNDDOWN($B44,10)>=ROUNDDOWN(NodarbībuSaraksts[SĀKUMA LAIKS],10))*($B44<=NodarbībuSaraksts[BEIGU LAIKS]),NodarbībuSaraksts[UNIKĀLS]),NodarbībuSaraksts[UNIKĀLS],0),2),0)","v":0},{"$f":"IFERROR(INDEX(NodarbībuSaraksts[],MATCH(SUMPRODUCT((NodarbībuSaraksts[DIENA]=NodarbībuPlāns[[#Headers],[CETURTDIENA]])*(ROUNDDOWN($B44,10)>=ROUNDDOWN(NodarbībuSaraksts[SĀKUMA LAIKS],10))*($B44<=NodarbībuSaraksts[BEIGU LAIKS]),NodarbībuSaraksts[UNIKĀLS]),NodarbībuSaraksts[UNIKĀLS],0),2),0)","v":0},{"$f":"IFERROR(INDEX(NodarbībuSaraksts[],MATCH(SUMPRODUCT((NodarbībuSaraksts[DIENA]=NodarbībuPlāns[[#Headers],[PIEKTDIENA]])*(ROUNDDOWN($B44,10)>=ROUNDDOWN(NodarbībuSaraksts[SĀKUMA LAIKS],10))*($B44<=NodarbībuSaraksts[BEIGU LAIKS]),NodarbībuSaraksts[UNIKĀLS]),NodarbībuSaraksts[UNIKĀLS],0),2),0)","v":0},{"$f":"IFERROR(INDEX(NodarbībuSaraksts[],MATCH(SUMPRODUCT((NodarbībuSaraksts[DIENA]=NodarbībuPlāns[[#Headers],[SESTDIENA]])*(ROUNDDOWN($B44,10)>=ROUNDDOWN(NodarbībuSaraksts[SĀKUMA LAIKS],10))*($B44<=NodarbībuSaraksts[BEIGU LAIKS]),NodarbībuSaraksts[UNIKĀLS]),NodarbībuSaraksts[UNIKĀLS],0),2),0)","v":0}]
[null,"18:15:00",{"$f":"IFERROR(INDEX(NodarbībuSaraksts[],MATCH(SUMPRODUCT((NodarbībuSaraksts[DIENA]=NodarbībuPlāns[[#Headers],[SVĒTDIENA]])*(ROUNDDOWN($B45,10)>=ROUNDDOWN(NodarbībuSaraksts[SĀKUMA LAIKS],10))*($B45<=NodarbībuSaraksts[BEIGU LAIKS]),NodarbībuSaraksts[UNIKĀLS]),NodarbībuSaraksts[UNIKĀLS],0),2),0)","v":0},{"$f":"IFERROR(INDEX(NodarbībuSaraksts[],MATCH(SUMPRODUCT((NodarbībuSaraksts[DIENA]=NodarbībuPlāns[[#Headers],[PIRMDIENA]])*(ROUNDDOWN($B45,10)>=ROUNDDOWN(NodarbībuSaraksts[SĀKUMA LAIKS],10))*($B45<=NodarbībuSaraksts[BEIGU LAIKS]),NodarbībuSaraksts[UNIKĀLS]),NodarbībuSaraksts[UNIKĀLS],0),2),0)","v":0},{"$f":"IFERROR(INDEX(NodarbībuSaraksts[],MATCH(SUMPRODUCT((NodarbībuSaraksts[DIENA]=NodarbībuPlāns[[#Headers],[OTRDIENA]])*(ROUNDDOWN($B45,10)>=ROUNDDOWN(NodarbībuSaraksts[SĀKUMA LAIKS],10))*($B45<=NodarbībuSaraksts[BEIGU LAIKS]),NodarbībuSaraksts[UNIKĀLS]),NodarbībuSaraksts[UNIKĀLS],0),2),0)","v":0},{"$f":"IFERROR(INDEX(NodarbībuSaraksts[],MATCH(SUMPRODUCT((NodarbībuSaraksts[DIENA]=NodarbībuPlāns[[#Headers],[TREŠDIENA]])*(ROUNDDOWN($B45,10)>=ROUNDDOWN(NodarbībuSaraksts[SĀKUMA LAIKS],10))*($B45<=NodarbībuSaraksts[BEIGU LAIKS]),NodarbībuSaraksts[UNIKĀLS]),NodarbībuSaraksts[UNIKĀLS],0),2),0)","v":0},{"$f":"IFERROR(INDEX(NodarbībuSaraksts[],MATCH(SUMPRODUCT((NodarbībuSaraksts[DIENA]=NodarbībuPlāns[[#Headers],[CETURTDIENA]])*(ROUNDDOWN($B45,10)>=ROUNDDOWN(NodarbībuSaraksts[SĀKUMA LAIKS],10))*($B45<=NodarbībuSaraksts[BEIGU LAIKS]),NodarbībuSaraksts[UNIKĀLS]),NodarbībuSaraksts[UNIKĀLS],0),2),0)","v":0},{"$f":"IFERROR(INDEX(NodarbībuSaraksts[],MATCH(SUMPRODUCT((NodarbībuSaraksts[DIENA]=NodarbībuPlāns[[#Headers],[PIEKTDIENA]])*(ROUNDDOWN($B45,10)>=ROUNDDOWN(NodarbībuSaraksts[SĀKUMA LAIKS],10))*($B45<=NodarbībuSaraksts[BEIGU LAIKS]),NodarbībuSaraksts[UNIKĀLS]),NodarbībuSaraksts[UNIKĀLS],0),2),0)","v":0},{"$f":"IFERROR(INDEX(NodarbībuSaraksts[],MATCH(SUMPRODUCT((NodarbībuSaraksts[DIENA]=NodarbībuPlāns[[#Headers],[SESTDIENA]])*(ROUNDDOWN($B45,10)>=ROUNDDOWN(NodarbībuSaraksts[SĀKUMA LAIKS],10))*($B45<=NodarbībuSaraksts[BEIGU LAIKS]),NodarbībuSaraksts[UNIKĀLS]),NodarbībuSaraksts[UNIKĀLS],0),2),0)","v":0}]
[null,"18:30:00",{"$f":"IFERROR(INDEX(NodarbībuSaraksts[],MATCH(SUMPRODUCT((NodarbībuSaraksts[DIENA]=NodarbībuPlāns[[#Headers],[SVĒTDIENA]])*(ROUNDDOWN($B46,10)>=ROUNDDOWN(NodarbībuSaraksts[SĀKUMA LAIKS],10))*($B46<=NodarbībuSaraksts[BEIGU LAIKS]),NodarbībuSaraksts[UNIKĀLS]),NodarbībuSaraksts[UNIKĀLS],0),2),0)","v":0},{"$f":"IFERROR(INDEX(NodarbībuSaraksts[],MATCH(SUMPRODUCT((NodarbībuSaraksts[DIENA]=NodarbībuPlāns[[#Headers],[PIRMDIENA]])*(ROUNDDOWN($B46,10)>=ROUNDDOWN(NodarbībuSaraksts[SĀKUMA LAIKS],10))*($B46<=NodarbībuSaraksts[BEIGU LAIKS]),NodarbībuSaraksts[UNIKĀLS]),NodarbībuSaraksts[UNIKĀLS],0),2),0)","v":0},{"$f":"IFERROR(INDEX(NodarbībuSaraksts[],MATCH(SUMPRODUCT((NodarbībuSaraksts[DIENA]=NodarbībuPlāns[[#Headers],[OTRDIENA]])*(ROUNDDOWN($B46,10)>=ROUNDDOWN(NodarbībuSaraksts[SĀKUMA LAIKS],10))*($B46<=NodarbībuSaraksts[BEIGU LAIKS]),NodarbībuSaraksts[UNIKĀLS]),NodarbībuSaraksts[UNIKĀLS],0),2),0)","v":0},{"$f":"IFERROR(INDEX(NodarbībuSaraksts[],MATCH(SUMPRODUCT((NodarbībuSaraksts[DIENA]=NodarbībuPlāns[[#Headers],[TREŠDIENA]])*(ROUNDDOWN($B46,10)>=ROUNDDOWN(NodarbībuSaraksts[SĀKUMA LAIKS],10))*($B46<=NodarbībuSaraksts[BEIGU LAIKS]),NodarbībuSaraksts[UNIKĀLS]),NodarbībuSaraksts[UNIKĀLS],0),2),0)","v":0},{"$f":"IFERROR(INDEX(NodarbībuSaraksts[],MATCH(SUMPRODUCT((NodarbībuSaraksts[DIENA]=NodarbībuPlāns[[#Headers],[CETURTDIENA]])*(ROUNDDOWN($B46,10)>=ROUNDDOWN(NodarbībuSaraksts[SĀKUMA LAIKS],10))*($B46<=NodarbībuSaraksts[BEIGU LAIKS]),NodarbībuSaraksts[UNIKĀLS]),NodarbībuSaraksts[UNIKĀLS],0),2),0)","v":0},{"$f":"IFERROR(INDEX(NodarbībuSaraksts[],MATCH(SUMPRODUCT((NodarbībuSaraksts[DIENA]=NodarbībuPlāns[[#Headers],[PIEKTDIENA]])*(ROUNDDOWN($B46,10)>=ROUNDDOWN(NodarbībuSaraksts[SĀKUMA LAIKS],10))*($B46<=NodarbībuSaraksts[BEIGU LAIKS]),NodarbībuSaraksts[UNIKĀLS]),NodarbībuSaraksts[UNIKĀLS],0),2),0)","v":0},{"$f":"IFERROR(INDEX(NodarbībuSaraksts[],MATCH(SUMPRODUCT((NodarbībuSaraksts[DIENA]=NodarbībuPlāns[[#Headers],[SESTDIENA]])*(ROUNDDOWN($B46,10)>=ROUNDDOWN(NodarbībuSaraksts[SĀKUMA LAIKS],10))*($B46<=NodarbībuSaraksts[BEIGU LAIKS]),NodarbībuSaraksts[UNIKĀLS]),NodarbībuSaraksts[UNIKĀLS],0),2),0)","v":0}]
[null,"18:45:00",{"$f":"IFERROR(INDEX(NodarbībuSaraksts[],MATCH(SUMPRODUCT((NodarbībuSaraksts[DIENA]=NodarbībuPlāns[[#Headers],[SVĒTDIENA]])*(ROUNDDOWN($B47,10)>=ROUNDDOWN(NodarbībuSaraksts[SĀKUMA LAIKS],10))*($B47<=NodarbībuSaraksts[BEIGU LAIKS]),NodarbībuSaraksts[UNIKĀLS]),NodarbībuSaraksts[UNIKĀLS],0),2),0)","v":0},{"$f":"IFERROR(INDEX(NodarbībuSaraksts[],MATCH(SUMPRODUCT((NodarbībuSaraksts[DIENA]=NodarbībuPlāns[[#Headers],[PIRMDIENA]])*(ROUNDDOWN($B47,10)>=ROUNDDOWN(NodarbībuSaraksts[SĀKUMA LAIKS],10))*($B47<=NodarbībuSaraksts[BEIGU LAIKS]),NodarbībuSaraksts[UNIKĀLS]),NodarbībuSaraksts[UNIKĀLS],0),2),0)","v":0},{"$f":"IFERROR(INDEX(NodarbībuSaraksts[],MATCH(SUMPRODUCT((NodarbībuSaraksts[DIENA]=NodarbībuPlāns[[#Headers],[OTRDIENA]])*(ROUNDDOWN($B47,10)>=ROUNDDOWN(NodarbībuSaraksts[SĀKUMA LAIKS],10))*($B47<=NodarbībuSaraksts[BEIGU LAIKS]),NodarbībuSaraksts[UNIKĀLS]),NodarbībuSaraksts[UNIKĀLS],0),2),0)","v":0},{"$f":"IFERROR(INDEX(NodarbībuSaraksts[],MATCH(SUMPRODUCT((NodarbībuSaraksts[DIENA]=NodarbībuPlāns[[#Headers],[TREŠDIENA]])*(ROUNDDOWN($B47,10)>=ROUNDDOWN(NodarbībuSaraksts[SĀKUMA LAIKS],10))*($B47<=NodarbībuSaraksts[BEIGU LAIKS]),NodarbībuSaraksts[UNIKĀLS]),NodarbībuSaraksts[UNIKĀLS],0),2),0)","v":0},{"$f":"IFERROR(INDEX(NodarbībuSaraksts[],MATCH(SUMPRODUCT((NodarbībuSaraksts[DIENA]=NodarbībuPlāns[[#Headers],[CETURTDIENA]])*(ROUNDDOWN($B47,10)>=ROUNDDOWN(NodarbībuSaraksts[SĀKUMA LAIKS],10))*($B47<=NodarbībuSaraksts[BEIGU LAIKS]),NodarbībuSaraksts[UNIKĀLS]),NodarbībuSaraksts[UNIKĀLS],0),2),0)","v":0},{"$f":"IFERROR(INDEX(NodarbībuSaraksts[],MATCH(SUMPRODUCT((NodarbībuSaraksts[DIENA]=NodarbībuPlāns[[#Headers],[PIEKTDIENA]])*(ROUNDDOWN($B47,10)>=ROUNDDOWN(NodarbībuSaraksts[SĀKUMA LAIKS],10))*($B47<=NodarbībuSaraksts[BEIGU LAIKS]),NodarbībuSaraksts[UNIKĀLS]),NodarbībuSaraksts[UNIKĀLS],0),2),0)","v":0},{"$f":"IFERROR(INDEX(NodarbībuSaraksts[],MATCH(SUMPRODUCT((NodarbībuSaraksts[DIENA]=NodarbībuPlāns[[#Headers],[SESTDIENA]])*(ROUNDDOWN($B47,10)>=ROUNDDOWN(NodarbībuSaraksts[SĀKUMA LAIKS],10))*($B47<=NodarbībuSaraksts[BEIGU LAIKS]),NodarbībuSaraksts[UNIKĀLS]),NodarbībuSaraksts[UNIKĀLS],0),2),0)","v":0}]
[null,"19:00:00",{"$f":"IFERROR(INDEX(NodarbībuSaraksts[],MATCH(SUMPRODUCT((NodarbībuSaraksts[DIENA]=NodarbībuPlāns[[#Headers],[SVĒTDIENA]])*(ROUNDDOWN($B48,10)>=ROUNDDOWN(NodarbībuSaraksts[SĀKUMA LAIKS],10))*($B48<=NodarbībuSaraksts[BEIGU LAIKS]),NodarbībuSaraksts[UNIKĀLS]),NodarbībuSaraksts[UNIKĀLS],0),2),0)","v":0},{"$f":"IFERROR(INDEX(NodarbībuSaraksts[],MATCH(SUMPRODUCT((NodarbībuSaraksts[DIENA]=NodarbībuPlāns[[#Headers],[PIRMDIENA]])*(ROUNDDOWN($B48,10)>=ROUNDDOWN(NodarbībuSaraksts[SĀKUMA LAIKS],10))*($B48<=NodarbībuSaraksts[BEIGU LAIKS]),NodarbībuSaraksts[UNIKĀLS]),NodarbībuSaraksts[UNIKĀLS],0),2),0)","v":0},{"$f":"IFERROR(INDEX(NodarbībuSaraksts[],MATCH(SUMPRODUCT((NodarbībuSaraksts[DIENA]=NodarbībuPlāns[[#Headers],[OTRDIENA]])*(ROUNDDOWN($B48,10)>=ROUNDDOWN(NodarbībuSaraksts[SĀKUMA LAIKS],10))*($B48<=NodarbībuSaraksts[BEIGU LAIKS]),NodarbībuSaraksts[UNIKĀLS]),NodarbībuSaraksts[UNIKĀLS],0),2),0)","v":0},{"$f":"IFERROR(INDEX(NodarbībuSaraksts[],MATCH(SUMPRODUCT((NodarbībuSaraksts[DIENA]=NodarbībuPlāns[[#Headers],[TREŠDIENA]])*(ROUNDDOWN($B48,10)>=ROUNDDOWN(NodarbībuSaraksts[SĀKUMA LAIKS],10))*($B48<=NodarbībuSaraksts[BEIGU LAIKS]),NodarbībuSaraksts[UNIKĀLS]),NodarbībuSaraksts[UNIKĀLS],0),2),0)","v":0},{"$f":"IFERROR(INDEX(NodarbībuSaraksts[],MATCH(SUMPRODUCT((NodarbībuSaraksts[DIENA]=NodarbībuPlāns[[#Headers],[CETURTDIENA]])*(ROUNDDOWN($B48,10)>=ROUNDDOWN(NodarbībuSaraksts[SĀKUMA LAIKS],10))*($B48<=NodarbībuSaraksts[BEIGU LAIKS]),NodarbībuSaraksts[UNIKĀLS]),NodarbībuSaraksts[UNIKĀLS],0),2),0)","v":0},{"$f":"IFERROR(INDEX(NodarbībuSaraksts[],MATCH(SUMPRODUCT((NodarbībuSaraksts[DIENA]=NodarbībuPlāns[[#Headers],[PIEKTDIENA]])*(ROUNDDOWN($B48,10)>=ROUNDDOWN(NodarbībuSaraksts[SĀKUMA LAIKS],10))*($B48<=NodarbībuSaraksts[BEIGU LAIKS]),NodarbībuSaraksts[UNIKĀLS]),NodarbībuSaraksts[UNIKĀLS],0),2),0)","v":0},{"$f":"IFERROR(INDEX(NodarbībuSaraksts[],MATCH(SUMPRODUCT((NodarbībuSaraksts[DIENA]=NodarbībuPlāns[[#Headers],[SESTDIENA]])*(ROUNDDOWN($B48,10)>=ROUNDDOWN(NodarbībuSaraksts[SĀKUMA LAIKS],10))*($B48<=NodarbībuSaraksts[BEIGU LAIKS]),NodarbībuSaraksts[UNIKĀLS]),NodarbībuSaraksts[UNIKĀLS],0),2),0)","v":0}]
[null,"19:15:00",{"$f":"IFERROR(INDEX(NodarbībuSaraksts[],MATCH(SUMPRODUCT((NodarbībuSaraksts[DIENA]=NodarbībuPlāns[[#Headers],[SVĒTDIENA]])*(ROUNDDOWN($B49,10)>=ROUNDDOWN(NodarbībuSaraksts[SĀKUMA LAIKS],10))*($B49<=NodarbībuSaraksts[BEIGU LAIKS]),NodarbībuSaraksts[UNIKĀLS]),NodarbībuSaraksts[UNIKĀLS],0),2),0)","v":0},{"$f":"IFERROR(INDEX(NodarbībuSaraksts[],MATCH(SUMPRODUCT((NodarbībuSaraksts[DIENA]=NodarbībuPlāns[[#Headers],[PIRMDIENA]])*(ROUNDDOWN($B49,10)>=ROUNDDOWN(NodarbībuSaraksts[SĀKUMA LAIKS],10))*($B49<=NodarbībuSaraksts[BEIGU LAIKS]),NodarbībuSaraksts[UNIKĀLS]),NodarbībuSaraksts[UNIKĀLS],0),2),0)","v":0},{"$f":"IFERROR(INDEX(NodarbībuSaraksts[],MATCH(SUMPRODUCT((NodarbībuSaraksts[DIENA]=NodarbībuPlāns[[#Headers],[OTRDIENA]])*(ROUNDDOWN($B49,10)>=ROUNDDOWN(NodarbībuSaraksts[SĀKUMA LAIKS],10))*($B49<=NodarbībuSaraksts[BEIGU LAIKS]),NodarbībuSaraksts[UNIKĀLS]),NodarbībuSaraksts[UNIKĀLS],0),2),0)","v":0},{"$f":"IFERROR(INDEX(NodarbībuSaraksts[],MATCH(SUMPRODUCT((NodarbībuSaraksts[DIENA]=NodarbībuPlāns[[#Headers],[TREŠDIENA]])*(ROUNDDOWN($B49,10)>=ROUNDDOWN(NodarbībuSaraksts[SĀKUMA LAIKS],10))*($B49<=NodarbībuSaraksts[BEIGU LAIKS]),NodarbībuSaraksts[UNIKĀLS]),NodarbībuSaraksts[UNIKĀLS],0),2),0)","v":0},{"$f":"IFERROR(INDEX(NodarbībuSaraksts[],MATCH(SUMPRODUCT((NodarbībuSaraksts[DIENA]=NodarbībuPlāns[[#Headers],[CETURTDIENA]])*(ROUNDDOWN($B49,10)>=ROUNDDOWN(NodarbībuSaraksts[SĀKUMA LAIKS],10))*($B49<=NodarbībuSaraksts[BEIGU LAIKS]),NodarbībuSaraksts[UNIKĀLS]),NodarbībuSaraksts[UNIKĀLS],0),2),0)","v":0},{"$f":"IFERROR(INDEX(NodarbībuSaraksts[],MATCH(SUMPRODUCT((NodarbībuSaraksts[DIENA]=NodarbībuPlāns[[#Headers],[PIEKTDIENA]])*(ROUNDDOWN($B49,10)>=ROUNDDOWN(NodarbībuSaraksts[SĀKUMA LAIKS],10))*($B49<=NodarbībuSaraksts[BEIGU LAIKS]),NodarbībuSaraksts[UNIKĀLS]),NodarbībuSaraksts[UNIKĀLS],0),2),0)","v":0},{"$f":"IFERROR(INDEX(NodarbībuSaraksts[],MATCH(SUMPRODUCT((NodarbībuSaraksts[DIENA]=NodarbībuPlāns[[#Headers],[SESTDIENA]])*(ROUNDDOWN($B49,10)>=ROUNDDOWN(NodarbībuSaraksts[SĀKUMA LAIKS],10))*($B49<=NodarbībuSaraksts[BEIGU LAIKS]),NodarbībuSaraksts[UNIKĀLS]),NodarbībuSaraksts[UNIKĀLS],0),2),0)","v":0}]
[null,"19:30:00",{"$f":"IFERROR(INDEX(NodarbībuSaraksts[],MATCH(SUMPRODUCT((NodarbībuSaraksts[DIENA]=NodarbībuPlāns[[#Headers],[SVĒTDIENA]])*(ROUNDDOWN($B50,10)>=ROUNDDOWN(NodarbībuSaraksts[SĀKUMA LAIKS],10))*($B50<=NodarbībuSaraksts[BEIGU LAIKS]),NodarbībuSaraksts[UNIKĀLS]),NodarbībuSaraksts[UNIKĀLS],0),2),0)","v":0},{"$f":"IFERROR(INDEX(NodarbībuSaraksts[],MATCH(SUMPRODUCT((NodarbībuSaraksts[DIENA]=NodarbībuPlāns[[#Headers],[PIRMDIENA]])*(ROUNDDOWN($B50,10)>=ROUNDDOWN(NodarbībuSaraksts[SĀKUMA LAIKS],10))*($B50<=NodarbībuSaraksts[BEIGU LAIKS]),NodarbībuSaraksts[UNIKĀLS]),NodarbībuSaraksts[UNIKĀLS],0),2),0)","v":0},{"$f":"IFERROR(INDEX(NodarbībuSaraksts[],MATCH(SUMPRODUCT((NodarbībuSaraksts[DIENA]=NodarbībuPlāns[[#Headers],[OTRDIENA]])*(ROUNDDOWN($B50,10)>=ROUNDDOWN(NodarbībuSaraksts[SĀKUMA LAIKS],10))*($B50<=NodarbībuSaraksts[BEIGU LAIKS]),NodarbībuSaraksts[UNIKĀLS]),NodarbībuSaraksts[UNIKĀLS],0),2),0)","v":0},{"$f":"IFERROR(INDEX(NodarbībuSaraksts[],MATCH(SUMPRODUCT((NodarbībuSaraksts[DIENA]=NodarbībuPlāns[[#Headers],[TREŠDIENA]])*(ROUNDDOWN($B50,10)>=ROUNDDOWN(NodarbībuSaraksts[SĀKUMA LAIKS],10))*($B50<=NodarbībuSaraksts[BEIGU LAIKS]),NodarbībuSaraksts[UNIKĀLS]),NodarbībuSaraksts[UNIKĀLS],0),2),0)","v":0},{"$f":"IFERROR(INDEX(NodarbībuSaraksts[],MATCH(SUMPRODUCT((NodarbībuSaraksts[DIENA]=NodarbībuPlāns[[#Headers],[CETURTDIENA]])*(ROUNDDOWN($B50,10)>=ROUNDDOWN(NodarbībuSaraksts[SĀKUMA LAIKS],10))*($B50<=NodarbībuSaraksts[BEIGU LAIKS]),NodarbībuSaraksts[UNIKĀLS]),NodarbībuSaraksts[UNIKĀLS],0),2),0)","v":0},{"$f":"IFERROR(INDEX(NodarbībuSaraksts[],MATCH(SUMPRODUCT((NodarbībuSaraksts[DIENA]=NodarbībuPlāns[[#Headers],[PIEKTDIENA]])*(ROUNDDOWN($B50,10)>=ROUNDDOWN(NodarbībuSaraksts[SĀKUMA LAIKS],10))*($B50<=NodarbībuSaraksts[BEIGU LAIKS]),NodarbībuSaraksts[UNIKĀLS]),NodarbībuSaraksts[UNIKĀLS],0),2),0)","v":0},{"$f":"IFERROR(INDEX(NodarbībuSaraksts[],MATCH(SUMPRODUCT((NodarbībuSaraksts[DIENA]=NodarbībuPlāns[[#Headers],[SESTDIENA]])*(ROUNDDOWN($B50,10)>=ROUNDDOWN(NodarbībuSaraksts[SĀKUMA LAIKS],10))*($B50<=NodarbībuSaraksts[BEIGU LAIKS]),NodarbībuSaraksts[UNIKĀLS]),NodarbībuSaraksts[UNIKĀLS],0),2),0)","v":0}]
[null,"19:45:00",{"$f":"IFERROR(INDEX(NodarbībuSaraksts[],MATCH(SUMPRODUCT((NodarbībuSaraksts[DIENA]=NodarbībuPlāns[[#Headers],[SVĒTDIENA]])*(ROUNDDOWN($B51,10)>=ROUNDDOWN(NodarbībuSaraksts[SĀKUMA LAIKS],10))*($B51<=NodarbībuSaraksts[BEIGU LAIKS]),NodarbībuSaraksts[UNIKĀLS]),NodarbībuSaraksts[UNIKĀLS],0),2),0)","v":0},{"$f":"IFERROR(INDEX(NodarbībuSaraksts[],MATCH(SUMPRODUCT((NodarbībuSaraksts[DIENA]=NodarbībuPlāns[[#Headers],[PIRMDIENA]])*(ROUNDDOWN($B51,10)>=ROUNDDOWN(NodarbībuSaraksts[SĀKUMA LAIKS],10))*($B51<=NodarbībuSaraksts[BEIGU LAIKS]),NodarbībuSaraksts[UNIKĀLS]),NodarbībuSaraksts[UNIKĀLS],0),2),0)","v":0},{"$f":"IFERROR(INDEX(NodarbībuSaraksts[],MATCH(SUMPRODUCT((NodarbībuSaraksts[DIENA]=NodarbībuPlāns[[#Headers],[OTRDIENA]])*(ROUNDDOWN($B51,10)>=ROUNDDOWN(NodarbībuSaraksts[SĀKUMA LAIKS],10))*($B51<=NodarbībuSaraksts[BEIGU LAIKS]),NodarbībuSaraksts[UNIKĀLS]),NodarbībuSaraksts[UNIKĀLS],0),2),0)","v":0},{"$f":"IFERROR(INDEX(NodarbībuSaraksts[],MATCH(SUMPRODUCT((NodarbībuSaraksts[DIENA]=NodarbībuPlāns[[#Headers],[TREŠDIENA]])*(ROUNDDOWN($B51,10)>=ROUNDDOWN(NodarbībuSaraksts[SĀKUMA LAIKS],10))*($B51<=NodarbībuSaraksts[BEIGU LAIKS]),NodarbībuSaraksts[UNIKĀLS]),NodarbībuSaraksts[UNIKĀLS],0),2),0)","v":0},{"$f":"IFERROR(INDEX(NodarbībuSaraksts[],MATCH(SUMPRODUCT((NodarbībuSaraksts[DIENA]=NodarbībuPlāns[[#Headers],[CETURTDIENA]])*(ROUNDDOWN($B51,10)>=ROUNDDOWN(NodarbībuSaraksts[SĀKUMA LAIKS],10))*($B51<=NodarbībuSaraksts[BEIGU LAIKS]),NodarbībuSaraksts[UNIKĀLS]),NodarbībuSaraksts[UNIKĀLS],0),2),0)","v":0},{"$f":"IFERROR(INDEX(NodarbībuSaraksts[],MATCH(SUMPRODUCT((NodarbībuSaraksts[DIENA]=NodarbībuPlāns[[#Headers],[PIEKTDIENA]])*(ROUNDDOWN($B51,10)>=ROUNDDOWN(NodarbībuSaraksts[SĀKUMA LAIKS],10))*($B51<=NodarbībuSaraksts[BEIGU LAIKS]),NodarbībuSaraksts[UNIKĀLS]),NodarbībuSaraksts[UNIKĀLS],0),2),0)","v":0},{"$f":"IFERROR(INDEX(NodarbībuSaraksts[],MATCH(SUMPRODUCT((NodarbībuSaraksts[DIENA]=NodarbībuPlāns[[#Headers],[SESTDIENA]])*(ROUNDDOWN($B51,10)>=ROUNDDOWN(NodarbībuSaraksts[SĀKUMA LAIKS],10))*($B51<=NodarbībuSaraksts[BEIGU LAIKS]),NodarbībuSaraksts[UNIKĀLS]),NodarbībuSaraksts[UNIKĀLS],0),2),0)","v":0}]
[null,"20:00:00",{"$f":"IFERROR(INDEX(NodarbībuSaraksts[],MATCH(SUMPRODUCT((NodarbībuSaraksts[DIENA]=NodarbībuPlāns[[#Headers],[SVĒTDIENA]])*(ROUNDDOWN($B52,10)>=ROUNDDOWN(NodarbībuSaraksts[SĀKUMA LAIKS],10))*($B52<=NodarbībuSaraksts[BEIGU LAIKS]),NodarbībuSaraksts[UNIKĀLS]),NodarbībuSaraksts[UNIKĀLS],0),2),0)","v":0},{"$f":"IFERROR(INDEX(NodarbībuSaraksts[],MATCH(SUMPRODUCT((NodarbībuSaraksts[DIENA]=NodarbībuPlāns[[#Headers],[PIRMDIENA]])*(ROUNDDOWN($B52,10)>=ROUNDDOWN(NodarbībuSaraksts[SĀKUMA LAIKS],10))*($B52<=NodarbībuSaraksts[BEIGU LAIKS]),NodarbībuSaraksts[UNIKĀLS]),NodarbībuSaraksts[UNIKĀLS],0),2),0)","v":0},{"$f":"IFERROR(INDEX(NodarbībuSaraksts[],MATCH(SUMPRODUCT((NodarbībuSaraksts[DIENA]=NodarbībuPlāns[[#Headers],[OTRDIENA]])*(ROUNDDOWN($B52,10)>=ROUNDDOWN(NodarbībuSaraksts[SĀKUMA LAIKS],10))*($B52<=NodarbībuSaraksts[BEIGU LAIKS]),NodarbībuSaraksts[UNIKĀLS]),NodarbībuSaraksts[UNIKĀLS],0),2),0)","v":0},{"$f":"IFERROR(INDEX(NodarbībuSaraksts[],MATCH(SUMPRODUCT((NodarbībuSaraksts[DIENA]=NodarbībuPlāns[[#Headers],[TREŠDIENA]])*(ROUNDDOWN($B52,10)>=ROUNDDOWN(NodarbībuSaraksts[SĀKUMA LAIKS],10))*($B52<=NodarbībuSaraksts[BEIGU LAIKS]),NodarbībuSaraksts[UNIKĀLS]),NodarbībuSaraksts[UNIKĀLS],0),2),0)","v":0},{"$f":"IFERROR(INDEX(NodarbībuSaraksts[],MATCH(SUMPRODUCT((NodarbībuSaraksts[DIENA]=NodarbībuPlāns[[#Headers],[CETURTDIENA]])*(ROUNDDOWN($B52,10)>=ROUNDDOWN(NodarbībuSaraksts[SĀKUMA LAIKS],10))*($B52<=NodarbībuSaraksts[BEIGU LAIKS]),NodarbībuSaraksts[UNIKĀLS]),NodarbībuSaraksts[UNIKĀLS],0),2),0)","v":0},{"$f":"IFERROR(INDEX(NodarbībuSaraksts[],MATCH(SUMPRODUCT((NodarbībuSaraksts[DIENA]=NodarbībuPlāns[[#Headers],[PIEKTDIENA]])*(ROUNDDOWN($B52,10)>=ROUNDDOWN(NodarbībuSaraksts[SĀKUMA LAIKS],10))*($B52<=NodarbībuSaraksts[BEIGU LAIKS]),NodarbībuSaraksts[UNIKĀLS]),NodarbībuSaraksts[UNIKĀLS],0),2),0)","v":0},{"$f":"IFERROR(INDEX(NodarbībuSaraksts[],MATCH(SUMPRODUCT((NodarbībuSaraksts[DIENA]=NodarbībuPlāns[[#Headers],[SESTDIENA]])*(ROUNDDOWN($B52,10)>=ROUNDDOWN(NodarbībuSaraksts[SĀKUMA LAIKS],10))*($B52<=NodarbībuSaraksts[BEIGU LAIKS]),NodarbībuSaraksts[UNIKĀLS]),NodarbībuSaraksts[UNIKĀLS],0),2),0)","v":0}]
[null,"20:15:00",{"$f":"IFERROR(INDEX(NodarbībuSaraksts[],MATCH(SUMPRODUCT((NodarbībuSaraksts[DIENA]=NodarbībuPlāns[[#Headers],[SVĒTDIENA]])*(ROUNDDOWN($B53,10)>=ROUNDDOWN(NodarbībuSaraksts[SĀKUMA LAIKS],10))*($B53<=NodarbībuSaraksts[BEIGU LAIKS]),NodarbībuSaraksts[UNIKĀLS]),NodarbībuSaraksts[UNIKĀLS],0),2),0)","v":0},{"$f":"IFERROR(INDEX(NodarbībuSaraksts[],MATCH(SUMPRODUCT((NodarbībuSaraksts[DIENA]=NodarbībuPlāns[[#Headers],[PIRMDIENA]])*(ROUNDDOWN($B53,10)>=ROUNDDOWN(NodarbībuSaraksts[SĀKUMA LAIKS],10))*($B53<=NodarbībuSaraksts[BEIGU LAIKS]),NodarbībuSaraksts[UNIKĀLS]),NodarbībuSaraksts[UNIKĀLS],0),2),0)","v":0},{"$f":"IFERROR(INDEX(NodarbībuSaraksts[],MATCH(SUMPRODUCT((NodarbībuSaraksts[DIENA]=NodarbībuPlāns[[#Headers],[OTRDIENA]])*(ROUNDDOWN($B53,10)>=ROUNDDOWN(NodarbībuSaraksts[SĀKUMA LAIKS],10))*($B53<=NodarbībuSaraksts[BEIGU LAIKS]),NodarbībuSaraksts[UNIKĀLS]),NodarbībuSaraksts[UNIKĀLS],0),2),0)","v":0},{"$f":"IFERROR(INDEX(NodarbībuSaraksts[],MATCH(SUMPRODUCT((NodarbībuSaraksts[DIENA]=NodarbībuPlāns[[#Headers],[TREŠDIENA]])*(ROUNDDOWN($B53,10)>=ROUNDDOWN(NodarbībuSaraksts[SĀKUMA LAIKS],10))*($B53<=NodarbībuSaraksts[BEIGU LAIKS]),NodarbībuSaraksts[UNIKĀLS]),NodarbībuSaraksts[UNIKĀLS],0),2),0)","v":0},{"$f":"IFERROR(INDEX(NodarbībuSaraksts[],MATCH(SUMPRODUCT((NodarbībuSaraksts[DIENA]=NodarbībuPlāns[[#Headers],[CETURTDIENA]])*(ROUNDDOWN($B53,10)>=ROUNDDOWN(NodarbībuSaraksts[SĀKUMA LAIKS],10))*($B53<=NodarbībuSaraksts[BEIGU LAIKS]),NodarbībuSaraksts[UNIKĀLS]),NodarbībuSaraksts[UNIKĀLS],0),2),0)","v":0},{"$f":"IFERROR(INDEX(NodarbībuSaraksts[],MATCH(SUMPRODUCT((NodarbībuSaraksts[DIENA]=NodarbībuPlāns[[#Headers],[PIEKTDIENA]])*(ROUNDDOWN($B53,10)>=ROUNDDOWN(NodarbībuSaraksts[SĀKUMA LAIKS],10))*($B53<=NodarbībuSaraksts[BEIGU LAIKS]),NodarbībuSaraksts[UNIKĀLS]),NodarbībuSaraksts[UNIKĀLS],0),2),0)","v":0},{"$f":"IFERROR(INDEX(NodarbībuSaraksts[],MATCH(SUMPRODUCT((NodarbībuSaraksts[DIENA]=NodarbībuPlāns[[#Headers],[SESTDIENA]])*(ROUNDDOWN($B53,10)>=ROUNDDOWN(NodarbībuSaraksts[SĀKUMA LAIKS],10))*($B53<=NodarbībuSaraksts[BEIGU LAIKS]),NodarbībuSaraksts[UNIKĀLS]),NodarbībuSaraksts[UNIKĀLS],0),2),0)","v":0}]
[null,"20:30:00",{"$f":"IFERROR(INDEX(NodarbībuSaraksts[],MATCH(SUMPRODUCT((NodarbībuSaraksts[DIENA]=NodarbībuPlāns[[#Headers],[SVĒTDIENA]])*(ROUNDDOWN($B54,10)>=ROUNDDOWN(NodarbībuSaraksts[SĀKUMA LAIKS],10))*($B54<=NodarbībuSaraksts[BEIGU LAIKS]),NodarbībuSaraksts[UNIKĀLS]),NodarbībuSaraksts[UNIKĀLS],0),2),0)","v":0},{"$f":"IFERROR(INDEX(NodarbībuSaraksts[],MATCH(SUMPRODUCT((NodarbībuSaraksts[DIENA]=NodarbībuPlāns[[#Headers],[PIRMDIENA]])*(ROUNDDOWN($B54,10)>=ROUNDDOWN(NodarbībuSaraksts[SĀKUMA LAIKS],10))*($B54<=NodarbībuSaraksts[BEIGU LAIKS]),NodarbībuSaraksts[UNIKĀLS]),NodarbībuSaraksts[UNIKĀLS],0),2),0)","v":0},{"$f":"IFERROR(INDEX(NodarbībuSaraksts[],MATCH(SUMPRODUCT((NodarbībuSaraksts[DIENA]=NodarbībuPlāns[[#Headers],[OTRDIENA]])*(ROUNDDOWN($B54,10)>=ROUNDDOWN(NodarbībuSaraksts[SĀKUMA LAIKS],10))*($B54<=NodarbībuSaraksts[BEIGU LAIKS]),NodarbībuSaraksts[UNIKĀLS]),NodarbībuSaraksts[UNIKĀLS],0),2),0)","v":0},{"$f":"IFERROR(INDEX(NodarbībuSaraksts[],MATCH(SUMPRODUCT((NodarbībuSaraksts[DIENA]=NodarbībuPlāns[[#Headers],[TREŠDIENA]])*(ROUNDDOWN($B54,10)>=ROUNDDOWN(NodarbībuSaraksts[SĀKUMA LAIKS],10))*($B54<=NodarbībuSaraksts[BEIGU LAIKS]),NodarbībuSaraksts[UNIKĀLS]),NodarbībuSaraksts[UNIKĀLS],0),2),0)","v":0},{"$f":"IFERROR(INDEX(NodarbībuSaraksts[],MATCH(SUMPRODUCT((NodarbībuSaraksts[DIENA]=NodarbībuPlāns[[#Headers],[CETURTDIENA]])*(ROUNDDOWN($B54,10)>=ROUNDDOWN(NodarbībuSaraksts[SĀKUMA LAIKS],10))*($B54<=NodarbībuSaraksts[BEIGU LAIKS]),NodarbībuSaraksts[UNIKĀLS]),NodarbībuSaraksts[UNIKĀLS],0),2),0)","v":0},{"$f":"IFERROR(INDEX(NodarbībuSaraksts[],MATCH(SUMPRODUCT((NodarbībuSaraksts[DIENA]=NodarbībuPlāns[[#Headers],[PIEKTDIENA]])*(ROUNDDOWN($B54,10)>=ROUNDDOWN(NodarbībuSaraksts[SĀKUMA LAIKS],10))*($B54<=NodarbībuSaraksts[BEIGU LAIKS]),NodarbībuSaraksts[UNIKĀLS]),NodarbībuSaraksts[UNIKĀLS],0),2),0)","v":0},{"$f":"IFERROR(INDEX(NodarbībuSaraksts[],MATCH(SUMPRODUCT((NodarbībuSaraksts[DIENA]=NodarbībuPlāns[[#Headers],[SESTDIENA]])*(ROUNDDOWN($B54,10)>=ROUNDDOWN(NodarbībuSaraksts[SĀKUMA LAIKS],10))*($B54<=NodarbībuSaraksts[BEIGU LAIKS]),NodarbībuSaraksts[UNIKĀLS]),NodarbībuSaraksts[UNIKĀLS],0),2),0)","v":0}]
[null,"20:45:00",{"$f":"IFERROR(INDEX(NodarbībuSaraksts[],MATCH(SUMPRODUCT((NodarbībuSaraksts[DIENA]=NodarbībuPlāns[[#Headers],[SVĒTDIENA]])*(ROUNDDOWN($B55,10)>=ROUNDDOWN(NodarbībuSaraksts[SĀKUMA LAIKS],10))*($B55<=NodarbībuSaraksts[BEIGU LAIKS]),NodarbībuSaraksts[UNIKĀLS]),NodarbībuSaraksts[UNIKĀLS],0),2),0)","v":0},{"$f":"IFERROR(INDEX(NodarbībuSaraksts[],MATCH(SUMPRODUCT((NodarbībuSaraksts[DIENA]=NodarbībuPlāns[[#Headers],[PIRMDIENA]])*(ROUNDDOWN($B55,10)>=ROUNDDOWN(NodarbībuSaraksts[SĀKUMA LAIKS],10))*($B55<=NodarbībuSaraksts[BEIGU LAIKS]),NodarbībuSaraksts[UNIKĀLS]),NodarbībuSaraksts[UNIKĀLS],0),2),0)","v":0},{"$f":"IFERROR(INDEX(NodarbībuSaraksts[],MATCH(SUMPRODUCT((NodarbībuSaraksts[DIENA]=NodarbībuPlāns[[#Headers],[OTRDIENA]])*(ROUNDDOWN($B55,10)>=ROUNDDOWN(NodarbībuSaraksts[SĀKUMA LAIKS],10))*($B55<=NodarbībuSaraksts[BEIGU LAIKS]),NodarbībuSaraksts[UNIKĀLS]),NodarbībuSaraksts[UNIKĀLS],0),2),0)","v":0},{"$f":"IFERROR(INDEX(NodarbībuSaraksts[],MATCH(SUMPRODUCT((NodarbībuSaraksts[DIENA]=NodarbībuPlāns[[#Headers],[TREŠDIENA]])*(ROUNDDOWN($B55,10)>=ROUNDDOWN(NodarbībuSaraksts[SĀKUMA LAIKS],10))*($B55<=NodarbībuSaraksts[BEIGU LAIKS]),NodarbībuSaraksts[UNIKĀLS]),NodarbībuSaraksts[UNIKĀLS],0),2),0)","v":0},{"$f":"IFERROR(INDEX(NodarbībuSaraksts[],MATCH(SUMPRODUCT((NodarbībuSaraksts[DIENA]=NodarbībuPlāns[[#Headers],[CETURTDIENA]])*(ROUNDDOWN($B55,10)>=ROUNDDOWN(NodarbībuSaraksts[SĀKUMA LAIKS],10))*($B55<=NodarbībuSaraksts[BEIGU LAIKS]),NodarbībuSaraksts[UNIKĀLS]),NodarbībuSaraksts[UNIKĀLS],0),2),0)","v":0},{"$f":"IFERROR(INDEX(NodarbībuSaraksts[],MATCH(SUMPRODUCT((NodarbībuSaraksts[DIENA]=NodarbībuPlāns[[#Headers],[PIEKTDIENA]])*(ROUNDDOWN($B55,10)>=ROUNDDOWN(NodarbībuSaraksts[SĀKUMA LAIKS],10))*($B55<=NodarbībuSaraksts[BEIGU LAIKS]),NodarbībuSaraksts[UNIKĀLS]),NodarbībuSaraksts[UNIKĀLS],0),2),0)","v":0},{"$f":"IFERROR(INDEX(NodarbībuSaraksts[],MATCH(SUMPRODUCT((NodarbībuSaraksts[DIENA]=NodarbībuPlāns[[#Headers],[SESTDIENA]])*(ROUNDDOWN($B55,10)>=ROUNDDOWN(NodarbībuSaraksts[SĀKUMA LAIKS],10))*($B55<=NodarbībuSaraksts[BEIGU LAIKS]),NodarbībuSaraksts[UNIKĀLS]),NodarbībuSaraksts[UNIKĀLS],0),2),0)","v":0}]
[null,"21:00:00",{"$f":"IFERROR(INDEX(NodarbībuSaraksts[],MATCH(SUMPRODUCT((NodarbībuSaraksts[DIENA]=NodarbībuPlāns[[#Headers],[SVĒTDIENA]])*(ROUNDDOWN($B56,10)>=ROUNDDOWN(NodarbībuSaraksts[SĀKUMA LAIKS],10))*($B56<=NodarbībuSaraksts[BEIGU LAIKS]),NodarbībuSaraksts[UNIKĀLS]),NodarbībuSaraksts[UNIKĀLS],0),2),0)","v":0},{"$f":"IFERROR(INDEX(NodarbībuSaraksts[],MATCH(SUMPRODUCT((NodarbībuSaraksts[DIENA]=NodarbībuPlāns[[#Headers],[PIRMDIENA]])*(ROUNDDOWN($B56,10)>=ROUNDDOWN(NodarbībuSaraksts[SĀKUMA LAIKS],10))*($B56<=NodarbībuSaraksts[BEIGU LAIKS]),NodarbībuSaraksts[UNIKĀLS]),NodarbībuSaraksts[UNIKĀLS],0),2),0)","v":0},{"$f":"IFERROR(INDEX(NodarbībuSaraksts[],MATCH(SUMPRODUCT((NodarbībuSaraksts[DIENA]=NodarbībuPlāns[[#Headers],[OTRDIENA]])*(ROUNDDOWN($B56,10)>=ROUNDDOWN(NodarbībuSaraksts[SĀKUMA LAIKS],10))*($B56<=NodarbībuSaraksts[BEIGU LAIKS]),NodarbībuSaraksts[UNIKĀLS]),NodarbībuSaraksts[UNIKĀLS],0),2),0)","v":0},{"$f":"IFERROR(INDEX(NodarbībuSaraksts[],MATCH(SUMPRODUCT((NodarbībuSaraksts[DIENA]=NodarbībuPlāns[[#Headers],[TREŠDIENA]])*(ROUNDDOWN($B56,10)>=ROUNDDOWN(NodarbībuSaraksts[SĀKUMA LAIKS],10))*($B56<=NodarbībuSaraksts[BEIGU LAIKS]),NodarbībuSaraksts[UNIKĀLS]),NodarbībuSaraksts[UNIKĀLS],0),2),0)","v":0},{"$f":"IFERROR(INDEX(NodarbībuSaraksts[],MATCH(SUMPRODUCT((NodarbībuSaraksts[DIENA]=NodarbībuPlāns[[#Headers],[CETURTDIENA]])*(ROUNDDOWN($B56,10)>=ROUNDDOWN(NodarbībuSaraksts[SĀKUMA LAIKS],10))*($B56<=NodarbībuSaraksts[BEIGU LAIKS]),NodarbībuSaraksts[UNIKĀLS]),NodarbībuSaraksts[UNIKĀLS],0),2),0)","v":0},{"$f":"IFERROR(INDEX(NodarbībuSaraksts[],MATCH(SUMPRODUCT((NodarbībuSaraksts[DIENA]=NodarbībuPlāns[[#Headers],[PIEKTDIENA]])*(ROUNDDOWN($B56,10)>=ROUNDDOWN(NodarbībuSaraksts[SĀKUMA LAIKS],10))*($B56<=NodarbībuSaraksts[BEIGU LAIKS]),NodarbībuSaraksts[UNIKĀLS]),NodarbībuSaraksts[UNIKĀLS],0),2),0)","v":0},{"$f":"IFERROR(INDEX(NodarbībuSaraksts[],MATCH(SUMPRODUCT((NodarbībuSaraksts[DIENA]=NodarbībuPlāns[[#Headers],[SESTDIENA]])*(ROUNDDOWN($B56,10)>=ROUNDDOWN(NodarbībuSaraksts[SĀKUMA LAIKS],10))*($B56<=NodarbībuSaraksts[BEIGU LAIKS]),NodarbībuSaraksts[UNIKĀLS]),NodarbībuSaraksts[UNIKĀLS],0),2),0)","v":0}]

{"sheet":"Nodarbību saraksts","index":1,"n_rows":10,"n_cols":8,"rows_kept":10,"merged":[[0,1,0,5],[0,6,0,7]]}
[null,"NODARBĪBU SARAKSTS",{"$nulls":4},"Nodarbību plāns"]
[null,"NODARBĪBA","ID","DIENA","ATRAŠANĀS VIETA","SĀKUMA LAIKS","BEIGU LAIKS","UNIKĀLS"]
[null,"Tehniskā rakstīšana","WR-121","PIRMDIENA","Ēka A","13:00:00","14:00:00",{"$f":"ROW()-ROW(NodarbībuSaraksts[[#Headers],[UNIKĀLS]])","v":1}]
[null,"Tehniskā rakstīšana","WR-121","TREŠDIENA","Ēka A","13:00:00","14:00:00",{"$f":"ROW()-ROW(NodarbībuSaraksts[[#Headers],[UNIKĀLS]])","v":2}]
[null,"Publiskā runa","SP-111","PIRMDIENA","Ēka B","16:00:00","17:00:00",{"$f":"ROW()-ROW(NodarbībuSaraksts[[#Headers],[UNIKĀLS]])","v":3}]
[null,"Veselība un fiziskā sagatavotība","HPE-295","OTRDIENA","Ēka B","11:00:00","12:00:00",{"$f":"ROW()-ROW(NodarbībuSaraksts[[#Headers],[UNIKĀLS]])","v":4}]
[null,"Veselība un fiziskā sagatavotība","HPE-295","CETURTDIENA","Ēka B","11:00:00","12:00:00",{"$f":"ROW()-ROW(NodarbībuSaraksts[[#Headers],[UNIKĀLS]])","v":5}]
[null,"Algebra","MTH-113","PIRMDIENA","Ēka C","08:10:00","09:15:00",{"$f":"ROW()-ROW(NodarbībuSaraksts[[#Headers],[UNIKĀLS]])","v":6}]
[null,"Algebra","MTH-113","TREŠDIENA","Ēka C","08:10:00","09:15:00",{"$f":"ROW()-ROW(NodarbībuSaraksts[[#Headers],[UNIKĀLS]])","v":7}]
[null,"Algebra","MTH-113","PIEKTDIENA","Ēka C","08:10:00","09:15:00",{"$f":"ROW()-ROW(NodarbībuSaraksts[[#Headers],[UNIKĀLS]])","v":8}]